NUMERO_MANDATO;RIGA_MANDATO;QUIET;IMPORTO_RIGA;IMPORTO_MANDATO;BENEFICIARIO;CIG;TITOLO_PAGAMENTO;DATA_MANDATO;CAPITOLO;ARTICOLO;NUMERO_IMPEGNO;TITOLO;DESCR_TITOLO;LIVELLO_II;DESCR_LIVELLO_II;LIVELLO_III;DESCR_LIVELLO_III;LIVELLO_IV;DESCR_LIVELLO_IV;LIVELLO_V;DESCR_LIVELLO_V;DATA_PAG_EFF
1931;1;9999999;150;150;OMESSO NOMINATIVO NEL RISPETTO DELLA NORMATIVA SULLA PROTEZIONE DATI PERSONALI; ;GIUGNO 2020 EROGAZIONE CONTRIBUTI ORDINARI E STRAORDINARI QUALI INTERVENTI DI ASSISTENZA ECONOMICA;01/07/2020;4157;0;520;1;Spese correnti;4;Trasferimenti correnti;2;Trasferimenti correnti a Famiglie;2;Interventi assistenziali;999;Altri assegni e sussidi assistenziali;07/07/2020
1932;1;9999999;500;500;OMESSO NOMINATIVO NEL RISPETTO DELLA NORMATIVA SULLA PROTEZIONE DATI PERSONALI; ;GIUGNO 2020 EROGAZIONE CONTRIBUTI ORDINARI E STRAORDINARI QUALI INTERVENTI DI ASSISTENZA ECONOMICA;01/07/2020;4157;0;521;1;Spese correnti;4;Trasferimenti correnti;2;Trasferimenti correnti a Famiglie;2;Interventi assistenziali;999;Altri assegni e sussidi assistenziali;03/07/2020
1933;1;9999999;1.210,00;1.210,00;OMESSO NOMINATIVO NEL RISPETTO DELLA NORMATIVA SULLA PROTEZIONE DATI PERSONALI; ;IGIUGNO 2020 EROGAZIONE CONTRIBUTI ORDINARI E STRAORDINARI QUALI INTERVENTI DI ASSISTENZA ECONOMICA;01/07/2020;4157;0;522;1;Spese correnti;4;Trasferimenti correnti;2;Trasferimenti correnti a Famiglie;2;Interventi assistenziali;999;Altri assegni e sussidi assistenziali;03/07/2020
1934;1;9999999;70;70;OMESSO NOMINATIVO NEL RISPETTO DELLA NORMATIVA SULLA PROTEZIONE DATI PERSONALI; ;GIUGNO 2020 EROGAZIONE CONTRIBUTI ORDINARI E STRAORDINARI QUALI INTERVENTI DI ASSISTENZA ECONOMICA;01/07/2020;4157;0;470;1;Spese correnti;4;Trasferimenti correnti;2;Trasferimenti correnti a Famiglie;2;Interventi assistenziali;999;Altri assegni e sussidi assistenziali;07/07/2020
1935;1;9999999;130;130;OMESSO NOMINATIVO NEL RISPETTO DELLA NORMATIVA SULLA PROTEZIONE DATI PERSONALI; ;GIUGNO 2020 EROGAZIONE CONTRIBUTI ORDINARI E STRAORDINARI QUALI INTERVENTI DI ASSISTENZA ECONOMICA;01/07/2020;4157;0;353;1;Spese correnti;4;Trasferimenti correnti;2;Trasferimenti correnti a Famiglie;2;Interventi assistenziali;999;Altri assegni e sussidi assistenziali;07/07/2020
1936;1;9999999;200;200;OMESSO NOMINATIVO NEL RISPETTO DELLA NORMATIVA SULLA PROTEZIONE DATI PERSONALI; ;GIUGNO 2020 EROGAZIONE CONTRIBUTI ORDINARI E STRAORDINARI QUALI INTERVENTI DI ASSISTENZA ECONOMICA;01/07/2020;4157;0;387;1;Spese correnti;4;Trasferimenti correnti;2;Trasferimenti correnti a Famiglie;2;Interventi assistenziali;999;Altri assegni e sussidi assistenziali;08/07/2020
1937;1;9999999;500;500;OMESSO NOMINATIVO NEL RISPETTO DELLA NORMATIVA SULLA PROTEZIONE DATI PERSONALI; ;GIUGNO 2020 EROGAZIONE CONTRIBUTI ORDINARI E STRAORDINARI QUALI INTERVENTI DI ASSISTENZA ECONOMICA;01/07/2020;4157;0;523;1;Spese correnti;4;Trasferimenti correnti;2;Trasferimenti correnti a Famiglie;2;Interventi assistenziali;999;Altri assegni e sussidi assistenziali;28/07/2020
1938;1;9999999;100;100;OMESSO NOMINATIVO NEL RISPETTO DELLA NORMATIVA SULLA PROTEZIONE DATI PERSONALI; ;GIUGNO 2020 EROGAZIONE CONTRIBUTI ORDINARI E STRAORDINARI QUALI INTERVENTI DI ASSISTENZA ECONOMICA;01/07/2020;4157;0;524;1;Spese correnti;4;Trasferimenti correnti;2;Trasferimenti correnti a Famiglie;2;Interventi assistenziali;999;Altri assegni e sussidi assistenziali;28/07/2020
1939;1;9999999;182;182;OMESSO NOMINATIVO NEL RISPETTO DELLA NORMATIVA SULLA PROTEZIONE DATI PERSONALI; ;GIUGNO 2020 EROGAZIONE CONTRIBUTI ORDINARI E STRAORDINARI QUALI INTERVENTI DI ASSISTENZA ECONOMICA;01/07/2020;4157;0;525;1;Spese correnti;4;Trasferimenti correnti;2;Trasferimenti correnti a Famiglie;2;Interventi assistenziali;999;Altri assegni e sussidi assistenziali;10/07/2020
1940;1;9999999;200;200;OMESSO NOMINATIVO NEL RISPETTO DELLA NORMATIVA SULLA PROTEZIONE DATI PERSONALI; ;GIUGNO 2020 EROGAZIONE CONTRIBUTI ORDINARI E STRAORDINARI QUALI INTERVENTI DI ASSISTENZA ECONOMICA;01/07/2020;4157;0;471;1;Spese correnti;4;Trasferimenti correnti;2;Trasferimenti correnti a Famiglie;2;Interventi assistenziali;999;Altri assegni e sussidi assistenziali;10/07/2020
1941;1;9999999;700;700;OMESSO NOMINATIVO NEL RISPETTO DELLA NORMATIVA SULLA PROTEZIONE DATI PERSONALI; ;GIUGNO 2020 EROGAZIONE CONTRIBUTI ORDINARI E STRAORDINARI QUALI INTERVENTI DI ASSISTENZA ECONOMICA;01/07/2020;4157;0;526;1;Spese correnti;4;Trasferimenti correnti;2;Trasferimenti correnti a Famiglie;2;Interventi assistenziali;999;Altri assegni e sussidi assistenziali;22/07/2020
1942;1;9999999;600;600;OMESSO NOMINATIVO NEL RISPETTO DELLA NORMATIVA SULLA PROTEZIONE DATI PERSONALI; ;GIUGNO 2020 EROGAZIONE CONTRIBUTI ORDINARI E STRAORDINARI QUALI INTERVENTI DI ASSISTENZA ECONOMICA;01/07/2020;4157;0;31;1;Spese correnti;4;Trasferimenti correnti;2;Trasferimenti correnti a Famiglie;2;Interventi assistenziali;999;Altri assegni e sussidi assistenziali;03/07/2020
1943;1;9999999;900;900;OMESSO NOMINATIVO NEL RISPETTO DELLA NORMATIVA SULLA PROTEZIONE DATI PERSONALI; ;GIUGNO 2020 EROGAZIONE CONTRIBUTI ORDINARI E STRAORDINARI QUALI INTERVENTI DI ASSISTENZA ECONOMICA;01/07/2020;4157;0;527;1;Spese correnti;4;Trasferimenti correnti;2;Trasferimenti correnti a Famiglie;2;Interventi assistenziali;999;Altri assegni e sussidi assistenziali;03/07/2020
1944;1;9999999;100;100;OMESSO NOMINATIVO NEL RISPETTO DELLA NORMATIVA SULLA PROTEZIONE DATI PERSONALI; ;GIUGNO 2020 EROGAZIONE CONTRIBUTI ORDINARI E STRAORDINARI QUALI INTERVENTI DI ASSISTENZA ECONOMICA;01/07/2020;4157;0;472;1;Spese correnti;4;Trasferimenti correnti;2;Trasferimenti correnti a Famiglie;2;Interventi assistenziali;999;Altri assegni e sussidi assistenziali;16/07/2020
1945;1;9999999;900;900;OMESSO NOMINATIVO NEL RISPETTO DELLA NORMATIVA SULLA PROTEZIONE DATI PERSONALI; ;GIUGNO 2020 EROGAZIONE CONTRIBUTI ORDINARI E STRAORDINARI QUALI INTERVENTI DI ASSISTENZA ECONOMICA;01/07/2020;4157;0;528;1;Spese correnti;4;Trasferimenti correnti;2;Trasferimenti correnti a Famiglie;2;Interventi assistenziali;999;Altri assegni e sussidi assistenziali;09/07/2020
1946;1;9999999;720;720;OMESSO NOMINATIVO NEL RISPETTO DELLA NORMATIVA SULLA PROTEZIONE DATI PERSONALI; ;GIUGNO 2020 EROGAZIONE CONTRIBUTI ORDINARI E STRAORDINARI QUALI INTERVENTI DI ASSISTENZA ECONOMICA;01/07/2020;4157;0;529;1;Spese correnti;4;Trasferimenti correnti;2;Trasferimenti correnti a Famiglie;2;Interventi assistenziali;999;Altri assegni e sussidi assistenziali;22/07/2020
1947;1;9999999;80;80;OMESSO NOMINATIVO NEL RISPETTO DELLA NORMATIVA SULLA PROTEZIONE DATI PERSONALI; ;GIUGNO 2020 EROGAZIONE CONTRIBUTI ORDINARI E STRAORDINARI QUALI INTERVENTI DI ASSISTENZA ECONOMICA;01/07/2020;4157;0;473;1;Spese correnti;4;Trasferimenti correnti;2;Trasferimenti correnti a Famiglie;2;Interventi assistenziali;999;Altri assegni e sussidi assistenziali;13/07/2020
1948;1;9999999;500;500;ASS.NE DI PROMOZIONE SOC. LA CASA SULL' ALBERO; ;EROGAZIONE CONTRIBUTO ECONOMICO PER AL SOSTEGNO ALLE ATTIVITA SOCIALI;01/07/2020;1859;0;356;1;Spese correnti;4;Trasferimenti correnti;4;Trasferimenti correnti a Istituzioni Sociali Private;1;Trasferimenti correnti a Istituzioni Sociali Private;1;Trasferimenti correnti a Istituzioni Sociali Private;03/07/2020
1949;1;9999999;600;600;ASSOCIAZIONE GIARDINO DELLE ESPERIDI; ;EROGAZIONE CONTRIBUTO ECONOMICO PER AL SOSTEGNO ALLE ATTIVITA SOCIALI;01/07/2020;1859;0;357;1;Spese correnti;4;Trasferimenti correnti;4;Trasferimenti correnti a Istituzioni Sociali Private;1;Trasferimenti correnti a Istituzioni Sociali Private;1;Trasferimenti correnti a Istituzioni Sociali Private;03/07/2020
1950;1;9999999;300;300;L'ESDE - ASSOCIAZIONE CULTURALE DI STORIA LOCALE; ;EROGAZIONE CONTRIBUTO ECONOMICO PER AL SOSTEGNO ALLE ATTIVITA SOCIALI;01/07/2020;1859;0;363;1;Spese correnti;4;Trasferimenti correnti;4;Trasferimenti correnti a Istituzioni Sociali Private;1;Trasferimenti correnti a Istituzioni Sociali Private;1;Trasferimenti correnti a Istituzioni Sociali Private;03/07/2020
1951;1;9999999;100;100;ASSOCIAZIONE MONDO AGRICOLO CASELLE DE RUFFI; ;EROGAZIONE CONTRIBUTO ECONOMICO PER AL SOSTEGNO ALLE ATTIVITA SOCIALI I;01/07/2020;1859;0;365;1;Spese correnti;4;Trasferimenti correnti;4;Trasferimenti correnti a Istituzioni Sociali Private;1;Trasferimenti correnti a Istituzioni Sociali Private;1;Trasferimenti correnti a Istituzioni Sociali Private;03/07/2020
1952;1;9999999;75;75;FARMACIA DEL GRATICOLATO S.R.L.; ;PAGAMENTO FORNITURE RELATIVE AI BUONI SPESA COVID;01/07/2020;4122;0;462;1;Spese correnti;3;Acquisto di beni e servizi;1;Acquisto di beni;2;Altri beni di consumo;11;Generi alimentari;03/07/2020
1953;1;9999999;450;450;NEGRO GIROLAMO; ;PAGAMENTO FORNITURE RELATIVE AI BUONI SPESA ALIMENTARI;01/07/2020;4122;0;462;1;Spese correnti;3;Acquisto di beni e servizi;1;Acquisto di beni;2;Altri beni di consumo;11;Generi alimentari;03/07/2020
1954;1;9999999;25;25;ZACCHELLO SAS DI ZACCHELLO LORIS E C.; ;PAGAMENTO FORNITURE RELATIVE AI BUONI SPESA ALIMENTARI;01/07/2020;4122;0;462;1;Spese correnti;3;Acquisto di beni e servizi;1;Acquisto di beni;2;Altri beni di consumo;11;Generi alimentari;03/07/2020
1955;1;9999999;125;125;ZORZATO ANGELO ORTOFRUTTA; ;PAGAMENTO FORNITURE RELATIVE AI BUONI SPESA ALIMENTARI;01/07/2020;4122;0;462;1;Spese correnti;3;Acquisto di beni e servizi;1;Acquisto di beni;2;Altri beni di consumo;11;Generi alimentari;03/07/2020
1956;1;9999999;630,41;630,41;COMUNE DI S.MARIA DI SALA; ;AGGIO RSCOSSIONE IMU CONTRIBUTO IFEL RENDICONTO AL 01-07-2020;02/07/2020;332;0;0;1;Spese correnti;3;Acquisto di beni e servizi;2;Acquisto di servizi;3;Aggi di riscossione;999;Altri aggi di riscossione n.a.c.;07/07/2020
1957;1;9999999;175;175;ORTOFRUTTA TOMAELLO E GIORNALI DI TOMAELLO G.CARLO; ;SALDO Fatt.n. 4/PA  del 04/06/2020 BUONI SPESA ALIMENTARI COVID -19;02/07/2020;4122;0;462;1;Spese correnti;3;Acquisto di beni e servizi;1;Acquisto di beni;2;Altri beni di consumo;11;Generi alimentari;07/07/2020
1958;1;9999999;250;250;SANT'ANGELO CARNI SRL; ;SALDO Fatt.n. 12  del 31/05/2020 BUONI SPESA COVID;02/07/2020;4122;0;462;1;Spese correnti;3;Acquisto di beni e servizi;1;Acquisto di beni;2;Altri beni di consumo;11;Generi alimentari;07/07/2020
1959;1;9999999;452;452;CALZAVARA DANILO; ;SALDO Fatt.n. 25  del 15/06/2020 BUONI SPESA COVID;02/07/2020;4122;0;462;1;Spese correnti;3;Acquisto di beni e servizi;1;Acquisto di beni;2;Altri beni di consumo;11;Generi alimentari;07/07/2020
1960;1;9999999;19,56;450,66;ENEL ENERGIA SPA;77999756FD;SALDO Fatt.n. 004036202762  del 06/06/2020 MAGGIO 2020 - CONSUMI ILLUMINAZIONE PUBBLICA;06/07/2020;134;31;116;1;Spese correnti;3;Acquisto di beni e servizi;2;Acquisto di servizi;5;Utenze e canoni;4;Energia elettrica;08/07/2020
1960;2;9999999;34,21;450,66;ENEL ENERGIA SPA;77999756FD;SALDO Fatt.n. 004036202838  del 06/06/2020 MAGGIO 2020 - CONSUMI PARCHEGGIO CC PRISMA;06/07/2020;134;31;116;1;Spese correnti;3;Acquisto di beni e servizi;2;Acquisto di servizi;5;Utenze e canoni;4;Energia elettrica;08/07/2020
1960;3;9999999;38,97;450,66;ENEL ENERGIA SPA;77999756FD;SALDO Fatt.n. 004036202801  del 06/06/2020 MAGGIO 2020 - CONSUMI MERCATO CALTANA;06/07/2020;134;31;116;1;Spese correnti;3;Acquisto di beni e servizi;2;Acquisto di servizi;5;Utenze e canoni;4;Energia elettrica;08/07/2020
1960;4;9999999;42,08;450,66;ENEL ENERGIA SPA;77999756FD;SALDO Fatt.n. 004036202829  del 06/06/2020 MAGGIO 2020 - CONSUMI ALLOGGIO VIA DON GALLERANI CALTANA;06/07/2020;134;31;116;1;Spese correnti;3;Acquisto di beni e servizi;2;Acquisto di servizi;5;Utenze e canoni;4;Energia elettrica;08/07/2020
1960;5;9999999;44,19;450,66;ENEL ENERGIA SPA;77999756FD;SALDO Fatt.n. 004036202708  del 06/06/2020 MAGGIO 2020 - CONSUMI ALLOGGIO VIA OLIMPIA SMS;06/07/2020;134;31;116;1;Spese correnti;3;Acquisto di beni e servizi;2;Acquisto di servizi;5;Utenze e canoni;4;Energia elettrica;08/07/2020
1960;6;9999999;46,23;450,66;ENEL ENERGIA SPA;77999756FD;SALDO Fatt.n. 004036202710  del 06/06/2020 MAGGIO 2020 - CONSUMI PARCHEGGIO OVALE SMS;06/07/2020;134;31;116;1;Spese correnti;3;Acquisto di beni e servizi;2;Acquisto di servizi;5;Utenze e canoni;4;Energia elettrica;08/07/2020
1960;7;9999999;60,89;450,66;ENEL ENERGIA SPA;77999756FD;SALDO Fatt.n. 004036202799  del 06/06/2020 MAGGIO 2020 - CONSUMI MERCATO CASELLE;06/07/2020;134;31;116;1;Spese correnti;3;Acquisto di beni e servizi;2;Acquisto di servizi;5;Utenze e canoni;4;Energia elettrica;08/07/2020
1960;8;9999999;68,7;450,66;ENEL ENERGIA SPA;77999756FD;SALDO Fatt.n. 004036202807  del 06/06/2020 MAGGIO 2020 - CONSUMI MERCATO SMS;06/07/2020;134;31;116;1;Spese correnti;3;Acquisto di beni e servizi;2;Acquisto di servizi;5;Utenze e canoni;4;Energia elettrica;08/07/2020
1960;9;9999999;95,83;450,66;ENEL ENERGIA SPA;77999756FD;SALDO Fatt.n. 004036202765  del 06/06/2020 MAGGIO 2020 - CONSUMI  P.ZZA S.D.A. CALTANA;06/07/2020;134;31;116;1;Spese correnti;3;Acquisto di beni e servizi;2;Acquisto di servizi;5;Utenze e canoni;4;Energia elettrica;08/07/2020
1961;1;9999999;219,05;613,43;ENEL ENERGIA SPA;77999756FD;SALDO Fatt.n. 004036202713  del 06/06/2020 MAGGIO 2020 - CONSUMI VILLA FARSETTI;06/07/2020;134;31;116;1;Spese correnti;3;Acquisto di beni e servizi;2;Acquisto di servizi;5;Utenze e canoni;4;Energia elettrica;08/07/2020
1961;2;9999999;394,38;613,43;ENEL ENERGIA SPA;77999756FD;SALDO Fatt.n. 004036202756  del 06/06/2020 MAGGIO 2020 - CONSUMI VILLA FARSETTI;06/07/2020;134;31;116;1;Spese correnti;3;Acquisto di beni e servizi;2;Acquisto di servizi;5;Utenze e canoni;4;Energia elettrica;08/07/2020
1962;1;9999999;825,5;825,5;ENEL ENERGIA SPA;77999756FD;SALDO Fatt.n. 004036202844  del 06/06/2020 MAGGIO 2020 - CONSUMI ILLUMINAZIONE PUBBLICA;06/07/2020;134;31;116;1;Spese correnti;3;Acquisto di beni e servizi;2;Acquisto di servizi;5;Utenze e canoni;4;Energia elettrica;08/07/2020
1963;1;9999999;7,25;7,25;ENEL ENERGIA SPA;77999756FD;ACCONTO Fatt.n. 004036202759  del 06/06/2020 MAGGIO 2020 - CONSUMI CIMITERO SMS - LAMPADE VOTIVE;06/07/2020;134;31;116;1;Spese correnti;3;Acquisto di beni e servizi;2;Acquisto di servizi;5;Utenze e canoni;4;Energia elettrica;08/07/2020
1964;1;9999999;9,76;9,76;ENEL ENERGIA SPA;77999756FD;ACCONTO Fatt.n. 004036202747  del 06/06/2020 MAGGIO 2020 - CONSUMI CIMITERO VETERNIGO - LAMPADE VOTIVE;06/07/2020;134;31;116;1;Spese correnti;3;Acquisto di beni e servizi;2;Acquisto di servizi;5;Utenze e canoni;4;Energia elettrica;08/07/2020
1965;1;9999999;6,13;6,13;ENEL ENERGIA SPA;77999756FD;ACCONTO Fatt.n. 004036202716  del 06/06/2020 MAGGIO 2020 - CONSUMI CIMITERO S.ANGELO - LAMPADE VOTIVE;06/07/2020;134;31;116;1;Spese correnti;3;Acquisto di beni e servizi;2;Acquisto di servizi;5;Utenze e canoni;4;Energia elettrica;08/07/2020
1966;1;9999999;21,87;21,87;ENEL ENERGIA SPA;77999756FD;ACCONTO Fatt.n. 004036202767  del 06/06/2020 MAGGIO 2020 - CONSUMI CIMITERO CASELLE - LAMPADE VOTIVE;06/07/2020;134;31;116;1;Spese correnti;3;Acquisto di beni e servizi;2;Acquisto di servizi;5;Utenze e canoni;4;Energia elettrica;08/07/2020
1967;1;9999999;81;81;ENEL ENERGIA SPA;77999756FD;ACCONTO Fatt.n. 004036202830  del 06/06/2020 MAGGIO 2020 - CONSUMI CIMITERO CALTANA  - LAMPADE VOTIVE;06/07/2020;134;31;116;1;Spese correnti;3;Acquisto di beni e servizi;2;Acquisto di servizi;5;Utenze e canoni;4;Energia elettrica;08/07/2020
1968;1;9999999;11,22;11,22;ENEL ENERGIA SPA;77999756FD;SALDO Fatt.n. 004036202830  del 06/06/2020 MAGGIO 2020 - CONSUMI CIMITERO CALTANA  - LAMPADE VOTIVE;06/07/2020;134;31;116;1;Spese correnti;3;Acquisto di beni e servizi;2;Acquisto di servizi;5;Utenze e canoni;4;Energia elettrica;08/07/2020
1969;1;9999999;0,81;499,29;ENEL ENERGIA SPA;77999756FD;SALDO Fatt.n. 004036202847  del 06/06/2020 MAGGIO 2020 - CONSUMI ILLUMINAZIONE PUBBLICA;06/07/2020;134;31;116;1;Spese correnti;3;Acquisto di beni e servizi;2;Acquisto di servizi;5;Utenze e canoni;4;Energia elettrica;08/07/2020
1969;2;9999999;9,08;499,29;ENEL ENERGIA SPA;77999756FD;SALDO Fatt.n. 004036202849  del 06/06/2020 MAGGIO 2020 - CONSUMI ILLUMINAZIONE PUBBLICA;06/07/2020;134;31;116;1;Spese correnti;3;Acquisto di beni e servizi;2;Acquisto di servizi;5;Utenze e canoni;4;Energia elettrica;08/07/2020
1969;3;9999999;18,91;499,29;ENEL ENERGIA SPA;77999756FD;SALDO Fatt.n. 004036202841  del 06/06/2020 MAGGIO 2020 - CONSUMI ILLUMINAZIONE PUBBLICA;06/07/2020;134;31;116;1;Spese correnti;3;Acquisto di beni e servizi;2;Acquisto di servizi;5;Utenze e canoni;4;Energia elettrica;08/07/2020
1969;4;9999999;57,83;499,29;ENEL ENERGIA SPA;77999756FD;SALDO Fatt.n. 004036202848  del 06/06/2020 MAGGIO 2020 - CONSUMI ILLUMINAZIONE PUBBLICA;06/07/2020;134;31;116;1;Spese correnti;3;Acquisto di beni e servizi;2;Acquisto di servizi;5;Utenze e canoni;4;Energia elettrica;08/07/2020
1969;5;9999999;74,03;499,29;ENEL ENERGIA SPA;77999756FD;SALDO Fatt.n. 004036202840  del 06/06/2020 MAGGIO 2020 - CONSUMI ILLUMINAZIONE PUBBLICA;06/07/2020;134;31;116;1;Spese correnti;3;Acquisto di beni e servizi;2;Acquisto di servizi;5;Utenze e canoni;4;Energia elettrica;08/07/2020
1969;6;9999999;113,89;499,29;ENEL ENERGIA SPA;77999756FD;SALDO Fatt.n. 004036202843  del 06/06/2020 MAGGIO 2020 - CONSUMI ILLUMINAZIONE PUBBLICA;06/07/2020;134;31;116;1;Spese correnti;3;Acquisto di beni e servizi;2;Acquisto di servizi;5;Utenze e canoni;4;Energia elettrica;08/07/2020
1969;7;9999999;224,74;499,29;ENEL ENERGIA SPA;77999756FD;SALDO Fatt.n. 004036202842  del 06/06/2020 MAGGIO 2020 - CONSUMI ILLUMINAZIONE PUBBLICA;06/07/2020;134;31;116;1;Spese correnti;3;Acquisto di beni e servizi;2;Acquisto di servizi;5;Utenze e canoni;4;Energia elettrica;08/07/2020
1970;1;9999999;7,96;7,96;ENEL ENERGIA SPA;77999756FD;ACCONTO Fatt.n. 004036202845  del 06/06/2020 MAGGIO 2020 - CONSUMI ILLUMINAZIONE PUBBLICA;06/07/2020;134;31;116;1;Spese correnti;3;Acquisto di beni e servizi;2;Acquisto di servizi;5;Utenze e canoni;4;Energia elettrica;08/07/2020
1971;1;9999999;6,3;1.458,17;ENEL ENERGIA SPA;77999756FD;SALDO Fatt.n. 004042291170  del 12/06/2020 MAGGIO 2020 - CONSUMI ILLUMINAZIONE PUBBLICA;06/07/2020;134;31;116;1;Spese correnti;3;Acquisto di beni e servizi;2;Acquisto di servizi;5;Utenze e canoni;4;Energia elettrica;08/07/2020
1971;2;9999999;15,05;1.458,17;ENEL ENERGIA SPA;77999756FD;SALDO Fatt.n. 004042291168  del 12/06/2020 MAGGIO 2020 - CONSUMI ILLUMINAZIONE PUBBLICA;06/07/2020;134;31;116;1;Spese correnti;3;Acquisto di beni e servizi;2;Acquisto di servizi;5;Utenze e canoni;4;Energia elettrica;08/07/2020
1971;3;9999999;17,45;1.458,17;ENEL ENERGIA SPA;77999756FD;SALDO Fatt.n. 004042291169  del 12/06/2020 MAGGIO 2020 - CONSUMI ILLUMINAZIONE PUBBLICA;06/07/2020;134;31;116;1;Spese correnti;3;Acquisto di beni e servizi;2;Acquisto di servizi;5;Utenze e canoni;4;Energia elettrica;08/07/2020
1971;4;9999999;19,31;1.458,17;ENEL ENERGIA SPA;77999756FD;SALDO Fatt.n. 004042291156  del 12/06/2020 MAGGIO 2020 - CONSUMI ILLUMINAZIONE PUBBLICA;06/07/2020;134;31;116;1;Spese correnti;3;Acquisto di beni e servizi;2;Acquisto di servizi;5;Utenze e canoni;4;Energia elettrica;08/07/2020
1971;5;9999999;38,37;1.458,17;ENEL ENERGIA SPA;77999756FD;SALDO Fatt.n. 004042291157  del 12/06/2020 MAGGIO 2020 - CONSUMI ILLUMINAZIONE PUBBLICA;06/07/2020;134;31;116;1;Spese correnti;3;Acquisto di beni e servizi;2;Acquisto di servizi;5;Utenze e canoni;4;Energia elettrica;08/07/2020
1971;6;9999999;38,37;1.458,17;ENEL ENERGIA SPA;77999756FD;SALDO Fatt.n. 004042291159  del 12/06/2020 MAGGIO 2020 - CONSUMI ILLUMINAZIONE PUBBLICA;06/07/2020;134;31;116;1;Spese correnti;3;Acquisto di beni e servizi;2;Acquisto di servizi;5;Utenze e canoni;4;Energia elettrica;08/07/2020
1971;7;9999999;68,58;1.458,17;ENEL ENERGIA SPA;77999756FD;SALDO Fatt.n. 004042291162  del 12/06/2020 MAGGIO 2020 - CONSUMI ILLUMINAZIONE PUBBLICA;06/07/2020;134;31;116;1;Spese correnti;3;Acquisto di beni e servizi;2;Acquisto di servizi;5;Utenze e canoni;4;Energia elettrica;08/07/2020
1971;8;9999999;76,52;1.458,17;ENEL ENERGIA SPA;77999756FD;SALDO Fatt.n. 004042291158  del 12/06/2020 MAGGIO 2020 - CONSUMI ILLUMINAZIONE PUBBLICA;06/07/2020;134;31;116;1;Spese correnti;3;Acquisto di beni e servizi;2;Acquisto di servizi;5;Utenze e canoni;4;Energia elettrica;08/07/2020
1971;9;9999999;153,27;1.458,17;ENEL ENERGIA SPA;77999756FD;SALDO Fatt.n. 004042291160  del 12/06/2020 MAGGIO 2020 - CONSUMI ILLUMINAZIONE PUBBLICA;06/07/2020;134;31;116;1;Spese correnti;3;Acquisto di beni e servizi;2;Acquisto di servizi;5;Utenze e canoni;4;Energia elettrica;08/07/2020
1971;10;9999999;159,97;1.458,17;ENEL ENERGIA SPA;77999756FD;SALDO Fatt.n. 004042291167  del 12/06/2020 MAGGIO 2020 - CONSUMI ILLUMINAZIONE PUBBLICA;06/07/2020;134;31;116;1;Spese correnti;3;Acquisto di beni e servizi;2;Acquisto di servizi;5;Utenze e canoni;4;Energia elettrica;08/07/2020
1971;11;9999999;172,33;1.458,17;ENEL ENERGIA SPA;77999756FD;SALDO Fatt.n. 004042291166  del 12/06/2020 MAGGIO 2020 - CONSUMI ILLUMINAZIONE PUBBLICA;06/07/2020;134;31;116;1;Spese correnti;3;Acquisto di beni e servizi;2;Acquisto di servizi;5;Utenze e canoni;4;Energia elettrica;08/07/2020
1971;12;9999999;229,76;1.458,17;ENEL ENERGIA SPA;77999756FD;SALDO Fatt.n. 004042291163  del 12/06/2020 MAGGIO 2020 - CONSUMI ILLUMINAZIONE PUBBLICA;06/07/2020;134;31;116;1;Spese correnti;3;Acquisto di beni e servizi;2;Acquisto di servizi;5;Utenze e canoni;4;Energia elettrica;08/07/2020
1971;13;9999999;462,89;1.458,17;ENEL ENERGIA SPA;77999756FD;SALDO Fatt.n. 004042291161  del 12/06/2020 MAGGIO 2020 - CONSUMI ILLUMINAZIONE PUBBLICA;06/07/2020;134;31;116;1;Spese correnti;3;Acquisto di beni e servizi;2;Acquisto di servizi;5;Utenze e canoni;4;Energia elettrica;08/07/2020
1972;1;9999999;62,1;417,02;ENEL ENERGIA SPA;77999756FD;SALDO Fatt.n. 004036202727  del 06/06/2020 MAGGIO 2020 - CONSUMI SC. ELEM. CALTANA;06/07/2020;1334;30;117;1;Spese correnti;3;Acquisto di beni e servizi;2;Acquisto di servizi;5;Utenze e canoni;4;Energia elettrica;08/07/2020
1972;2;9999999;91,77;417,02;ENEL ENERGIA SPA;77999756FD;SALDO Fatt.n. 004036202821  del 06/06/2020 MAGGIO 2020 - CONSUMI SC. ELEM. CASELLE;06/07/2020;1334;30;117;1;Spese correnti;3;Acquisto di beni e servizi;2;Acquisto di servizi;5;Utenze e canoni;4;Energia elettrica;08/07/2020
1972;3;9999999;94,35;417,02;ENEL ENERGIA SPA;77999756FD;SALDO Fatt.n. 004036202734  del 06/06/2020 MAGGIO 2020 - CONSUMI SC. ELEM. SMS;06/07/2020;1334;30;117;1;Spese correnti;3;Acquisto di beni e servizi;2;Acquisto di servizi;5;Utenze e canoni;4;Energia elettrica;08/07/2020
1972;4;9999999;168,8;417,02;ENEL ENERGIA SPA;77999756FD;SALDO Fatt.n. 004036202817  del 06/06/2020 MAGGIO 2020 - CONSUMI SCUOLA MEDIA SMS;06/07/2020;1334;30;117;1;Spese correnti;3;Acquisto di beni e servizi;2;Acquisto di servizi;5;Utenze e canoni;4;Energia elettrica;08/07/2020
1973;1;9999999;41;41;ENEL ENERGIA SPA;77999756FD;ACCONTO Fatt.n. 004036202783  del 06/06/2020 MAGGIO 2020 - CONSUMI SC. ELEM - PALESTRA - ASILO S.ANGELO;06/07/2020;1334;30;117;1;Spese correnti;3;Acquisto di beni e servizi;2;Acquisto di servizi;5;Utenze e canoni;4;Energia elettrica;08/07/2020
1974;1;9999999;124,28;124,28;ENEL ENERGIA SPA;77999756FD;ACCONTO Fatt.n. 004036202783  del 06/06/2020 MAGGIO 2020 - CONSUMI SC. ELEM - PALESTRA - ASILO S.ANGELO;06/07/2020;1334;30;117;1;Spese correnti;3;Acquisto di beni e servizi;2;Acquisto di servizi;5;Utenze e canoni;4;Energia elettrica;08/07/2020
1975;1;9999999;88,75;88,75;ENEL ENERGIA SPA;77999756FD;ACCONTO Fatt.n. 004036202822  del 06/06/2020 MAGGIO 2020 - CONSUMI PALESTRA SMS;06/07/2020;1334;30;117;1;Spese correnti;3;Acquisto di beni e servizi;2;Acquisto di servizi;5;Utenze e canoni;4;Energia elettrica;08/07/2020
1976;1;9999999;60,2;60,2;ENEL ENERGIA SPA;77999756FD;ACCONTO Fatt.n. 004036202792  del 06/06/2020 MAGGIO 2020 - CONSUMI ILLUMINAZIONE PUBBLICA;06/07/2020;1334;30;117;1;Spese correnti;3;Acquisto di beni e servizi;2;Acquisto di servizi;5;Utenze e canoni;4;Energia elettrica;08/07/2020
1977;1;9999999;40;40;ENEL ENERGIA SPA;77999756FD;ACCONTO Fatt.n. 004036202733  del 06/06/2020 MAGGIO 2020 - CONSUMI SC. ELEM - PALESTRA VETERNIGO;06/07/2020;1334;30;117;1;Spese correnti;3;Acquisto di beni e servizi;2;Acquisto di servizi;5;Utenze e canoni;4;Energia elettrica;08/07/2020
1978;1;9999999;67,68;67,68;ENEL ENERGIA SPA;77999756FD;ACCONTO Fatt.n. 004036202733  del 06/06/2020 MAGGIO 2020 - CONSUMI SC. ELEM - PALESTRA VETERNIGO;06/07/2020;1334;30;117;1;Spese correnti;3;Acquisto di beni e servizi;2;Acquisto di servizi;5;Utenze e canoni;4;Energia elettrica;08/07/2020
1979;1;9999999;40,01;40,01;ENEL ENERGIA SPA;77999756FD;ACCONTO Fatt.n. 004036202826  del 06/06/2020 MAGGIO 2020 - CONSUMI PALESTRA CASELLE;06/07/2020;1334;30;117;1;Spese correnti;3;Acquisto di beni e servizi;2;Acquisto di servizi;5;Utenze e canoni;4;Energia elettrica;08/07/2020
1980;1;9999999;38;38;ENEL ENERGIA SPA;77999756FD;ACCONTO Fatt.n. 004042291165  del 12/06/2020 MAGGIO 2020 - CONSUMI  SC. ELEM. - PALESTRA STIGLIANO;06/07/2020;1334;30;117;1;Spese correnti;3;Acquisto di beni e servizi;2;Acquisto di servizi;5;Utenze e canoni;4;Energia elettrica;08/07/2020
1981;1;9999999;33,81;33,81;ENEL ENERGIA SPA;77999756FD;ACCONTO Fatt.n. 004042291165  del 12/06/2020 MAGGIO 2020 - CONSUMI  SC. ELEM. - PALESTRA STIGLIANO;06/07/2020;1334;30;117;1;Spese correnti;3;Acquisto di beni e servizi;2;Acquisto di servizi;5;Utenze e canoni;4;Energia elettrica;08/07/2020
1982;1;9999999;35,78;35,78;ENEL ENERGIA SPA;77999756FD;SALDO Fatt.n. 004036202714  del 06/06/2020 MAGGIO 2020 - CONSUMI  IMP. SPORT. CASELLE;06/07/2020;1934;0;119;1;Spese correnti;3;Acquisto di beni e servizi;2;Acquisto di servizi;5;Utenze e canoni;4;Energia elettrica;08/07/2020
1983;1;9999999;19,93;19,93;ENEL ENERGIA SPA;77999756FD;SALDO Fatt.n. 004036202787  del 06/06/2020 MAGGIO 2020 - CONSUMI IMP. SPORT. SMS;06/07/2020;1934;0;119;1;Spese correnti;3;Acquisto di beni e servizi;2;Acquisto di servizi;5;Utenze e canoni;4;Energia elettrica;08/07/2020
1984;1;9999999;41;41;ENEL ENERGIA SPA;77999756FD;SALDO Fatt.n. 004036202783  del 06/06/2020 MAGGIO 2020 - CONSUMI SC. ELEM - PALESTRA - ASILO S.ANGELO;06/07/2020;1934;0;119;1;Spese correnti;3;Acquisto di beni e servizi;2;Acquisto di servizi;5;Utenze e canoni;4;Energia elettrica;08/07/2020
1985;1;9999999;88,75;88,75;ENEL ENERGIA SPA;77999756FD;SALDO Fatt.n. 004036202822  del 06/06/2020 MAGGIO 2020 - CONSUMI PALESTRA SMS;06/07/2020;1934;0;119;1;Spese correnti;3;Acquisto di beni e servizi;2;Acquisto di servizi;5;Utenze e canoni;4;Energia elettrica;08/07/2020
1986;1;9999999;60,2;60,2;ENEL ENERGIA SPA;77999756FD;SALDO Fatt.n. 004036202792  del 06/06/2020 MAGGIO 2020 - CONSUMI ILLUMINAZIONE PUBBLICA;06/07/2020;1934;0;119;1;Spese correnti;3;Acquisto di beni e servizi;2;Acquisto di servizi;5;Utenze e canoni;4;Energia elettrica;08/07/2020
1987;1;9999999;40;40;ENEL ENERGIA SPA;77999756FD;SALDO Fatt.n. 004036202733  del 06/06/2020 MAGGIO 2020 - CONSUMI SC. ELEM - PALESTRA VETERNIGO;06/07/2020;1934;0;119;1;Spese correnti;3;Acquisto di beni e servizi;2;Acquisto di servizi;5;Utenze e canoni;4;Energia elettrica;08/07/2020
1988;1;9999999;40,02;40,02;ENEL ENERGIA SPA;77999756FD;SALDO Fatt.n. 004036202826  del 06/06/2020 MAGGIO 2020 - CONSUMI PALESTRA CASELLE;06/07/2020;1934;0;119;1;Spese correnti;3;Acquisto di beni e servizi;2;Acquisto di servizi;5;Utenze e canoni;4;Energia elettrica;08/07/2020
1989;1;9999999;38;38;ENEL ENERGIA SPA;77999756FD;SALDO Fatt.n. 004042291165  del 12/06/2020 MAGGIO 2020 - CONSUMI  SC. ELEM. - PALESTRA STIGLIANO;06/07/2020;1934;0;119;1;Spese correnti;3;Acquisto di beni e servizi;2;Acquisto di servizi;5;Utenze e canoni;4;Energia elettrica;08/07/2020
1990;1;9999999;19,59;19,59;ENEL ENERGIA SPA;77999756FD;SALDO Fatt.n. 004036202760  del 06/06/2020 MAGGIO 2020 - CONSUMI  ECOCENTRO COMUNALE;06/07/2020;3534;0;121;1;Spese correnti;3;Acquisto di beni e servizi;2;Acquisto di servizi;5;Utenze e canoni;4;Energia elettrica;08/07/2020
1991;1;9999999;211,9;211,9;ENEL ENERGIA SPA;77999756FD;SALDO Fatt.n. 004036202846  del 06/06/2020 MAGGIO 2020 - CONSUMI ILLUMINAZIONE PUBBLICA;06/07/2020;3534;0;121;1;Spese correnti;3;Acquisto di beni e servizi;2;Acquisto di servizi;5;Utenze e canoni;4;Energia elettrica;08/07/2020
1992;1;9999999;-17,73;381,25;ENEL ENERGIA SPA;77999756FD;SALDO Fatt.n. 004036202833  del 06/06/2020 MAGGIO 2020 - NOTA DI ACCREDITO PER CONG. CONSUMI;06/07/2020;3544;0;124;1;Spese correnti;3;Acquisto di beni e servizi;2;Acquisto di servizi;15;Contratti di servizio pubblico;15;Contratti di servizio per l'illuminazione pubblica;08/07/2020
1992;2;9999999;398,98;381,25;ENEL ENERGIA SPA;77999756FD;SALDO Fatt.n. 004042291164  del 12/06/2020 MAGGIO 2020 - CONSUMI ILLUMINAZIONE PUBBLICA;06/07/2020;3544;0;124;1;Spese correnti;3;Acquisto di beni e servizi;2;Acquisto di servizi;15;Contratti di servizio pubblico;15;Contratti di servizio per l'illuminazione pubblica;08/07/2020
1993;1;9999999;5,28;990,4;ENEL ENERGIA SPA;77999756FD;SALDO Fatt.n. 004036202719  del 06/06/2020 MAGGIO 2020 - CONSUMI ILLUMINAZIONE PUBBLICA;06/07/2020;3544;0;124;1;Spese correnti;3;Acquisto di beni e servizi;2;Acquisto di servizi;15;Contratti di servizio pubblico;15;Contratti di servizio per l'illuminazione pubblica;08/07/2020
1993;2;9999999;6,06;990,4;ENEL ENERGIA SPA;7376631C76;SALDO Fatt.n. 004036202709  del 06/06/2020 MAGGIO 2020 - CONSUMI ILLUMINAZIONE PUBBLICA;06/07/2020;3544;0;124;1;Spese correnti;3;Acquisto di beni e servizi;2;Acquisto di servizi;15;Contratti di servizio pubblico;15;Contratti di servizio per l'illuminazione pubblica;08/07/2020
1993;3;9999999;33,1;990,4;ENEL ENERGIA SPA;77999756FD;SALDO Fatt.n. 004036202711  del 06/06/2020 MAGGIO 2020 - CONSUMI ILLUMINAZIONE PUBBLICA;06/07/2020;3544;0;124;1;Spese correnti;3;Acquisto di beni e servizi;2;Acquisto di servizi;15;Contratti di servizio pubblico;15;Contratti di servizio per l'illuminazione pubblica;08/07/2020
1993;4;9999999;60,57;990,4;ENEL ENERGIA SPA;77999756FD;SALDO Fatt.n. 004036202720  del 06/06/2020 MAGGIO 2020 - CONSUMI ILLUMINAZIONE PUBBLICA;06/07/2020;3544;0;124;1;Spese correnti;3;Acquisto di beni e servizi;2;Acquisto di servizi;15;Contratti di servizio pubblico;15;Contratti di servizio per l'illuminazione pubblica;08/07/2020
1993;5;9999999;61,66;990,4;ENEL ENERGIA SPA;77999756FD;SALDO Fatt.n. 004036202712  del 06/06/2020 MAGGIO 2020 - CONSUMI ILLUMINAZIONE PUBBLICA;06/07/2020;3544;0;124;1;Spese correnti;3;Acquisto di beni e servizi;2;Acquisto di servizi;15;Contratti di servizio pubblico;15;Contratti di servizio per l'illuminazione pubblica;08/07/2020
1993;6;9999999;97,26;990,4;ENEL ENERGIA SPA;77999756FD;SALDO Fatt.n. 004036202721  del 06/06/2020 MAGGIO 2020 - CONSUMI ILLUMINAZIONE PUBBLICA;06/07/2020;3544;0;124;1;Spese correnti;3;Acquisto di beni e servizi;2;Acquisto di servizi;15;Contratti di servizio pubblico;15;Contratti di servizio per l'illuminazione pubblica;08/07/2020
1993;7;9999999;97,26;990,4;ENEL ENERGIA SPA;77999756FD;SALDO Fatt.n. 004036202715  del 06/06/2020 MAGGIO 2020 - CONSUMI ILLUMINAZIONE PUBBLICA;06/07/2020;3544;0;124;1;Spese correnti;3;Acquisto di beni e servizi;2;Acquisto di servizi;15;Contratti di servizio pubblico;15;Contratti di servizio per l'illuminazione pubblica;08/07/2020
1993;8;9999999;99,37;990,4;ENEL ENERGIA SPA;77999756FD;SALDO Fatt.n. 004036202718  del 06/06/2020 MAGGIO 2020 - CONSUMI ILLUMINAZIONE PUBBLICA;06/07/2020;3544;0;124;1;Spese correnti;3;Acquisto di beni e servizi;2;Acquisto di servizi;15;Contratti di servizio pubblico;15;Contratti di servizio per l'illuminazione pubblica;08/07/2020
1993;9;9999999;232,97;990,4;ENEL ENERGIA SPA;77999756FD;SALDO Fatt.n. 004036202717  del 06/06/2020 MAGGIO 2020 - CONSUMI ILLUMINAZIONE PUBBLICA;06/07/2020;3544;0;124;1;Spese correnti;3;Acquisto di beni e servizi;2;Acquisto di servizi;15;Contratti di servizio pubblico;15;Contratti di servizio per l'illuminazione pubblica;08/07/2020
1993;10;9999999;296,87;990,4;ENEL ENERGIA SPA;77999756FD;SALDO Fatt.n. 004036202722  del 06/06/2020 MAGGIO 2020 - CONSUMI ILLUMINAZIONE PUBBLICA;06/07/2020;3544;0;124;1;Spese correnti;3;Acquisto di beni e servizi;2;Acquisto di servizi;15;Contratti di servizio pubblico;15;Contratti di servizio per l'illuminazione pubblica;08/07/2020
1994;1;9999999;11,96;1.600,54;ENEL ENERGIA SPA;77999756FD;SALDO Fatt.n. 004036202735  del 06/06/2020 MAGGIO 2020 - CONSUMI ILLUMINAZIONE PUBBLICA;06/07/2020;3544;0;124;1;Spese correnti;3;Acquisto di beni e servizi;2;Acquisto di servizi;15;Contratti di servizio pubblico;15;Contratti di servizio per l'illuminazione pubblica;08/07/2020
1994;2;9999999;25,72;1.600,54;ENEL ENERGIA SPA;77999756FD;SALDO Fatt.n. 004036202723  del 06/06/2020 MAGGIO 2020 - CONSUMI ILLUMINAZIONE PUBBLICA;06/07/2020;3544;0;124;1;Spese correnti;3;Acquisto di beni e servizi;2;Acquisto di servizi;15;Contratti di servizio pubblico;15;Contratti di servizio per l'illuminazione pubblica;08/07/2020
1994;3;9999999;27,73;1.600,54;ENEL ENERGIA SPA;77999756FD;SALDO Fatt.n. 004036202732  del 06/06/2020 MAGGIO 2020 - CONSUMI ILLUMINAZIONE PUBBLICA;06/07/2020;3544;0;124;1;Spese correnti;3;Acquisto di beni e servizi;2;Acquisto di servizi;15;Contratti di servizio pubblico;15;Contratti di servizio per l'illuminazione pubblica;08/07/2020
1994;4;9999999;38,17;1.600,54;ENEL ENERGIA SPA;77999756FD;SALDO Fatt.n. 004036202729  del 06/06/2020 MAGGIO 2020 - CONSUMI ILLUMINAZIONE PUBBLICA;06/07/2020;3544;0;124;1;Spese correnti;3;Acquisto di beni e servizi;2;Acquisto di servizi;15;Contratti di servizio pubblico;15;Contratti di servizio per l'illuminazione pubblica;08/07/2020
1994;5;9999999;66,23;1.600,54;ENEL ENERGIA SPA;77999756FD;SALDO Fatt.n. 004036202730  del 06/06/2020 MAGGIO 2020 - CONSUMI ILLUMINAZIONE PUBBLICA;06/07/2020;3544;0;124;1;Spese correnti;3;Acquisto di beni e servizi;2;Acquisto di servizi;15;Contratti di servizio pubblico;15;Contratti di servizio per l'illuminazione pubblica;08/07/2020
1994;6;9999999;100,86;1.600,54;ENEL ENERGIA SPA;77999756FD;SALDO Fatt.n. 004036202731  del 06/06/2020 MAGGIO 2020 - CONSUMI ILLUMINAZIONE PUBBLICA;06/07/2020;3544;0;124;1;Spese correnti;3;Acquisto di beni e servizi;2;Acquisto di servizi;15;Contratti di servizio pubblico;15;Contratti di servizio per l'illuminazione pubblica;08/07/2020
1994;7;9999999;238,16;1.600,54;ENEL ENERGIA SPA;77999756FD;SALDO Fatt.n. 004036202736  del 06/06/2020 MAGGIO 2020 - CONSUMI ILLUMINAZIONE PUBBLICA;06/07/2020;3544;0;124;1;Spese correnti;3;Acquisto di beni e servizi;2;Acquisto di servizi;15;Contratti di servizio pubblico;15;Contratti di servizio per l'illuminazione pubblica;08/07/2020
1994;8;9999999;266,06;1.600,54;ENEL ENERGIA SPA;77999756FD;SALDO Fatt.n. 004036202724  del 06/06/2020 MAGGIO 2020 - CONSUMI ILLUMINAZIONE PUBBLICA;06/07/2020;3544;0;124;1;Spese correnti;3;Acquisto di beni e servizi;2;Acquisto di servizi;15;Contratti di servizio pubblico;15;Contratti di servizio per l'illuminazione pubblica;08/07/2020
1994;9;9999999;379,86;1.600,54;ENEL ENERGIA SPA;77999756FD;SALDO Fatt.n. 004036202728  del 06/06/2020 MAGGIO 2020 - CONSUMI ILLUMINAZIONE PUBBLICA;06/07/2020;3544;0;124;1;Spese correnti;3;Acquisto di beni e servizi;2;Acquisto di servizi;15;Contratti di servizio pubblico;15;Contratti di servizio per l'illuminazione pubblica;08/07/2020
1994;10;9999999;445,79;1.600,54;ENEL ENERGIA SPA;77999756FD;SALDO Fatt.n. 004036202726  del 06/06/2020 MAGGIO 2020 - CONSUMI ILLUMINAZIONE PUBBLICA;06/07/2020;3544;0;124;1;Spese correnti;3;Acquisto di beni e servizi;2;Acquisto di servizi;15;Contratti di servizio pubblico;15;Contratti di servizio per l'illuminazione pubblica;08/07/2020
1995;1;9999999;8,86;930,75;ENEL ENERGIA SPA;77999756FD;SALDO Fatt.n. 004036202739  del 06/06/2020 MAGGIO 2020 - CONSUMI ILLUMINAZIONE PUBBLICA;06/07/2020;3544;0;124;1;Spese correnti;3;Acquisto di beni e servizi;2;Acquisto di servizi;15;Contratti di servizio pubblico;15;Contratti di servizio per l'illuminazione pubblica;08/07/2020
1995;2;9999999;10,07;930,75;ENEL ENERGIA SPA;77999756FD;SALDO Fatt.n. 004036202742  del 06/06/2020 MAGGIO 2020 - CONSUMI ILLUMINAZIONE PUBBLICA;06/07/2020;3544;0;124;1;Spese correnti;3;Acquisto di beni e servizi;2;Acquisto di servizi;15;Contratti di servizio pubblico;15;Contratti di servizio per l'illuminazione pubblica;08/07/2020
1995;3;9999999;10,7;930,75;ENEL ENERGIA SPA;77999756FD;SALDO Fatt.n. 004036202745  del 06/06/2020 MAGGIO 2020 - CONSUMI ILLUMINAZIONE PUBBLICA;06/07/2020;3544;0;124;1;Spese correnti;3;Acquisto di beni e servizi;2;Acquisto di servizi;15;Contratti di servizio pubblico;15;Contratti di servizio per l'illuminazione pubblica;08/07/2020
1995;4;9999999;17,65;930,75;ENEL ENERGIA SPA;77999756FD;SALDO Fatt.n. 004036202743  del 06/06/2020 MAGGIO 2020 - CONSUMI ILLUMINAZIONE PUBBLICA;06/07/2020;3544;0;124;1;Spese correnti;3;Acquisto di beni e servizi;2;Acquisto di servizi;15;Contratti di servizio pubblico;15;Contratti di servizio per l'illuminazione pubblica;08/07/2020
1995;5;9999999;19,52;930,75;ENEL ENERGIA SPA;77999756FD;SALDO Fatt.n. 004036202740  del 06/06/2020 MAGGIO 2020 - CONSUMI ILLUMINAZIONE PUBBLICA;06/07/2020;3544;0;124;1;Spese correnti;3;Acquisto di beni e servizi;2;Acquisto di servizi;15;Contratti di servizio pubblico;15;Contratti di servizio per l'illuminazione pubblica;08/07/2020
1995;6;9999999;38,72;930,75;ENEL ENERGIA SPA;77999756FD;SALDO Fatt.n. 004036202737  del 06/06/2020 MAGGIO 2020 - CONSUMI ILLUMINAZIONE PUBBLICA;06/07/2020;3544;0;124;1;Spese correnti;3;Acquisto di beni e servizi;2;Acquisto di servizi;15;Contratti di servizio pubblico;15;Contratti di servizio per l'illuminazione pubblica;08/07/2020
1995;7;9999999;121,39;930,75;ENEL ENERGIA SPA;77999756FD;SALDO Fatt.n. 004036202746  del 06/06/2020 MAGGIO 2020 - CONSUMI ILLUMINAZIONE PUBBLICA;06/07/2020;3544;0;124;1;Spese correnti;3;Acquisto di beni e servizi;2;Acquisto di servizi;15;Contratti di servizio pubblico;15;Contratti di servizio per l'illuminazione pubblica;08/07/2020
1995;8;9999999;129,76;930,75;ENEL ENERGIA SPA;77999756FD;SALDO Fatt.n. 004036202744  del 06/06/2020 MAGGIO 2020 - CONSUMI ILLUMINAZIONE PUBBLICA;06/07/2020;3544;0;124;1;Spese correnti;3;Acquisto di beni e servizi;2;Acquisto di servizi;15;Contratti di servizio pubblico;15;Contratti di servizio per l'illuminazione pubblica;08/07/2020
1995;9;9999999;166,92;930,75;ENEL ENERGIA SPA;77999756FD;SALDO Fatt.n. 004036202741  del 06/06/2020 MAGGIO 2020 - CONSUMI ILLUMINAZIONE PUBBLICA;06/07/2020;3544;0;124;1;Spese correnti;3;Acquisto di beni e servizi;2;Acquisto di servizi;15;Contratti di servizio pubblico;15;Contratti di servizio per l'illuminazione pubblica;08/07/2020
1995;10;9999999;407,16;930,75;ENEL ENERGIA SPA;77999756FD;SALDO Fatt.n. 004036202738  del 06/06/2020 MAGGIO 2020 - CONSUMI ILLUMINAZIONE PUBBLICA;06/07/2020;3544;0;124;1;Spese correnti;3;Acquisto di beni e servizi;2;Acquisto di servizi;15;Contratti di servizio pubblico;15;Contratti di servizio per l'illuminazione pubblica;08/07/2020
1996;1;9999999;6,09;1.191,72;ENEL ENERGIA SPA;77999756FD;SALDO Fatt.n. 004036202752  del 06/06/2020 MAGGIO 2020 - CONSUMI ILLUMINAZIONE PUBBLICA;06/07/2020;3544;0;124;1;Spese correnti;3;Acquisto di beni e servizi;2;Acquisto di servizi;15;Contratti di servizio pubblico;15;Contratti di servizio per l'illuminazione pubblica;08/07/2020
1996;2;9999999;33,56;1.191,72;ENEL ENERGIA SPA;77999756FD;SALDO Fatt.n. 004036202761  del 06/06/2020 MAGGIO 2020 - CONSUMI ILLUMINAZIONE PUBBLICA;06/07/2020;3544;0;124;1;Spese correnti;3;Acquisto di beni e servizi;2;Acquisto di servizi;15;Contratti di servizio pubblico;15;Contratti di servizio per l'illuminazione pubblica;08/07/2020
1996;3;9999999;56,83;1.191,72;ENEL ENERGIA SPA;77999756FD;SALDO Fatt.n. 004036202754  del 06/06/2020 MAGGIO 2020 - CONSUMI ILLUMINAZIONE PUBBLICA;06/07/2020;3544;0;124;1;Spese correnti;3;Acquisto di beni e servizi;2;Acquisto di servizi;15;Contratti di servizio pubblico;15;Contratti di servizio per l'illuminazione pubblica;08/07/2020
1996;4;9999999;73,43;1.191,72;ENEL ENERGIA SPA;77999756FD;SALDO Fatt.n. 004036202749  del 06/06/2020 MAGGIO 2020 - CONSUMI ILLUMINAZIONE PUBBLICA;06/07/2020;3544;0;124;1;Spese correnti;3;Acquisto di beni e servizi;2;Acquisto di servizi;15;Contratti di servizio pubblico;15;Contratti di servizio per l'illuminazione pubblica;08/07/2020
1996;5;9999999;82;1.191,72;ENEL ENERGIA SPA;77999756FD;SALDO Fatt.n. 004036202753  del 06/06/2020 MAGGIO 2020 - CONSUMI ILLUMINAZIONE PUBBLICA;06/07/2020;3544;0;124;1;Spese correnti;3;Acquisto di beni e servizi;2;Acquisto di servizi;15;Contratti di servizio pubblico;15;Contratti di servizio per l'illuminazione pubblica;08/07/2020
1996;6;9999999;86;1.191,72;ENEL ENERGIA SPA;77999756FD;SALDO Fatt.n. 004036202751  del 06/06/2020 MAGGIO 2020 - CONSUMI ILLUMINAZIONE PUBBLICA;06/07/2020;3544;0;124;1;Spese correnti;3;Acquisto di beni e servizi;2;Acquisto di servizi;15;Contratti di servizio pubblico;15;Contratti di servizio per l'illuminazione pubblica;08/07/2020
1996;7;9999999;134,63;1.191,72;ENEL ENERGIA SPA;77999756FD;SALDO Fatt.n. 004036202750  del 06/06/2020 MAGGIO 2020 - CONSUMI ILLUMINAZIONE PUBBLICA;06/07/2020;3544;0;124;1;Spese correnti;3;Acquisto di beni e servizi;2;Acquisto di servizi;15;Contratti di servizio pubblico;15;Contratti di servizio per l'illuminazione pubblica;08/07/2020
1996;8;9999999;195,63;1.191,72;ENEL ENERGIA SPA;77999756FD;SALDO Fatt.n. 004036202758  del 06/06/2020 MAGGIO 2020 - CONSUMI ILLUMINAZIONE PUBBLICA;06/07/2020;3544;0;124;1;Spese correnti;3;Acquisto di beni e servizi;2;Acquisto di servizi;15;Contratti di servizio pubblico;15;Contratti di servizio per l'illuminazione pubblica;08/07/2020
1996;9;9999999;228,91;1.191,72;ENEL ENERGIA SPA;77999756FD;SALDO Fatt.n. 004036202757  del 06/06/2020 MAGGIO 2020 - CONSUMI ILLUMINAZIONE PUBBLICA;06/07/2020;3544;0;124;1;Spese correnti;3;Acquisto di beni e servizi;2;Acquisto di servizi;15;Contratti di servizio pubblico;15;Contratti di servizio per l'illuminazione pubblica;08/07/2020
1996;10;9999999;294,64;1.191,72;ENEL ENERGIA SPA;77999756FD;SALDO Fatt.n. 004036202755  del 06/06/2020 MAGGIO 2020 - CONSUMI ILLUMINAZIONE PUBBLICA;06/07/2020;3544;0;124;1;Spese correnti;3;Acquisto di beni e servizi;2;Acquisto di servizi;15;Contratti di servizio pubblico;15;Contratti di servizio per l'illuminazione pubblica;08/07/2020
1997;1;9999999;15,86;1.558,68;ENEL ENERGIA SPA;77999756FD;SALDO Fatt.n. 004036202769  del 06/06/2020 MAGGIO 2020 - CONSUMI ILLUMINAZIONE PUBBLICA;06/07/2020;3544;0;124;1;Spese correnti;3;Acquisto di beni e servizi;2;Acquisto di servizi;15;Contratti di servizio pubblico;15;Contratti di servizio per l'illuminazione pubblica;08/07/2020
1997;2;9999999;21,2;1.558,68;ENEL ENERGIA SPA;77999756FD;SALDO Fatt.n. 004036202764  del 06/06/2020 MAGGIO 2020 - CONSUMI ILLUMINAZIONE PUBBLICA;06/07/2020;3544;0;124;1;Spese correnti;3;Acquisto di beni e servizi;2;Acquisto di servizi;15;Contratti di servizio pubblico;15;Contratti di servizio per l'illuminazione pubblica;08/07/2020
1997;3;9999999;30,83;1.558,68;ENEL ENERGIA SPA;77999756FD;SALDO Fatt.n. 004036202766  del 06/06/2020 MAGGIO 2020 - CONSUMI ILLUMINAZIONE PUBBLICA;06/07/2020;3544;0;124;1;Spese correnti;3;Acquisto di beni e servizi;2;Acquisto di servizi;15;Contratti di servizio pubblico;15;Contratti di servizio per l'illuminazione pubblica;08/07/2020
1997;4;9999999;46,56;1.558,68;ENEL ENERGIA SPA;77999756FD;SALDO Fatt.n. 004036202773  del 06/06/2020 MAGGIO 2020 - CONSUMI ILLUMINAZIONE PUBBLICA;06/07/2020;3544;0;124;1;Spese correnti;3;Acquisto di beni e servizi;2;Acquisto di servizi;15;Contratti di servizio pubblico;15;Contratti di servizio per l'illuminazione pubblica;08/07/2020
1997;5;9999999;111,3;1.558,68;ENEL ENERGIA SPA;77999756FD;SALDO Fatt.n. 004036202768  del 06/06/2020 MAGGIO 2020 - CONSUMI ILLUMINAZIONE PUBBLICA;06/07/2020;3544;0;124;1;Spese correnti;3;Acquisto di beni e servizi;2;Acquisto di servizi;15;Contratti di servizio pubblico;15;Contratti di servizio per l'illuminazione pubblica;08/07/2020
1997;6;9999999;123,76;1.558,68;ENEL ENERGIA SPA;77999756FD;SALDO Fatt.n. 004036202771  del 06/06/2020 MAGGIO 2020 - CONSUMI ILLUMINAZIONE PUBBLICA;06/07/2020;3544;0;124;1;Spese correnti;3;Acquisto di beni e servizi;2;Acquisto di servizi;15;Contratti di servizio pubblico;15;Contratti di servizio per l'illuminazione pubblica;08/07/2020
1997;7;9999999;137,53;1.558,68;ENEL ENERGIA SPA;77999756FD;SALDO Fatt.n. 004036202772  del 06/06/2020 MAGGIO 2020 - CONSUMI ILLUMINAZIONE PUBBLICA;06/07/2020;3544;0;124;1;Spese correnti;3;Acquisto di beni e servizi;2;Acquisto di servizi;15;Contratti di servizio pubblico;15;Contratti di servizio per l'illuminazione pubblica;08/07/2020
1997;8;9999999;170,3;1.558,68;ENEL ENERGIA SPA;77999756FD;SALDO Fatt.n. 004036202774  del 06/06/2020 MAGGIO 2020 - CONSUMI ILLUMINAZIONE PUBBLICA;06/07/2020;3544;0;124;1;Spese correnti;3;Acquisto di beni e servizi;2;Acquisto di servizi;15;Contratti di servizio pubblico;15;Contratti di servizio per l'illuminazione pubblica;08/07/2020
1997;9;9999999;342,8;1.558,68;ENEL ENERGIA SPA;77999756FD;SALDO Fatt.n. 004036202763  del 06/06/2020 MAGGIO 2020 - CONSUMI ILLUMINAZIONE PUBBLICA;06/07/2020;3544;0;124;1;Spese correnti;3;Acquisto di beni e servizi;2;Acquisto di servizi;15;Contratti di servizio pubblico;15;Contratti di servizio per l'illuminazione pubblica;08/07/2020
1997;10;9999999;558,54;1.558,68;ENEL ENERGIA SPA;77999756FD;SALDO Fatt.n. 004036202770  del 06/06/2020 MAGGIO 2020 - CONSUMI ILLUMINAZIONE PUBBLICA;06/07/2020;3544;0;124;1;Spese correnti;3;Acquisto di beni e servizi;2;Acquisto di servizi;15;Contratti di servizio pubblico;15;Contratti di servizio per l'illuminazione pubblica;08/07/2020
1998;1;9999999;2,5;2.408,60;ENEL ENERGIA SPA;77999756FD;SALDO Fatt.n. 004036202785  del 06/06/2020 MAGGIO 2020 - CONSUMI ILLUMINAZIONE PUBBLICA;06/07/2020;3544;0;124;1;Spese correnti;3;Acquisto di beni e servizi;2;Acquisto di servizi;15;Contratti di servizio pubblico;15;Contratti di servizio per l'illuminazione pubblica;08/07/2020
1998;2;9999999;10,07;2.408,60;ENEL ENERGIA SPA;77999756FD;SALDO Fatt.n. 004036202777  del 06/06/2020 MAGGIO 2020 - CONSUMI ILLUMINAZIONE PUBBLICA;06/07/2020;3544;0;124;1;Spese correnti;3;Acquisto di beni e servizi;2;Acquisto di servizi;15;Contratti di servizio pubblico;15;Contratti di servizio per l'illuminazione pubblica;08/07/2020
1998;3;9999999;40,26;2.408,60;ENEL ENERGIA SPA;77999756FD;SALDO Fatt.n. 004036202781  del 06/06/2020  MAGGIO 2020 - CONSUMI ILLUMINAZIONE PUBBLICA;06/07/2020;3544;0;124;1;Spese correnti;3;Acquisto di beni e servizi;2;Acquisto di servizi;15;Contratti di servizio pubblico;15;Contratti di servizio per l'illuminazione pubblica;08/07/2020
1998;4;9999999;41,93;2.408,60;ENEL ENERGIA SPA;77999756FD;SALDO Fatt.n. 004036202780  del 06/06/2020 MAGGIO 2020 - CONSUMI ILLUMINAZIONE PUBBLICA;06/07/2020;3544;0;124;1;Spese correnti;3;Acquisto di beni e servizi;2;Acquisto di servizi;15;Contratti di servizio pubblico;15;Contratti di servizio per l'illuminazione pubblica;08/07/2020
1998;5;9999999;60,19;2.408,60;ENEL ENERGIA SPA;77999756FD;SALDO Fatt.n. 004036202776  del 06/06/2020 MAGGIO 2020 - CONSUMI ILLUMINAZIONE PUBBLICA;06/07/2020;3544;0;124;1;Spese correnti;3;Acquisto di beni e servizi;2;Acquisto di servizi;15;Contratti di servizio pubblico;15;Contratti di servizio per l'illuminazione pubblica;08/07/2020
1998;6;9999999;175,88;2.408,60;ENEL ENERGIA SPA;77999756FD;SALDO Fatt.n. 004036202778  del 06/06/2020 MAGGIO 2020 - CONSUMI ILLUMINAZIONE PUBBLICA;06/07/2020;3544;0;124;1;Spese correnti;3;Acquisto di beni e servizi;2;Acquisto di servizi;15;Contratti di servizio pubblico;15;Contratti di servizio per l'illuminazione pubblica;08/07/2020
1998;7;9999999;277,42;2.408,60;ENEL ENERGIA SPA;77999756FD;SALDO Fatt.n. 004036202782  del 06/06/2020 MAGGIO 2020 - CONSUMI ILLUMINAZIONE PUBBLICA;06/07/2020;3544;0;124;1;Spese correnti;3;Acquisto di beni e servizi;2;Acquisto di servizi;15;Contratti di servizio pubblico;15;Contratti di servizio per l'illuminazione pubblica;08/07/2020
1998;8;9999999;499,44;2.408,60;ENEL ENERGIA SPA;77999756FD;SALDO Fatt.n. 004036202779  del 06/06/2020 MAGGIO 2020 - CONSUMI ILLUMINAZIONE PUBBLICA;06/07/2020;3544;0;124;1;Spese correnti;3;Acquisto di beni e servizi;2;Acquisto di servizi;15;Contratti di servizio pubblico;15;Contratti di servizio per l'illuminazione pubblica;08/07/2020
1998;9;9999999;557,72;2.408,60;ENEL ENERGIA SPA;77999756FD;SALDO Fatt.n. 004036202775  del 06/06/2020 MAGGIO 2020 - CONSUMI ILLUMINAZIONE PUBBLICA;06/07/2020;3544;0;124;1;Spese correnti;3;Acquisto di beni e servizi;2;Acquisto di servizi;15;Contratti di servizio pubblico;15;Contratti di servizio per l'illuminazione pubblica;08/07/2020
1998;10;9999999;743,19;2.408,60;ENEL ENERGIA SPA;77999756FD;SALDO Fatt.n. 004036202784  del 06/06/2020  MAGGIO 2020 - CONSUMI ILLUMINAZIONE PUBBLICA;06/07/2020;3544;0;124;1;Spese correnti;3;Acquisto di beni e servizi;2;Acquisto di servizi;15;Contratti di servizio pubblico;15;Contratti di servizio per l'illuminazione pubblica;08/07/2020
1999;1;9999999;10,7;957,11;ENEL ENERGIA SPA;77999756FD;SALDO Fatt.n. 004036202794  del 06/06/2020 MAGGIO 2020 - CONSUMI ILLUMINAZIONE PUBBLICA;06/07/2020;3544;0;124;1;Spese correnti;3;Acquisto di beni e servizi;2;Acquisto di servizi;15;Contratti di servizio pubblico;15;Contratti di servizio per l'illuminazione pubblica;08/07/2020
1999;2;9999999;20,95;957,11;ENEL ENERGIA SPA;77999756FD;SALDO Fatt.n. 004036202797  del 06/06/2020 MAGGIO 2020 - CONSUMI ILLUMINAZIONE PUBBLICA;06/07/2020;3544;0;124;1;Spese correnti;3;Acquisto di beni e servizi;2;Acquisto di servizi;15;Contratti di servizio pubblico;15;Contratti di servizio per l'illuminazione pubblica;08/07/2020
1999;3;9999999;22,24;957,11;ENEL ENERGIA SPA;77999756FD;SALDO Fatt.n. 004036202791  del 06/06/2020 MAGGIO 2020 - CONSUMI ILLUMINAZIONE PUBBLICA;06/07/2020;3544;0;124;1;Spese correnti;3;Acquisto di beni e servizi;2;Acquisto di servizi;15;Contratti di servizio pubblico;15;Contratti di servizio per l'illuminazione pubblica;08/07/2020
1999;4;9999999;22,83;957,11;ENEL ENERGIA SPA;77999756FD;SALDO Fatt.n. 004036202788  del 06/06/2020 MAGGIO 2020 - CONSUMI ILLUMINAZIONE PUBBLICA;06/07/2020;3544;0;124;1;Spese correnti;3;Acquisto di beni e servizi;2;Acquisto di servizi;15;Contratti di servizio pubblico;15;Contratti di servizio per l'illuminazione pubblica;08/07/2020
1999;5;9999999;31,5;957,11;ENEL ENERGIA SPA;77999756FD;SALDO Fatt.n. 004036202796  del 06/06/2020 MAGGIO 2020 - CONSUMI ILLUMINAZIONE PUBBLICA;06/07/2020;3544;0;124;1;Spese correnti;3;Acquisto di beni e servizi;2;Acquisto di servizi;15;Contratti di servizio pubblico;15;Contratti di servizio per l'illuminazione pubblica;08/07/2020
1999;6;9999999;83,05;957,11;ENEL ENERGIA SPA;77999756FD;SALDO Fatt.n. 004036202790  del 06/06/2020 MAGGIO 2020 - CONSUMI ILLUMINAZIONE PUBBLICA;06/07/2020;3544;0;124;1;Spese correnti;3;Acquisto di beni e servizi;2;Acquisto di servizi;15;Contratti di servizio pubblico;15;Contratti di servizio per l'illuminazione pubblica;08/07/2020
1999;7;9999999;85,1;957,11;ENEL ENERGIA SPA;77999756FD;SALDO Fatt.n. 004036202793  del 06/06/2020 MAGGIO 2020 - CONSUMI ILLUMINAZIONE PUBBLICA;06/07/2020;3544;0;124;1;Spese correnti;3;Acquisto di beni e servizi;2;Acquisto di servizi;15;Contratti di servizio pubblico;15;Contratti di servizio per l'illuminazione pubblica;08/07/2020
1999;8;9999999;94,16;957,11;ENEL ENERGIA SPA;77999756FD;SALDO Fatt.n. 004036202795  del 06/06/2020 MAGGIO 2020 - CONSUMI ILLUMINAZIONE PUBBLICA;06/07/2020;3544;0;124;1;Spese correnti;3;Acquisto di beni e servizi;2;Acquisto di servizi;15;Contratti di servizio pubblico;15;Contratti di servizio per l'illuminazione pubblica;08/07/2020
1999;9;9999999;261,41;957,11;ENEL ENERGIA SPA;77999756FD;SALDO Fatt.n. 004036202786  del 06/06/2020 MAGGIO 2020 - CONSUMI ILLUMINAZIONE PUBBLICA;06/07/2020;3544;0;124;1;Spese correnti;3;Acquisto di beni e servizi;2;Acquisto di servizi;15;Contratti di servizio pubblico;15;Contratti di servizio per l'illuminazione pubblica;08/07/2020
1999;10;9999999;325,17;957,11;ENEL ENERGIA SPA;77999756FD;SALDO Fatt.n. 004036202789  del 06/06/2020 MAGGIO 2020 - CONSUMI ILLUMINAZIONE PUBBLICA;06/07/2020;3544;0;124;1;Spese correnti;3;Acquisto di beni e servizi;2;Acquisto di servizi;15;Contratti di servizio pubblico;15;Contratti di servizio per l'illuminazione pubblica;08/07/2020
2000;1;9999999;7,16;697,24;ENEL ENERGIA SPA;77999756FD;SALDO Fatt.n. 004036202805  del 06/06/2020 MAGGIO 2020 - CONSUMI ILLUMINAZIONE PUBBLICA;06/07/2020;3544;0;124;1;Spese correnti;3;Acquisto di beni e servizi;2;Acquisto di servizi;15;Contratti di servizio pubblico;15;Contratti di servizio per l'illuminazione pubblica;08/07/2020
2000;2;9999999;10,7;697,24;ENEL ENERGIA SPA;77999756FD;SALDO Fatt.n. 004036202803  del 06/06/2020 MAGGIO 2020 - CONSUMI ILLUMINAZIONE PUBBLICA;06/07/2020;3544;0;124;1;Spese correnti;3;Acquisto di beni e servizi;2;Acquisto di servizi;15;Contratti di servizio pubblico;15;Contratti di servizio per l'illuminazione pubblica;08/07/2020
2000;3;9999999;18,91;697,24;ENEL ENERGIA SPA;77999756FD;SALDO Fatt.n. 004036202806  del 06/06/2020 MAGGIO 2020 - CONSUMI ILLUMINAZIONE PUBBLICA;06/07/2020;3544;0;124;1;Spese correnti;3;Acquisto di beni e servizi;2;Acquisto di servizi;15;Contratti di servizio pubblico;15;Contratti di servizio per l'illuminazione pubblica;08/07/2020
2000;4;9999999;39,87;697,24;ENEL ENERGIA SPA;77999756FD;SALDO Fatt.n. 004036202800  del 06/06/2020 MAGGIO 2020 - CONSUMI ILLUMINAZIONE PUBBLICA;06/07/2020;3544;0;124;1;Spese correnti;3;Acquisto di beni e servizi;2;Acquisto di servizi;15;Contratti di servizio pubblico;15;Contratti di servizio per l'illuminazione pubblica;08/07/2020
2000;5;9999999;43,63;697,24;ENEL ENERGIA SPA;77999756FD;SALDO Fatt.n. 004036202808  del 06/06/2020 MAGGIO 2020 - CONSUMI ILLUMINAZIONE PUBBLICA;06/07/2020;3544;0;124;1;Spese correnti;3;Acquisto di beni e servizi;2;Acquisto di servizi;15;Contratti di servizio pubblico;15;Contratti di servizio per l'illuminazione pubblica;08/07/2020
2000;6;9999999;63,1;697,24;ENEL ENERGIA SPA;77999756FD;SALDO Fatt.n. 004036202804  del 06/06/2020 MAGGIO 2020 - CONSUMI ILLUMINAZIONE PUBBLICA;06/07/2020;3544;0;124;1;Spese correnti;3;Acquisto di beni e servizi;2;Acquisto di servizi;15;Contratti di servizio pubblico;15;Contratti di servizio per l'illuminazione pubblica;08/07/2020
2000;7;9999999;67,05;697,24;ENEL ENERGIA SPA;77999756FD;SALDO Fatt.n. 004036202809  del 06/06/2020 MAGGIO 2020 - CONSUMI ILLUMINAZIONE PUBBLICA;06/07/2020;3544;0;124;1;Spese correnti;3;Acquisto di beni e servizi;2;Acquisto di servizi;15;Contratti di servizio pubblico;15;Contratti di servizio per l'illuminazione pubblica;08/07/2020
2000;8;9999999;89,72;697,24;ENEL ENERGIA SPA;77999756FD;SALDO Fatt.n. 004036202798  del 06/06/2020 MAGGIO 2020 - CONSUMI ILLUMINAZIONE PUBBLICA;06/07/2020;3544;0;124;1;Spese correnti;3;Acquisto di beni e servizi;2;Acquisto di servizi;15;Contratti di servizio pubblico;15;Contratti di servizio per l'illuminazione pubblica;08/07/2020
2000;9;9999999;178,46;697,24;ENEL ENERGIA SPA;77999756FD;SALDO Fatt.n. 004036202802  del 06/06/2020 MAGGIO 2020 - CONSUMI ILLUMINAZIONE PUBBLICA;06/07/2020;3544;0;124;1;Spese correnti;3;Acquisto di beni e servizi;2;Acquisto di servizi;15;Contratti di servizio pubblico;15;Contratti di servizio per l'illuminazione pubblica;08/07/2020
2000;10;9999999;178,64;697,24;ENEL ENERGIA SPA;77999756FD;SALDO Fatt.n. 004036202810  del 06/06/2020 MAGGIO 2020 - CONSUMI ILLUMINAZIONE PUBBLICA;06/07/2020;3544;0;124;1;Spese correnti;3;Acquisto di beni e servizi;2;Acquisto di servizi;15;Contratti di servizio pubblico;15;Contratti di servizio per l'illuminazione pubblica;08/07/2020
2001;1;9999999;1,92;461,27;ENEL ENERGIA SPA;77999756FD;SALDO Fatt.n. 004036202819  del 06/06/2020 MAGGIO 2020 - CONSUMI ILLUMINAZIONE PUBBLICA;06/07/2020;3544;0;124;1;Spese correnti;3;Acquisto di beni e servizi;2;Acquisto di servizi;15;Contratti di servizio pubblico;15;Contratti di servizio per l'illuminazione pubblica;08/07/2020
2001;2;9999999;7,16;461,27;ENEL ENERGIA SPA;77999756FD;SALDO Fatt.n. 004036202811  del 06/06/2020 MAGGIO 2020 - CONSUMI ILLUMINAZIONE PUBBLICA;06/07/2020;3544;0;124;1;Spese correnti;3;Acquisto di beni e servizi;2;Acquisto di servizi;15;Contratti di servizio pubblico;15;Contratti di servizio per l'illuminazione pubblica;08/07/2020
2001;3;9999999;8,6;461,27;ENEL ENERGIA SPA;77999756FD;SALDO Fatt.n. 004036202824  del 06/06/2020 MAGGIO 2020 - CONSUMI ILLUMINAZIONE PUBBLICA;06/07/2020;3544;0;124;1;Spese correnti;3;Acquisto di beni e servizi;2;Acquisto di servizi;15;Contratti di servizio pubblico;15;Contratti di servizio per l'illuminazione pubblica;08/07/2020
2001;4;9999999;18,06;461,27;ENEL ENERGIA SPA;77999756FD;SALDO Fatt.n. 004036202820  del 06/06/2020 MAGGIO 2020 - CONSUMI ILLUMINAZIONE PUBBLICA;06/07/2020;3544;0;124;1;Spese correnti;3;Acquisto di beni e servizi;2;Acquisto di servizi;15;Contratti di servizio pubblico;15;Contratti di servizio per l'illuminazione pubblica;08/07/2020
2001;5;9999999;24,3;461,27;ENEL ENERGIA SPA;77999756FD;SALDO Fatt.n. 004036202815  del 06/06/2020 MAGGIO 2020 - CONSUMI ILLUMINAZIONE PUBBLICA;06/07/2020;3544;0;124;1;Spese correnti;3;Acquisto di beni e servizi;2;Acquisto di servizi;15;Contratti di servizio pubblico;15;Contratti di servizio per l'illuminazione pubblica;08/07/2020
2001;6;9999999;27,93;461,27;ENEL ENERGIA SPA;77999756FD;SALDO Fatt.n. 004036202816  del 06/06/2020 MAGGIO 2020 - CONSUMI ILLUMINAZIONE PUBBLICA;06/07/2020;3544;0;124;1;Spese correnti;3;Acquisto di beni e servizi;2;Acquisto di servizi;15;Contratti di servizio pubblico;15;Contratti di servizio per l'illuminazione pubblica;08/07/2020
2001;7;9999999;37,58;461,27;ENEL ENERGIA SPA;77999756FD;SALDO Fatt.n. 004036202814  del 06/06/2020 MAGGIO 2020 - CONSUMI ILLUMINAZIONE PUBBLICA;06/07/2020;3544;0;124;1;Spese correnti;3;Acquisto di beni e servizi;2;Acquisto di servizi;15;Contratti di servizio pubblico;15;Contratti di servizio per l'illuminazione pubblica;08/07/2020
2001;8;9999999;61,07;461,27;ENEL ENERGIA SPA;77999756FD;SALDO Fatt.n. 004036202823  del 06/06/2020 MAGGIO 2020 - CONSUMI ILLUMINAZIONE PUBBLICA;06/07/2020;3544;0;124;1;Spese correnti;3;Acquisto di beni e servizi;2;Acquisto di servizi;15;Contratti di servizio pubblico;15;Contratti di servizio per l'illuminazione pubblica;08/07/2020
2001;9;9999999;131,24;461,27;ENEL ENERGIA SPA;77999756FD;SALDO Fatt.n. 004036202813  del 06/06/2020 MAGGIO 2020 - CONSUMI ILLUMINAZIONE PUBBLICA;06/07/2020;3544;0;124;1;Spese correnti;3;Acquisto di beni e servizi;2;Acquisto di servizi;15;Contratti di servizio pubblico;15;Contratti di servizio per l'illuminazione pubblica;08/07/2020
2001;10;9999999;143,41;461,27;ENEL ENERGIA SPA;77999756FD;SALDO Fatt.n. 004036202812  del 06/06/2020 MAGGIO 2020 - CONSUMI ILLUMINAZIONE PUBBLICA;06/07/2020;3544;0;124;1;Spese correnti;3;Acquisto di beni e servizi;2;Acquisto di servizi;15;Contratti di servizio pubblico;15;Contratti di servizio per l'illuminazione pubblica;08/07/2020
2002;1;9999999;3,31;829,74;ENEL ENERGIA SPA;77999756FD;SALDO Fatt.n. 004036202832  del 06/06/2020 MAGGIO 2020 - CONSUMI ILLUMINAZIONE PUBBLICA;06/07/2020;3544;0;124;1;Spese correnti;3;Acquisto di beni e servizi;2;Acquisto di servizi;15;Contratti di servizio pubblico;15;Contratti di servizio per l'illuminazione pubblica;08/07/2020
2002;2;9999999;11,96;829,74;ENEL ENERGIA SPA;77999756FD;SALDO Fatt.n. 004036202837  del 06/06/2020 MAGGIO 2020 - CONSUMI ILLUMINAZIONE PUBBLICA;06/07/2020;3544;0;124;1;Spese correnti;3;Acquisto di beni e servizi;2;Acquisto di servizi;15;Contratti di servizio pubblico;15;Contratti di servizio per l'illuminazione pubblica;08/07/2020
2002;3;9999999;20,95;829,74;ENEL ENERGIA SPA;77999756FD;SALDO Fatt.n. 004036202828  del 06/06/2020 MAGGIO 2020 - CONSUMI ILLUMINAZIONE PUBBLICA;06/07/2020;3544;0;124;1;Spese correnti;3;Acquisto di beni e servizi;2;Acquisto di servizi;15;Contratti di servizio pubblico;15;Contratti di servizio per l'illuminazione pubblica;08/07/2020
2002;4;9999999;79,84;829,74;ENEL ENERGIA SPA;77999756FD;SALDO Fatt.n. 004036202834  del 06/06/2020 MAGGIO 2020 - CONSUMI ILLUMINAZIONE PUBBLICA;06/07/2020;3544;0;124;1;Spese correnti;3;Acquisto di beni e servizi;2;Acquisto di servizi;15;Contratti di servizio pubblico;15;Contratti di servizio per l'illuminazione pubblica;08/07/2020
2002;5;9999999;84,49;829,74;ENEL ENERGIA SPA;77999756FD;SALDO Fatt.n. 004036202827  del 06/06/2020 MAGGIO 2020 - CONSUMI ILLUMINAZIONE PUBBLICA;06/07/2020;3544;0;124;1;Spese correnti;3;Acquisto di beni e servizi;2;Acquisto di servizi;15;Contratti di servizio pubblico;15;Contratti di servizio per l'illuminazione pubblica;08/07/2020
2002;6;9999999;101,65;829,74;ENEL ENERGIA SPA;77999756FD;SALDO Fatt.n. 004036202831  del 06/06/2020 MAGGIO 2020 - CONSUMI ILLUMINAZIONE PUBBLICA;06/07/2020;3544;0;124;1;Spese correnti;3;Acquisto di beni e servizi;2;Acquisto di servizi;15;Contratti di servizio pubblico;15;Contratti di servizio per l'illuminazione pubblica;08/07/2020
2002;7;9999999;108,41;829,74;ENEL ENERGIA SPA;77999756FD;SALDO Fatt.n. 004036202835  del 06/06/2020 MAGGIO 2020 - CONSUMI ILLUMINAZIONE PUBBLICA;06/07/2020;3544;0;124;1;Spese correnti;3;Acquisto di beni e servizi;2;Acquisto di servizi;15;Contratti di servizio pubblico;15;Contratti di servizio per l'illuminazione pubblica;08/07/2020
2002;8;9999999;122,4;829,74;ENEL ENERGIA SPA;77999756FD;SALDO Fatt.n. 004036202825  del 06/06/2020 MAGGIO 2020 - CONSUMI ILLUMINAZIONE PUBBLICA;06/07/2020;3544;0;124;1;Spese correnti;3;Acquisto di beni e servizi;2;Acquisto di servizi;15;Contratti di servizio pubblico;15;Contratti di servizio per l'illuminazione pubblica;08/07/2020
2002;9;9999999;136,31;829,74;ENEL ENERGIA SPA;77999756FD;SALDO Fatt.n. 004036202836  del 06/06/2020  MAGGIO 2020 - CONSUMI ILLUMINAZIONE PUBBLICA;06/07/2020;3544;0;124;1;Spese correnti;3;Acquisto di beni e servizi;2;Acquisto di servizi;15;Contratti di servizio pubblico;15;Contratti di servizio per l'illuminazione pubblica;08/07/2020
2002;10;9999999;160,42;829,74;ENEL ENERGIA SPA;77999756FD;SALDO Fatt.n. 004036202839  del 06/06/2020 MAGGIO 2020 - CONSUMI ILLUMINAZIONE PUBBLICA;06/07/2020;3544;0;124;1;Spese correnti;3;Acquisto di beni e servizi;2;Acquisto di servizi;15;Contratti di servizio pubblico;15;Contratti di servizio per l'illuminazione pubblica;08/07/2020
2003;1;9999999;272,76;272,76;ENEL ENERGIA SPA;77999756FD;SALDO Fatt.n. 004036202845  del 06/06/2020 MAGGIO 2020 - CONSUMI ILLUMINAZIONE PUBBLICA;06/07/2020;3544;0;124;1;Spese correnti;3;Acquisto di beni e servizi;2;Acquisto di servizi;15;Contratti di servizio pubblico;15;Contratti di servizio per l'illuminazione pubblica;08/07/2020
2004;1;9999999;37,28;37,28;ENEL ENERGIA SPA;77999756FD;SALDO Fatt.n. 004036202725  del 06/06/2020 MAGGIO 2020 - CONSUMI CIMITERO STIGLIANO - LAMPADE VOTIVE;06/07/2020;4434;0;123;1;Spese correnti;3;Acquisto di beni e servizi;2;Acquisto di servizi;5;Utenze e canoni;4;Energia elettrica;08/07/2020
2005;1;9999999;34;34;ENEL ENERGIA SPA;77999756FD;SALDO Fatt.n. 004036202759  del 06/06/2020 MAGGIO 2020 - CONSUMI CIMITERO SMS - LAMPADE VOTIVE;06/07/2020;4434;0;123;1;Spese correnti;3;Acquisto di beni e servizi;2;Acquisto di servizi;5;Utenze e canoni;4;Energia elettrica;08/07/2020
2006;1;9999999;28;28;ENEL ENERGIA SPA;77999756FD;SALDO Fatt.n. 004036202747  del 06/06/2020 MAGGIO 2020 - CONSUMI CIMITERO VETERNIGO - LAMPADE VOTIVE;06/07/2020;4434;0;123;1;Spese correnti;3;Acquisto di beni e servizi;2;Acquisto di servizi;5;Utenze e canoni;4;Energia elettrica;08/07/2020
2007;1;9999999;40;40;ENEL ENERGIA SPA;77999756FD;SALDO Fatt.n. 004036202716  del 06/06/2020 MAGGIO 2020 - CONSUMI CIMITERO S.ANGELO - LAMPADE VOTIVE;06/07/2020;4434;0;123;1;Spese correnti;3;Acquisto di beni e servizi;2;Acquisto di servizi;5;Utenze e canoni;4;Energia elettrica;08/07/2020
2008;1;9999999;24;24;ENEL ENERGIA SPA;77999756FD;SALDO Fatt.n. 004036202767  del 06/06/2020 MAGGIO 2020 - CONSUMI CIMITERO CASELLE - LAMPADE VOTIVE;06/07/2020;4434;0;123;1;Spese correnti;3;Acquisto di beni e servizi;2;Acquisto di servizi;5;Utenze e canoni;4;Energia elettrica;08/07/2020
2009;1;9999999;33,32;33,32;C/C/P 15453301 SERVIZIO DI TESORERIA COM; ;PRELEVAMENTO N. 9-2020 - GIUGNO 2020;06/07/2020;146;0;0;1;Spese correnti;3;Acquisto di beni e servizi;2;Acquisto di servizi;17;Servizi finanziari;999;Spese per servizi finanziari n.a.c.;08/07/2020
2010;1;9999999;30;30;AUTORITA'VIGILANZA SUI CONTRATTI PUBBLIC; ;QUOTA AUTORITA CODICE MAV 010306433006831457;06/07/2020;8020;80;1276;2;Spese in conto capitale;2;Investimenti fissi lordi e acquisto di terreni;1;Beni materiali;9;Beni immobili;15;Cimiteri;07/07/2020
2011;1;9999999;30;30;AUTORITA'VIGILANZA SUI CONTRATTI PUBBLIC; ;QUOTA AUTORITA CODICE MAV 010306433006831457;06/07/2020;7631;12;1274;2;Spese in conto capitale;2;Investimenti fissi lordi e acquisto di terreni;1;Beni materiali;9;Beni immobili;3;Fabbricati ad uso scolastico;07/07/2020
2013;1;9999999;3.723,41;3.723,41;AGENZIA DELLE ENTRATE - IVA; ;LIQUIDAZIONE IVA COMMERCIALE MESE DI GIUGNO 2020;07/07/2020;291;0;555;1;Spese correnti;10;Altre spese correnti;3;Versamenti IVA a debito;1;Versamenti IVA a debito per le gestioni commerciali;1;Versamenti IVA a debito per le gestioni commerciali;16/07/2020
2016;1;9999999;343,17;343,17;SEMENZATO MARIANGELA;Z2E2524BF8;SALDO Fatt.n. 8 PA  del 11/06/2020 COMUNE S.M. DI SALA-BOLZONELLA- PRECETTO ORDINANZA G.E. 2019 PRECETTO RINNOVAZIONE;07/07/2020;40;0;1095;1;Spese correnti;3;Acquisto di beni e servizi;2;Acquisto di servizi;11;Prestazioni professionali e specialistiche;6;Patrocinio legale;09/07/2020
2017;1;9999999;85,4;183;TIM SPA - TELECOM ITALIA SPA;ZE92C24A41;SALDO Fatt.n. 8E00404240  del 05/06/2020 4 BIM 2020 - UTENZA FAX POLIZIA LOCALE;07/07/2020;134;0;203;1;Spese correnti;3;Acquisto di beni e servizi;2;Acquisto di servizi;5;Utenze e canoni;1;Telefonia fissa;09/07/2020
2017;2;9999999;97,6;183;TIM SPA - TELECOM ITALIA SPA;ZE92C24A41;SALDO Fatt.n. 8E00405672  del 05/06/2020 4 BIM 2020 - UTENZA SERVIZI SOCIALI;07/07/2020;134;0;203;1;Spese correnti;3;Acquisto di beni e servizi;2;Acquisto di servizi;5;Utenze e canoni;1;Telefonia fissa;09/07/2020
2018;1;9999999;8.087,54;8.087,54;L'ISOLA SOC. COOPERATIVA SOCIALE;ZD62C76405;SALDO Fatt.n. 12/PA  del 12/06/2020 MANUTENZIONE VERDE PUBBLICO - SAL n. 2;07/07/2020;2549;0;373;1;Spese correnti;3;Acquisto di beni e servizi;2;Acquisto di servizi;99;Altri servizi;9;Acquisto di sevizi per verde e arredo urbano;09/07/2020
2019;1;9999999;2.464,57;2.464,57;P. & G. AUTOSERVICE SNC;ZAD2D2434E;SALDO Fatt.n. 2PA  del 15/06/2020 MANUTENZIONE AUTOMEZZI;07/07/2020;3538;0;486;1;Spese correnti;3;Acquisto di beni e servizi;2;Acquisto di servizi;9;Manutenzione ordinaria e riparazioni;1;Manutenzione ordinaria e riparazioni di mezzi di trasporto ad uso civile, di sicurezza e ordine pubblico;09/07/2020
2020;1;9999999;12.942,20;12.942,20;COOPERATIVA SOCIALE VILLA MARIA;Z472C505C9;SALDO Fatt.n. 472 PA  del 31/05/2020 RETTA ACCOGLIENZA MESI DI FEBBRAIO - MARZO - APRILE 2020;07/07/2020;4044;0;312;1;Spese correnti;3;Acquisto di beni e servizi;2;Acquisto di servizi;15;Contratti di servizio pubblico;8;Contratti di servizio di assistenza sociale residenziale e semiresidenziale;09/07/2020
2021;1;9999999;3.076,23;3.076,23;ARTEA  SNC DI LION & SALVIATO;Z1F2C953D6;SALDO Fatt.n. 17-2020/PA  del 10/06/2020 OPERAZIONI EFFETTUATE NEI CIMITERI DEL COMUNE DI SANTA MARIA DI SALA NEL MESE DI MAGGIO 2020;07/07/2020;4438;0;388;1;Spese correnti;3;Acquisto di beni e servizi;2;Acquisto di servizi;9;Manutenzione ordinaria e riparazioni;8;Manutenzione ordinaria e riparazioni di beni immobili;09/07/2020
2022;1;9999999;2.100,00;2.100,00;F.LLI LANDO SPA; ;SALDO Fatt.n. 627/98  del 05/06/2020 BUONI SPESA COVID;07/07/2020;4122;0;462;1;Spese correnti;3;Acquisto di beni e servizi;1;Acquisto di beni;2;Altri beni di consumo;11;Generi alimentari;09/07/2020
2023;1;9999999;11.125,00;11.125,00;F.LLI LANDO SPA; ;SALDO Fatt.n. 628/98  del 05/06/2020 BUONI SPESA COVID;07/07/2020;4122;0;462;1;Spese correnti;3;Acquisto di beni e servizi;1;Acquisto di beni;2;Altri beni di consumo;11;Generi alimentari;09/07/2020
2024;1;9999999;1.000,00;1.000,00;LESINA ASSOCIAZIONE; ;ASSEGNAZIONE DI UN CONTRIBUTO ECONOMICO AD ASSOCIAZIONI DEL TERRITORIO PER LE PROPRIE ATTIVIT SOCIA;07/07/2020;1859;0;542;1;Spese correnti;4;Trasferimenti correnti;4;Trasferimenti correnti a Istituzioni Sociali Private;1;Trasferimenti correnti a Istituzioni Sociali Private;1;Trasferimenti correnti a Istituzioni Sociali Private;09/07/2020
2025;1;9999999;2.736,00;2.736,00;OMESSO NOMINATIVO NEL RISPETTO DELLA NORMATIVA SULLA PROTEZIONE DATI PERSONALI; ;GENNAIO GIUGNO 2020 INTEGRAZIONE RETTA UTENTE PRESSO CASA DI RIPOSO MARIUTTO;07/07/2020;3844;0;541;1;Spese correnti;3;Acquisto di beni e servizi;2;Acquisto di servizi;15;Contratti di servizio pubblico;8;Contratti di servizio di assistenza sociale residenziale e semiresidenziale;09/07/2020
2026;1;9999999;456;456;OMESSO NOMINATIVO NEL RISPETTO DELLA NORMATIVA SULLA PROTEZIONE DATI PERSONALI; ;LUGLIO 2020 INTEGRAZIONE RETTA UTENTE PRESSO CASA DI RIPOSO MARIUTTO;07/07/2020;3844;0;541;1;Spese correnti;3;Acquisto di beni e servizi;2;Acquisto di servizi;15;Contratti di servizio pubblico;8;Contratti di servizio di assistenza sociale residenziale e semiresidenziale;09/07/2020
2027;1;9999999;3.528,00;3.528,00;OMESSO NOMINATIVO NEL RISPETTO DELLA NORMATIVA SULLA PROTEZIONE DATI PERSONALI; ;GENNAIO GIUGNO 2020 INT.RETTA CASA DI RIPOSO RELAXXI NOALE UTENTE;07/07/2020;3844;0;546;1;Spese correnti;3;Acquisto di beni e servizi;2;Acquisto di servizi;15;Contratti di servizio pubblico;8;Contratti di servizio di assistenza sociale residenziale e semiresidenziale;09/07/2020
2028;1;9999999;588;588;OMESSO NOMINATIVO NEL RISPETTO DELLA NORMATIVA SULLA PROTEZIONE DATI PERSONALI; ;LUGLIO 2020 INT.RETTA CASA DI RIPOSO RELAXXI UTENTE;07/07/2020;3844;0;546;1;Spese correnti;3;Acquisto di beni e servizi;2;Acquisto di servizi;15;Contratti di servizio pubblico;8;Contratti di servizio di assistenza sociale residenziale e semiresidenziale;09/07/2020
2029;1;9999999;25,32;25,32;ENI SPA DIVISIONE REFINING & MARKETING;Z7A2B73F0F;ACCONTO Fatt.n. 29543162  del 31/05/2020 MAGGIO 2020 - FORNITURA METANO;07/07/2020;521;0;77;1;Spese correnti;3;Acquisto di beni e servizi;1;Acquisto di beni;2;Altri beni di consumo;2;Carburanti, combustibili e lubrificanti;08/07/2020
2030;1;9999999;5,57;5,57;ENI SPA DIVISIONE REFINING & MARKETING;Z7A2B73F0F;SALDO Fatt.n. 29543162  del 31/05/2020 MAGGIO 2020 - FORNITURA METANO;07/07/2020;521;0;77;1;Spese correnti;3;Acquisto di beni e servizi;1;Acquisto di beni;2;Altri beni di consumo;2;Carburanti, combustibili e lubrificanti;09/07/2020
2035;1;9999999;130;130;OMESSO NOMINATIVO NEL RISPETTO DELLA NORMATIVA SULLA PROTEZIONE DATI PERSONALI; ;PRIMA TRANCHE 2020  RATA GIUGNO;07/07/2020;3957;50;428;1;Spese correnti;4;Trasferimenti correnti;2;Trasferimenti correnti a Famiglie;2;Interventi assistenziali;999;Altri assegni e sussidi assistenziali;09/07/2020
2036;1;9999999;220;220;OMESSO NOMINATIVO NEL RISPETTO DELLA NORMATIVA SULLA PROTEZIONE DATI PERSONALI; ;PRIMA TRANCHE 2020 RATA GIUGNO;07/07/2020;3957;50;423;1;Spese correnti;4;Trasferimenti correnti;2;Trasferimenti correnti a Famiglie;2;Interventi assistenziali;999;Altri assegni e sussidi assistenziali;24/07/2020
2037;1;9999999;88;88;OMESSO NOMINATIVO NEL RISPETTO DELLA NORMATIVA SULLA PROTEZIONE DATI PERSONALI; ;GENNAIO 2020 G.F.  INT.RETTA. DOPOSCUOLA;09/07/2020;3757;0;167;1;Spese correnti;4;Trasferimenti correnti;2;Trasferimenti correnti a Famiglie;5;Altri trasferimenti a famiglie;999;Altri trasferimenti a famiglie n.a.c.;13/07/2020
2038;1;9999999;74;74;OMESSO NOMINATIVO NEL RISPETTO DELLA NORMATIVA SULLA PROTEZIONE DATI PERSONALI; ;GENNAIO FEBBRAIO 2020 INT.RETTA V.S.;09/07/2020;3757;0;479;1;Spese correnti;4;Trasferimenti correnti;2;Trasferimenti correnti a Famiglie;5;Altri trasferimenti a famiglie;999;Altri trasferimenti a famiglie n.a.c.;13/07/2020
2039;1;9999999;492;492;OMESSO NOMINATIVO NEL RISPETTO DELLA NORMATIVA SULLA PROTEZIONE DATI PERSONALI; ;ARRETRATI ADEG.RETTE NOV.DIC.2019 /GENNAIO FEBBRAIO MARZO 2020 H.G.;09/07/2020;3757;0;164;1;Spese correnti;4;Trasferimenti correnti;2;Trasferimenti correnti a Famiglie;5;Altri trasferimenti a famiglie;999;Altri trasferimenti a famiglie n.a.c.;13/07/2020
2040;1;9999999;426;426;OMESSO NOMINATIVO NEL RISPETTO DELLA NORMATIVA SULLA PROTEZIONE DATI PERSONALI; ;ARRETRATI ADEG. RETTE NOV.DIC.2019 /GENNAIO FEBBRAIO MARZO 20 H.E.;09/07/2020;3757;0;164;1;Spese correnti;4;Trasferimenti correnti;2;Trasferimenti correnti a Famiglie;5;Altri trasferimenti a famiglie;999;Altri trasferimenti a famiglie n.a.c.;13/07/2020
2041;1;9999999;336;336;OMESSO NOMINATIVO NEL RISPETTO DELLA NORMATIVA SULLA PROTEZIONE DATI PERSONALI; ;GENNAIO FEBBRAIO 2020 INT.RETTA MINORE H.E.;09/07/2020;3757;0;165;1;Spese correnti;4;Trasferimenti correnti;2;Trasferimenti correnti a Famiglie;5;Altri trasferimenti a famiglie;999;Altri trasferimenti a famiglie n.a.c.;13/07/2020
2042;1;9999999;220;220;OMESSO NOMINATIVO NEL RISPETTO DELLA NORMATIVA SULLA PROTEZIONE DATI PERSONALI; ;GENNAIO FEBBRAIO 2020 INT.RETTE M.A.A.;09/07/2020;3757;0;162;1;Spese correnti;4;Trasferimenti correnti;2;Trasferimenti correnti a Famiglie;5;Altri trasferimenti a famiglie;999;Altri trasferimenti a famiglie n.a.c.;13/07/2020
2043;1;9999999;40;40;OMESSO NOMINATIVO NEL RISPETTO DELLA NORMATIVA SULLA PROTEZIONE DATI PERSONALI; ;GENNAIO FEBBRAIO 2020 INT.RETTA M.I.;09/07/2020;3757;0;161;1;Spese correnti;4;Trasferimenti correnti;2;Trasferimenti correnti a Famiglie;5;Altri trasferimenti a famiglie;999;Altri trasferimenti a famiglie n.a.c.;13/07/2020
2044;1;9999999;110;110;OMESSO NOMINATIVO NEL RISPETTO DELLA NORMATIVA SULLA PROTEZIONE DATI PERSONALI; ;GENNAIO 2020 INT.RETTA MINORE M.C.;09/07/2020;3757;0;163;1;Spese correnti;4;Trasferimenti correnti;2;Trasferimenti correnti a Famiglie;5;Altri trasferimenti a famiglie;999;Altri trasferimenti a famiglie n.a.c.;13/07/2020
2045;1;9999999;473;473;OMESSO NOMINATIVO NEL RISPETTO DELLA NORMATIVA SULLA PROTEZIONE DATI PERSONALI; ;GENNAIO FEBBRAIO MARZO 2020 INT.RETTA M.B.;09/07/2020;3757;0;166;1;Spese correnti;4;Trasferimenti correnti;2;Trasferimenti correnti a Famiglie;5;Altri trasferimenti a famiglie;999;Altri trasferimenti a famiglie n.a.c.;13/07/2020
2046;1;9999999;378;378;OMESSO NOMINATIVO NEL RISPETTO DELLA NORMATIVA SULLA PROTEZIONE DATI PERSONALI; ;GENNAIO FEBBRAIO MARZO 2020 INT.RETTA E.J.;09/07/2020;3757;0;1259;1;Spese correnti;4;Trasferimenti correnti;2;Trasferimenti correnti a Famiglie;5;Altri trasferimenti a famiglie;999;Altri trasferimenti a famiglie n.a.c.;13/07/2020
2047;1;9999999;60;60;OMESSO NOMINATIVO NEL RISPETTO DELLA NORMATIVA SULLA PROTEZIONE DATI PERSONALI; ;INT.RETTA MAGGIO GIUGNO 20 B.F.;09/07/2020;3757;0;476;1;Spese correnti;4;Trasferimenti correnti;2;Trasferimenti correnti a Famiglie;5;Altri trasferimenti a famiglie;999;Altri trasferimenti a famiglie n.a.c.;13/07/2020
2048;1;9999999;60;60;OMESSO NOMINATIVO NEL RISPETTO DELLA NORMATIVA SULLA PROTEZIONE DATI PERSONALI; ;MAGGIO GIUGNO 2020 INT.RETTA M.E.A.;09/07/2020;3757;0;155;1;Spese correnti;4;Trasferimenti correnti;2;Trasferimenti correnti a Famiglie;5;Altri trasferimenti a famiglie;999;Altri trasferimenti a famiglie n.a.c.;13/07/2020
2049;1;9999999;60;60;OMESSO NOMINATIVO NEL RISPETTO DELLA NORMATIVA SULLA PROTEZIONE DATI PERSONALI; ;MAGGIO GIUGNO 2020 INT.RETTA P.S.C.;09/07/2020;3757;0;477;1;Spese correnti;4;Trasferimenti correnti;2;Trasferimenti correnti a Famiglie;5;Altri trasferimenti a famiglie;999;Altri trasferimenti a famiglie n.a.c.;13/07/2020
2050;1;9999999;60;60;OMESSO NOMINATIVO NEL RISPETTO DELLA NORMATIVA SULLA PROTEZIONE DATI PERSONALI; ;MAGGIO GIUNGO 2020 INT.RETTA X.L.;09/07/2020;3757;0;480;1;Spese correnti;4;Trasferimenti correnti;2;Trasferimenti correnti a Famiglie;5;Altri trasferimenti a famiglie;999;Altri trasferimenti a famiglie n.a.c.;13/07/2020
2051;1;9999999;60;60;OMESSO NOMINATIVO NEL RISPETTO DELLA NORMATIVA SULLA PROTEZIONE DATI PERSONALI; ;MAGGIO GIUGNO 2020 INT.RETTA E H.A.;09/07/2020;3757;0;478;1;Spese correnti;4;Trasferimenti correnti;2;Trasferimenti correnti a Famiglie;5;Altri trasferimenti a famiglie;999;Altri trasferimenti a famiglie n.a.c.;13/07/2020
2052;1;9999999;140;140;BARBATO BARBARA ECONOMO COMUNALE; ;Rimborso bollette;09/07/2020;121;6;26;1;Spese correnti;3;Acquisto di beni e servizi;1;Acquisto di beni;2;Altri beni di consumo;1;Carta, cancelleria e stampati;13/07/2020
2053;1;9999999;43,79;43,79;BARBATO BARBARA ECONOMO COMUNALE; ;Rimborso bollette;09/07/2020;522;0;179;1;Spese correnti;3;Acquisto di beni e servizi;1;Acquisto di beni;2;Altri beni di consumo;999;Altri beni e materiali di consumo n.a.c.;13/07/2020
2054;1;9999999;108,98;108,98;BARBATO BARBARA ECONOMO COMUNALE; ;Rimborso bollette;09/07/2020;522;0;398;1;Spese correnti;3;Acquisto di beni e servizi;1;Acquisto di beni;2;Altri beni di consumo;999;Altri beni e materiali di consumo n.a.c.;13/07/2020
2055;1;9999999;158,6;158,6;BARBATO BARBARA ECONOMO COMUNALE; ;Rimborso bollette;09/07/2020;522;0;466;1;Spese correnti;3;Acquisto di beni e servizi;1;Acquisto di beni;2;Altri beni di consumo;999;Altri beni e materiali di consumo n.a.c.;13/07/2020
2056;1;9999999;7,99;7,99;BARBATO BARBARA ECONOMO COMUNALE; ;Rimborso bollette;09/07/2020;748;0;133;1;Spese correnti;3;Acquisto di beni e servizi;2;Acquisto di servizi;19;Servizi informatici e di telecomunicazioni;999;Altri servizi informatici e di telecomunicazioni n.a.c.;13/07/2020
2057;1;9999999;170,5;170,5;BARBATO BARBARA ECONOMO COMUNALE; ;Rimborso bollette;09/07/2020;1821;0;176;1;Spese correnti;3;Acquisto di beni e servizi;1;Acquisto di beni;2;Altri beni di consumo;1;Carta, cancelleria e stampati;13/07/2020
2058;1;9999999;244;244;I.A.C.E. SRL;ZE32BC7B3A;SALDO Fatt.n. 958/2020  del 18/06/2020 VERIFICA PERIODICA ASCENSORE PRESSO SCUOLE ELEMENTARI S.ANGELO E VETERNIGO;09/07/2020;548;0;91;1;Spese correnti;3;Acquisto di beni e servizi;2;Acquisto di servizi;9;Manutenzione ordinaria e riparazioni;4;Manutenzione ordinaria e riparazioni di impianti e macchinari;13/07/2020
2059;1;9999999;625,5;625,5;SOLUZIONE SRL;ZA92A22E67;SALDO Fatt.n. 0004500332  del 18/06/2020  ABBONAMENTO 2020 - CORSI ONLINE FORMAZIONE ANTICORRUZIONE;09/07/2020;833;0;1101;1;Spese correnti;3;Acquisto di beni e servizi;2;Acquisto di servizi;4;Acquisto di servizi per formazione e addestramento del personale dell'ente;4;Acquisto di servizi per formazione obbligatoria;13/07/2020
2060;1;9999999;7.977,90;16.359,08;SOC. SOCIOCULTURALE COOP. SOCIALE;80171200B8;SALDO Fatt.n. 1870 PAS  del 11/06/2020 MESE DI MARZO 2020 ASSISTENZA DOMICILIARE;09/07/2020;3944;0;975;1;Spese correnti;3;Acquisto di beni e servizi;2;Acquisto di servizi;15;Contratti di servizio pubblico;9;Contratti di servizio di assistenza sociale domiciliare;13/07/2020
2060;2;9999999;8.381,18;16.359,08;SOC. SOCIOCULTURALE COOP. SOCIALE;80171200B8;SALDO Fatt.n. 1871 PAS  del 11/06/2020 MESE DI APRILE 2020 ASSISTENZA DOMICILIARE;09/07/2020;3944;0;975;1;Spese correnti;3;Acquisto di beni e servizi;2;Acquisto di servizi;15;Contratti di servizio pubblico;9;Contratti di servizio di assistenza sociale domiciliare;13/07/2020
2061;1;9999999;3.111,00;3.111,00;VEDOVATO ALBERTO;Z0E2B4223E;SALDO Fatt.n. 24  del 05/05/2020 INTERVENTO DI MANUTENZIONE STRAORDINARIA SULLA COPERTURA E I SERVIZI IGENICI DEL CIMITERO DI CASELLE;09/07/2020;8020;0;1375;2;Spese in conto capitale;2;Investimenti fissi lordi e acquisto di terreni;1;Beni materiali;9;Beni immobili;15;Cimiteri;13/07/2020
2062;1;9999999;264;1.404,00;OMESSO NOMINATIVO NEL RISPETTO DELLA NORMATIVA SULLA PROTEZIONE DATI PERSONALI; ;LAVAGGIO BIANCHERIA;09/07/2020;3844;0;545;1;Spese correnti;3;Acquisto di beni e servizi;2;Acquisto di servizi;15;Contratti di servizio pubblico;8;Contratti di servizio di assistenza sociale residenziale e semiresidenziale;13/07/2020
2062;2;9999999;1.140,00;1.404,00;OMESSO NOMINATIVO NEL RISPETTO DELLA NORMATIVA SULLA PROTEZIONE DATI PERSONALI; ;APRILE MAGGIO GIUGNO 2020 INT.RETTA;09/07/2020;3844;0;545;1;Spese correnti;3;Acquisto di beni e servizi;2;Acquisto di servizi;15;Contratti di servizio pubblico;8;Contratti di servizio di assistenza sociale residenziale e semiresidenziale;13/07/2020
2063;1;9999999;5.322,00;5.322,00;OMESSO NOMINATIVO NEL RISPETTO DELLA NORMATIVA SULLA PROTEZIONE DATI PERSONALI; ;GENNAIO GIUGNO 2020 INT.RETTA;09/07/2020;3844;0;544;1;Spese correnti;3;Acquisto di beni e servizi;2;Acquisto di servizi;15;Contratti di servizio pubblico;8;Contratti di servizio di assistenza sociale residenziale e semiresidenziale;13/07/2020
2064;1;9999999;1.801,31;1.801,31;VALEX SPA; ;LIQUIDAZIONE DITTA VALEX RIMBORSO ASSENZE RETRIBUITE VICE SINDACO ARPI ALESSANDRO MESI DI MAGGIO E GIUGNO 2020.;14/07/2020;30;99;28;1;Spese correnti;3;Acquisto di beni e servizi;2;Acquisto di servizi;1;Organi e incarichi istituzionali dell'amministrazione;1;Organi istituzionali dell'amministrazione - Indennità;17/07/2020
2065;1;9999999;1.768,00;1.768,00;CEL NETWORK SRL;ZC723E8EB1;SALDO Fatt.n. 1458  del 30/06/2020 SERVIZIO PORTALE PAWEB COMPLETO ANNO 2020;14/07/2020;134;0;775;1;Spese correnti;3;Acquisto di beni e servizi;2;Acquisto di servizi;5;Utenze e canoni;3;Accesso a banche dati e a pubblicazioni on line;17/07/2020
2066;1;9999999;2.421,24;2.421,24;MARCIANI ANDREA;ZB62607815;ACCONTO Fatt.n. 17  del 07/07/2020 ASSISTENZA LEGALE STRAGIUDIZIALE NEL PROCEDIMENTO DI RECUPERO DEL  CREDITO NEI CONFRONTI DI TOMMASINI SPA MEDIANTE PIGNORAMENTO PRESSO TERZI DI FITTI E PIGIONI;14/07/2020;340;0;1296;1;Spese correnti;3;Acquisto di beni e servizi;2;Acquisto di servizi;11;Prestazioni professionali e specialistiche;6;Patrocinio legale;17/07/2020
2067;1;9999999;319,37;319,37;MARCIANI ANDREA;ZB62607815;SALDO Fatt.n. 17  del 07/07/2020 ASSISTENZA LEGALE STRAGIUDIZIALE NEL PROCEDIMENTO DI RECUPERO DEL  CREDITO NEI CONFRONTI DI TOMMASINI SPA MEDIANTE PIGNORAMENTO PRESSO TERZI DI FITTI E PIGIONI;14/07/2020;340;0;490;1;Spese correnti;3;Acquisto di beni e servizi;2;Acquisto di servizi;11;Prestazioni professionali e specialistiche;6;Patrocinio legale;17/07/2020
2068;1;9999999;34,16;203;SONEPAR ITALIA  SPA;Z072C194BE;SALDO Fatt.n. 0031120388  del 30/06/2020 MATERIALE ELETTRICO PER MANUTENZIONI;14/07/2020;521;0;189;1;Spese correnti;3;Acquisto di beni e servizi;1;Acquisto di beni;2;Altri beni di consumo;999;Altri beni e materiali di consumo n.a.c.;17/07/2020
2068;2;9999999;62,27;203;SONEPAR ITALIA  SPA;Z072C194BE;SALDO Fatt.n. 0031120386  del 30/06/2020 MATERIALE ELETTRICO PER MANUTENZIONI;14/07/2020;521;0;189;1;Spese correnti;3;Acquisto di beni e servizi;1;Acquisto di beni;2;Altri beni di consumo;999;Altri beni e materiali di consumo n.a.c.;17/07/2020
2068;3;9999999;106,57;203;SONEPAR ITALIA  SPA;Z072C194BE;SALDO Fatt.n. 0031120387  del 30/06/2020 MATERIALE ELETTRICO PER MANUTENZIONI;14/07/2020;521;0;189;1;Spese correnti;3;Acquisto di beni e servizi;1;Acquisto di beni;2;Altri beni di consumo;999;Altri beni e materiali di consumo n.a.c.;17/07/2020
2069;1;9999999;769,44;769,44;EL BOTTEGON S.N.C.;Z022D4BDA9;SALDO Fatt.n. 11  del 29/06/2020 ACQUISTO VESTIARIO ESTIVO  PER IL PERSONALE OPERAIO DEL SETTORE TECNICO;14/07/2020;521;0;534;1;Spese correnti;3;Acquisto di beni e servizi;1;Acquisto di beni;2;Altri beni di consumo;4;Vestiario;17/07/2020
2070;1;9999999;668,18;668,18;C.E.I.F. DI BESSEGA VANNI;Z182BDA094;SALDO Fatt.n. 1-6  del 30/06/2020 MATERIALE VARIO DI FERRAMENTA PER MANUTENZIONI;14/07/2020;522;0;113;1;Spese correnti;3;Acquisto di beni e servizi;1;Acquisto di beni;2;Altri beni di consumo;999;Altri beni e materiali di consumo n.a.c.;17/07/2020
2071;1;9999999;120;120;HALLEY VENETO SRL;ZA02CF0F12;ACCONTO Fatt.n. 1/200828  del 01/07/2020 CANONE DI MANUTENZIONE SOFTWARE APPLICATIVO ANNO 2020;14/07/2020;740;0;448;1;Spese correnti;3;Acquisto di beni e servizi;2;Acquisto di servizi;11;Prestazioni professionali e specialistiche;999;Altre prestazioni professionali e specialistiche n.a.c.;17/07/2020
2072;1;9999999;1.464,00;1.464,00;HALLEY VENETO SRL;ZA02CF0F12;SALDO Fatt.n. 1/200861  del 07/07/2020 INSTALLAZIONE SOFTWARE PER LA TRASMISSIONE DATI ANAGRAFE PER LE AZIENDE ULSS 3 SERENISSIMA;14/07/2020;740;0;448;1;Spese correnti;3;Acquisto di beni e servizi;2;Acquisto di servizi;11;Prestazioni professionali e specialistiche;999;Altre prestazioni professionali e specialistiche n.a.c.;17/07/2020
2073;1;9999999;159,56;159,56;FORNITECNICA S.R.L.;Z88269EF2B;SALDO Fatt.n. 000218PA20  del 25/06/2020 COSTO COPIA  STAMPANTI PERIODO GENNAIO - GIUGNO 2020;14/07/2020;748;0;18;1;Spese correnti;3;Acquisto di beni e servizi;2;Acquisto di servizi;19;Servizi informatici e di telecomunicazioni;5;Servizi per i sistemi e relativa manutenzione;17/07/2020
2074;1;9999999;686,96;686,96;KYOCERA DOCUMENT SOLUTIONS ITALIA SPA;Z3517CFFA1;SALDO Fatt.n. 1010617643  del 24/06/2020  FOTOCOPIATRICI 24 - LOTTO 4 - 60 MESI - CANONE PERIODO DAL 19.03.2020 AL 18.06.2020;14/07/2020;748;0;17;1;Spese correnti;3;Acquisto di beni e servizi;2;Acquisto di servizi;19;Servizi informatici e di telecomunicazioni;5;Servizi per i sistemi e relativa manutenzione;17/07/2020
2075;1;9999999;185;185;HALLEY VENETO SRL;ZA02CF0F12;SALDO Fatt.n. 1/200828  del 01/07/2020 CANONE DI MANUTENZIONE SOFTWARE APPLICATIVO ANNO 2020;14/07/2020;748;0;449;1;Spese correnti;3;Acquisto di beni e servizi;2;Acquisto di servizi;19;Servizi informatici e di telecomunicazioni;10;Servizi di consulenza e prestazioni professionali ICT;17/07/2020
2076;1;9999999;60;60;INFOPOL S.R.L. A SOCIO UNICO;Z2A2D49E48;SALDO Fatt.n. 232/E  del 26/06/2020 CORSO DI FORMAZIONE SULLA VIDEOSORVEGLIANZA - DIPENDENTE POLIZIA LOCALE;14/07/2020;833;0;518;1;Spese correnti;3;Acquisto di beni e servizi;2;Acquisto di servizi;4;Acquisto di servizi per formazione e addestramento del personale dell'ente;999;Acquisto di servizi per altre spese per formazione e addestramento n.a.c.;17/07/2020
2077;1;9999999;118,8;118,8;E.S.A. ELECOMP SERVIZI ASCENSORI SRL;ZBC23E4FEB;ACCONTO Fatt.n. FC0020243-0  del 30/06/2020 VERIFICHE BIENNALI ELEVATORI SC.ELEM. S.ANGELO E VETERNIGO;14/07/2020;1338;0;131;1;Spese correnti;3;Acquisto di beni e servizi;2;Acquisto di servizi;9;Manutenzione ordinaria e riparazioni;11;Manutenzione ordinaria e riparazioni di altri beni materiali;17/07/2020
2078;1;9999999;3,2;3,2;E.S.A. ELECOMP SERVIZI ASCENSORI SRL;ZBC23E4FEB;SALDO Fatt.n. FC0020243-0  del 30/06/2020 VERIFICHE BIENNALI ELEVATORI SC.ELEM. S.ANGELO E VETERNIGO;14/07/2020;1938;0;132;1;Spese correnti;3;Acquisto di beni e servizi;2;Acquisto di servizi;9;Manutenzione ordinaria e riparazioni;11;Manutenzione ordinaria e riparazioni di altri beni materiali;17/07/2020
2079;1;9999999;10.544,39;10.544,39;TREVISAN FEDERICO;Z752C97EA0;SALDO Fatt.n. 4/B00  del 21/06/2020 SFALCIO ERBA BANCHINE STRADALI  - S.A.L. N. 1;14/07/2020;2549;0;391;1;Spese correnti;3;Acquisto di beni e servizi;2;Acquisto di servizi;99;Altri servizi;9;Acquisto di sevizi per verde e arredo urbano;17/07/2020
2080;1;9999999;62,73;62,73;EPIU' SRL - COSTRUIRE INSIEME;ZA72C6C92F;SALDO Fatt.n. 10294  del 30/06/2020 MATERIALI EDILI PER MANUTENZIONI;14/07/2020;3538;0;367;1;Spese correnti;3;Acquisto di beni e servizi;2;Acquisto di servizi;9;Manutenzione ordinaria e riparazioni;8;Manutenzione ordinaria e riparazioni di beni immobili;17/07/2020
2081;1;9999999;195,2;195,2;IDRONORD SRL;ZA22C6C8D1;SALDO Fatt.n. 701/1  del 30/06/2020 MATERIALE EDILE PER MANUTENZIONI;14/07/2020;3538;0;369;1;Spese correnti;3;Acquisto di beni e servizi;2;Acquisto di servizi;9;Manutenzione ordinaria e riparazioni;8;Manutenzione ordinaria e riparazioni di beni immobili;17/07/2020
2082;1;9999999;254,65;254,65;AUTOROMBO S.A.S. DI SARTORE RENZO & C.;Z2C2D68231;SALDO Fatt.n. 3/PA  del 03/07/2020 MANUTENZIONE AUTOVETTURA DACIA DUSTER TARGA YA831A;14/07/2020;3538;0;540;1;Spese correnti;3;Acquisto di beni e servizi;2;Acquisto di servizi;9;Manutenzione ordinaria e riparazioni;1;Manutenzione ordinaria e riparazioni di mezzi di trasporto ad uso civile, di sicurezza e ordine pubblico;17/07/2020
2083;1;9999999;78,08;78,08;TREXOM SRL;ZD42D58278;SALDO Fatt.n. 40/2/2020  del 30/06/2020 MANUTENZIONE SISTEMA APRIPORTA MUNICIPIO;14/07/2020;7440;0;539;2;Spese in conto capitale;2;Investimenti fissi lordi e acquisto di terreni;1;Beni materiali;7;Hardware;3;Periferiche;17/07/2020
2084;1;9999999;3.314,48;3.314,48;SO.GE.DI.CO. SRL-IMPIANTI COSTR.GENERALI;Z2625E6DE6;SALDO Fatt.n. 73FEP  del 24/06/2020 LAVORI DI NUOVI PUNTI LUCE DI ILLUMINAZIONE STRADALE NEL TERRITORIO COMUNALE. S.A.L. N. 2 CORRISPONDENTE AL FINALE.;14/07/2020;8560;0;1370;2;Spese in conto capitale;2;Investimenti fissi lordi e acquisto di terreni;1;Beni materiali;9;Beni immobili;12;Infrastrutture stradali;17/07/2020
2085;1;9999999;1.868,50;1.868,50;OMESSO NOMINATIVO NEL RISPETTO DELLA NORMATIVA SULLA PROTEZIONE DATI PERSONALI; ;APRILE 2020 INT.RETTA;14/07/2020;3844;0;294;1;Spese correnti;3;Acquisto di beni e servizi;2;Acquisto di servizi;15;Contratti di servizio pubblico;8;Contratti di servizio di assistenza sociale residenziale e semiresidenziale;17/07/2020
2086;1;9999999;1.930,75;1.930,75;OMESSO NOMINATIVO NEL RISPETTO DELLA NORMATIVA SULLA PROTEZIONE DATI PERSONALI; ;MAGGIO 2020 INT.RETTA;14/07/2020;3844;0;294;1;Spese correnti;3;Acquisto di beni e servizi;2;Acquisto di servizi;15;Contratti di servizio pubblico;8;Contratti di servizio di assistenza sociale residenziale e semiresidenziale;17/07/2020
2087;1;9999999;200;200;OMESSO NOMINATIVO NEL RISPETTO DELLA NORMATIVA SULLA PROTEZIONE DATI PERSONALI; ;GIUGNO 2020 PROGRAMMA DI INTERVENTI RIA DI CUI ALLA D.G.R. N. 1106 DEL 30/07/2019.;14/07/2020;3957;54;558;1;Spese correnti;4;Trasferimenti correnti;2;Trasferimenti correnti a Famiglie;5;Altri trasferimenti a famiglie;999;Altri trasferimenti a famiglie n.a.c.;17/07/2020
2088;1;9999999;600;600;OMESSO NOMINATIVO NEL RISPETTO DELLA NORMATIVA SULLA PROTEZIONE DATI PERSONALI; ;APRILE MAGGIO GIUGNO 2020 PROGRAMMA DI INTERVENTI RIA DI CUI ALLA D.G.R. N. 1106 DEL 30/07/2019.;14/07/2020;3957;54;559;1;Spese correnti;4;Trasferimenti correnti;2;Trasferimenti correnti a Famiglie;5;Altri trasferimenti a famiglie;999;Altri trasferimenti a famiglie n.a.c.;17/07/2020
2089;1;9999999;200;200;OMESSO NOMINATIVO NEL RISPETTO DELLA NORMATIVA SULLA PROTEZIONE DATI PERSONALI; ;GIUGNO 2020 PROGRAMMA DI INTERVENTI RIA DI CUI ALLA D.G.R. N. 1106 DEL 30/07/2019.;14/07/2020;3957;54;560;1;Spese correnti;4;Trasferimenti correnti;2;Trasferimenti correnti a Famiglie;5;Altri trasferimenti a famiglie;999;Altri trasferimenti a famiglie n.a.c.;30/07/2020
2090;1;9999999;400;400;OMESSO NOMINATIVO NEL RISPETTO DELLA NORMATIVA SULLA PROTEZIONE DATI PERSONALI; ;MAGGIO GIUGNO 2020 PROGRAMMA DI INTERVENTI RIA DI CUI ALLA D.G.R. N. 1106 DEL 30/07/2019;14/07/2020;3957;54;573;1;Spese correnti;4;Trasferimenti correnti;2;Trasferimenti correnti a Famiglie;5;Altri trasferimenti a famiglie;999;Altri trasferimenti a famiglie n.a.c.;17/07/2020
2091;1;9999999;200;200;OMESSO NOMINATIVO NEL RISPETTO DELLA NORMATIVA SULLA PROTEZIONE DATI PERSONALI; ;GIUGNO 2020 PROGRAMMA DI INTERVENTI RIA DI CUI ALLA D.G.R. N. 1106 DEL 30/07/2019.;14/07/2020;3957;54;561;1;Spese correnti;4;Trasferimenti correnti;2;Trasferimenti correnti a Famiglie;5;Altri trasferimenti a famiglie;999;Altri trasferimenti a famiglie n.a.c.;31/07/2020
2103;1;9999999;30,12;30,12;COMUNE DI S.MARIA DI SALA; ;CONTRIBUTO IFEL RISCOSSIONE IMU RENDICONTO AL 14/07/2020;14/07/2020;332;0;0;1;Spese correnti;3;Acquisto di beni e servizi;2;Acquisto di servizi;3;Aggi di riscossione;999;Altri aggi di riscossione n.a.c.;17/07/2020
2104;1;9999999;74,71;31.523,61;CASSA DEPOSITI E PRESTITI; ;Rata Interessi  1^Sem. 30/06/20 STRADE COMUNALI;15/07/2020;7001;0;0;1;Spese correnti;7;Interessi passivi;5;Interessi su Mutui e altri finanziamenti a medio lungo termine;4;Interessi passivi su finanziamenti a medio lungo termine a Imprese;3;Interessi passivi a Cassa Depositi e Prestiti SPA su mutui e altri finanziamenti a medio lungo termine;30/07/2020
2104;2;9999999;83,59;31.523,61;CASSA DEPOSITI E PRESTITI; ;Rata Interessi  1^Sem. 30/06/20 STRADE COMUNALI;15/07/2020;7001;0;0;1;Spese correnti;7;Interessi passivi;5;Interessi su Mutui e altri finanziamenti a medio lungo termine;4;Interessi passivi su finanziamenti a medio lungo termine a Imprese;3;Interessi passivi a Cassa Depositi e Prestiti SPA su mutui e altri finanziamenti a medio lungo termine;30/07/2020
2104;3;9999999;180,99;31.523,61;CASSA DEPOSITI E PRESTITI; ;Rata Interessi  1^Sem. 30/06/20 IMPIANTI SPORTIVI;15/07/2020;7001;0;0;1;Spese correnti;7;Interessi passivi;5;Interessi su Mutui e altri finanziamenti a medio lungo termine;4;Interessi passivi su finanziamenti a medio lungo termine a Imprese;3;Interessi passivi a Cassa Depositi e Prestiti SPA su mutui e altri finanziamenti a medio lungo termine;30/07/2020
2104;4;9999999;198,61;31.523,61;CASSA DEPOSITI E PRESTITI; ;Rata Interessi  1^Sem. 30/06/20 STRADE COMUNALI;15/07/2020;7001;0;0;1;Spese correnti;7;Interessi passivi;5;Interessi su Mutui e altri finanziamenti a medio lungo termine;4;Interessi passivi su finanziamenti a medio lungo termine a Imprese;3;Interessi passivi a Cassa Depositi e Prestiti SPA su mutui e altri finanziamenti a medio lungo termine;30/07/2020
2104;5;9999999;339,84;31.523,61;CASSA DEPOSITI E PRESTITI; ;Rata Interessi  1^Sem. 30/06/20 SCUOLA;15/07/2020;7001;0;0;1;Spese correnti;7;Interessi passivi;5;Interessi su Mutui e altri finanziamenti a medio lungo termine;4;Interessi passivi su finanziamenti a medio lungo termine a Imprese;3;Interessi passivi a Cassa Depositi e Prestiti SPA su mutui e altri finanziamenti a medio lungo termine;30/07/2020
2104;6;9999999;340,12;31.523,61;CASSA DEPOSITI E PRESTITI; ;Rata Interessi  1^Sem. 30/06/20 IMPIANTI SPORTIVI;15/07/2020;7001;0;0;1;Spese correnti;7;Interessi passivi;5;Interessi su Mutui e altri finanziamenti a medio lungo termine;4;Interessi passivi su finanziamenti a medio lungo termine a Imprese;3;Interessi passivi a Cassa Depositi e Prestiti SPA su mutui e altri finanziamenti a medio lungo termine;30/07/2020
2104;7;9999999;388,88;31.523,61;CASSA DEPOSITI E PRESTITI; ;Rata Interessi  1^Sem. 30/06/20 STRADE COMUNALI;15/07/2020;7001;0;0;1;Spese correnti;7;Interessi passivi;5;Interessi su Mutui e altri finanziamenti a medio lungo termine;4;Interessi passivi su finanziamenti a medio lungo termine a Imprese;3;Interessi passivi a Cassa Depositi e Prestiti SPA su mutui e altri finanziamenti a medio lungo termine;30/07/2020
2104;8;9999999;406,44;31.523,61;CASSA DEPOSITI E PRESTITI; ;Rata Interessi  1^Sem. 30/06/20 OPERE DI VIABILITA' COMUNALI;15/07/2020;7001;0;0;1;Spese correnti;7;Interessi passivi;5;Interessi su Mutui e altri finanziamenti a medio lungo termine;4;Interessi passivi su finanziamenti a medio lungo termine a Imprese;3;Interessi passivi a Cassa Depositi e Prestiti SPA su mutui e altri finanziamenti a medio lungo termine;30/07/2020
2104;9;9999999;465,06;31.523,61;CASSA DEPOSITI E PRESTITI; ;Rata Interessi  1^Sem. 30/06/20 IMMOBILE USO UFFICIO;15/07/2020;7001;0;0;1;Spese correnti;7;Interessi passivi;5;Interessi su Mutui e altri finanziamenti a medio lungo termine;4;Interessi passivi su finanziamenti a medio lungo termine a Imprese;3;Interessi passivi a Cassa Depositi e Prestiti SPA su mutui e altri finanziamenti a medio lungo termine;30/07/2020
2104;10;9999999;483,75;31.523,61;CASSA DEPOSITI E PRESTITI; ;Rata Interessi  1^Sem. 30/06/20 STRADE COMUNALI;15/07/2020;7001;0;0;1;Spese correnti;7;Interessi passivi;5;Interessi su Mutui e altri finanziamenti a medio lungo termine;4;Interessi passivi su finanziamenti a medio lungo termine a Imprese;3;Interessi passivi a Cassa Depositi e Prestiti SPA su mutui e altri finanziamenti a medio lungo termine;30/07/2020
2104;11;9999999;485,67;31.523,61;CASSA DEPOSITI E PRESTITI; ;Rata Interessi  1^Sem. 30/06/20 STRADE COMUNALI;15/07/2020;7001;0;0;1;Spese correnti;7;Interessi passivi;5;Interessi su Mutui e altri finanziamenti a medio lungo termine;4;Interessi passivi su finanziamenti a medio lungo termine a Imprese;3;Interessi passivi a Cassa Depositi e Prestiti SPA su mutui e altri finanziamenti a medio lungo termine;30/07/2020
2104;12;9999999;487,69;31.523,61;CASSA DEPOSITI E PRESTITI; ;Rata Interessi  1^Sem. 30/06/20 OPERE VARIE, MISTE;15/07/2020;7001;0;0;1;Spese correnti;7;Interessi passivi;5;Interessi su Mutui e altri finanziamenti a medio lungo termine;4;Interessi passivi su finanziamenti a medio lungo termine a Imprese;3;Interessi passivi a Cassa Depositi e Prestiti SPA su mutui e altri finanziamenti a medio lungo termine;30/07/2020
2104;13;9999999;520,3;31.523,61;CASSA DEPOSITI E PRESTITI; ;Rata Interessi  1^Sem. 30/06/20 OPERE VARIE, MISTE;15/07/2020;7001;0;0;1;Spese correnti;7;Interessi passivi;5;Interessi su Mutui e altri finanziamenti a medio lungo termine;4;Interessi passivi su finanziamenti a medio lungo termine a Imprese;3;Interessi passivi a Cassa Depositi e Prestiti SPA su mutui e altri finanziamenti a medio lungo termine;30/07/2020
2104;14;9999999;522,82;31.523,61;CASSA DEPOSITI E PRESTITI; ;Rata Interessi  1^Sem. 30/06/20 SCUOLA ELEMENTARE;15/07/2020;7001;0;0;1;Spese correnti;7;Interessi passivi;5;Interessi su Mutui e altri finanziamenti a medio lungo termine;4;Interessi passivi su finanziamenti a medio lungo termine a Imprese;3;Interessi passivi a Cassa Depositi e Prestiti SPA su mutui e altri finanziamenti a medio lungo termine;30/07/2020
2104;15;9999999;589,75;31.523,61;CASSA DEPOSITI E PRESTITI; ;Rata Interessi  1^Sem. 30/06/20 CIMITERO;15/07/2020;7001;0;0;1;Spese correnti;7;Interessi passivi;5;Interessi su Mutui e altri finanziamenti a medio lungo termine;4;Interessi passivi su finanziamenti a medio lungo termine a Imprese;3;Interessi passivi a Cassa Depositi e Prestiti SPA su mutui e altri finanziamenti a medio lungo termine;30/07/2020
2104;16;9999999;609,65;31.523,61;CASSA DEPOSITI E PRESTITI; ;Rata Interessi  1^Sem. 30/06/20 OPERE DI VIABILITA' COMUNALI;15/07/2020;7001;0;0;1;Spese correnti;7;Interessi passivi;5;Interessi su Mutui e altri finanziamenti a medio lungo termine;4;Interessi passivi su finanziamenti a medio lungo termine a Imprese;3;Interessi passivi a Cassa Depositi e Prestiti SPA su mutui e altri finanziamenti a medio lungo termine;30/07/2020
2104;17;9999999;620,75;31.523,61;CASSA DEPOSITI E PRESTITI; ;Rata Interessi  1^Sem. 30/06/20 CIMITERO;15/07/2020;7001;0;0;1;Spese correnti;7;Interessi passivi;5;Interessi su Mutui e altri finanziamenti a medio lungo termine;4;Interessi passivi su finanziamenti a medio lungo termine a Imprese;3;Interessi passivi a Cassa Depositi e Prestiti SPA su mutui e altri finanziamenti a medio lungo termine;30/07/2020
2104;18;9999999;627,77;31.523,61;CASSA DEPOSITI E PRESTITI; ;Rata Interessi  1^Sem. 30/06/20 STRADE COMUNALI;15/07/2020;7001;0;0;1;Spese correnti;7;Interessi passivi;5;Interessi su Mutui e altri finanziamenti a medio lungo termine;4;Interessi passivi su finanziamenti a medio lungo termine a Imprese;3;Interessi passivi a Cassa Depositi e Prestiti SPA su mutui e altri finanziamenti a medio lungo termine;30/07/2020
2104;19;9999999;630,35;31.523,61;CASSA DEPOSITI E PRESTITI; ;Rata Interessi  1^Sem. 30/06/20 STRADE COMUNALI;15/07/2020;7001;0;0;1;Spese correnti;7;Interessi passivi;5;Interessi su Mutui e altri finanziamenti a medio lungo termine;4;Interessi passivi su finanziamenti a medio lungo termine a Imprese;3;Interessi passivi a Cassa Depositi e Prestiti SPA su mutui e altri finanziamenti a medio lungo termine;30/07/2020
2104;20;9999999;682,29;31.523,61;CASSA DEPOSITI E PRESTITI; ;Rata Interessi  1^Sem. 30/06/20 INCARICHI PROFESSIONALI;15/07/2020;7001;0;0;1;Spese correnti;7;Interessi passivi;5;Interessi su Mutui e altri finanziamenti a medio lungo termine;4;Interessi passivi su finanziamenti a medio lungo termine a Imprese;3;Interessi passivi a Cassa Depositi e Prestiti SPA su mutui e altri finanziamenti a medio lungo termine;30/07/2020
2104;21;9999999;692,01;31.523,61;CASSA DEPOSITI E PRESTITI; ;Rata Interessi  1^Sem. 30/06/20 IMPIANTI SPORTIVI;15/07/2020;7001;0;0;1;Spese correnti;7;Interessi passivi;5;Interessi su Mutui e altri finanziamenti a medio lungo termine;4;Interessi passivi su finanziamenti a medio lungo termine a Imprese;3;Interessi passivi a Cassa Depositi e Prestiti SPA su mutui e altri finanziamenti a medio lungo termine;30/07/2020
2104;22;9999999;745,27;31.523,61;CASSA DEPOSITI E PRESTITI; ;Rata Interessi  1^Sem. 30/06/20 OPERE ACCESSORIE SCUOLA;15/07/2020;7001;0;0;1;Spese correnti;7;Interessi passivi;5;Interessi su Mutui e altri finanziamenti a medio lungo termine;4;Interessi passivi su finanziamenti a medio lungo termine a Imprese;3;Interessi passivi a Cassa Depositi e Prestiti SPA su mutui e altri finanziamenti a medio lungo termine;30/07/2020
2104;23;9999999;770,54;31.523,61;CASSA DEPOSITI E PRESTITI; ;Rata Interessi  1^Sem. 30/06/20 STRADE COMUNALI;15/07/2020;7001;0;0;1;Spese correnti;7;Interessi passivi;5;Interessi su Mutui e altri finanziamenti a medio lungo termine;4;Interessi passivi su finanziamenti a medio lungo termine a Imprese;3;Interessi passivi a Cassa Depositi e Prestiti SPA su mutui e altri finanziamenti a medio lungo termine;30/07/2020
2104;24;9999999;823,23;31.523,61;CASSA DEPOSITI E PRESTITI; ;Rata Interessi  1^Sem. 30/06/20 STRADE COMUNALI;15/07/2020;7001;0;0;1;Spese correnti;7;Interessi passivi;5;Interessi su Mutui e altri finanziamenti a medio lungo termine;4;Interessi passivi su finanziamenti a medio lungo termine a Imprese;3;Interessi passivi a Cassa Depositi e Prestiti SPA su mutui e altri finanziamenti a medio lungo termine;30/07/2020
2104;25;9999999;850,54;31.523,61;CASSA DEPOSITI E PRESTITI; ;Rata Interessi  1^Sem. 30/06/20 STRADE COMUNALI;15/07/2020;7001;0;0;1;Spese correnti;7;Interessi passivi;5;Interessi su Mutui e altri finanziamenti a medio lungo termine;4;Interessi passivi su finanziamenti a medio lungo termine a Imprese;3;Interessi passivi a Cassa Depositi e Prestiti SPA su mutui e altri finanziamenti a medio lungo termine;30/07/2020
2104;26;9999999;867;31.523,61;CASSA DEPOSITI E PRESTITI; ;Rata Interessi  1^Sem. 30/06/20 SCUOLA ELEMENTARE;15/07/2020;7001;0;0;1;Spese correnti;7;Interessi passivi;5;Interessi su Mutui e altri finanziamenti a medio lungo termine;4;Interessi passivi su finanziamenti a medio lungo termine a Imprese;3;Interessi passivi a Cassa Depositi e Prestiti SPA su mutui e altri finanziamenti a medio lungo termine;30/07/2020
2104;27;9999999;909,46;31.523,61;CASSA DEPOSITI E PRESTITI; ;Rata Interessi  1^Sem. 30/06/20 IMPIANTO ILLUMINAZIONE;15/07/2020;7001;0;0;1;Spese correnti;7;Interessi passivi;5;Interessi su Mutui e altri finanziamenti a medio lungo termine;4;Interessi passivi su finanziamenti a medio lungo termine a Imprese;3;Interessi passivi a Cassa Depositi e Prestiti SPA su mutui e altri finanziamenti a medio lungo termine;30/07/2020
2104;28;9999999;973,81;31.523,61;CASSA DEPOSITI E PRESTITI; ;Rata Interessi  1^Sem. 30/06/20 CIMITERO;15/07/2020;7001;0;0;1;Spese correnti;7;Interessi passivi;5;Interessi su Mutui e altri finanziamenti a medio lungo termine;4;Interessi passivi su finanziamenti a medio lungo termine a Imprese;3;Interessi passivi a Cassa Depositi e Prestiti SPA su mutui e altri finanziamenti a medio lungo termine;30/07/2020
2104;29;9999999;1.039,35;31.523,61;CASSA DEPOSITI E PRESTITI; ;Rata Interessi  1^Sem. 30/06/20 IMPIANTI SPORTIVI;15/07/2020;7001;0;0;1;Spese correnti;7;Interessi passivi;5;Interessi su Mutui e altri finanziamenti a medio lungo termine;4;Interessi passivi su finanziamenti a medio lungo termine a Imprese;3;Interessi passivi a Cassa Depositi e Prestiti SPA su mutui e altri finanziamenti a medio lungo termine;30/07/2020
2104;30;9999999;1.061,39;31.523,61;CASSA DEPOSITI E PRESTITI; ;Rata Interessi  1^Sem. 30/06/20 OPERE DI VIABILITA' COMUNALI;15/07/2020;7001;0;0;1;Spese correnti;7;Interessi passivi;5;Interessi su Mutui e altri finanziamenti a medio lungo termine;4;Interessi passivi su finanziamenti a medio lungo termine a Imprese;3;Interessi passivi a Cassa Depositi e Prestiti SPA su mutui e altri finanziamenti a medio lungo termine;30/07/2020
2104;31;9999999;1.063,68;31.523,61;CASSA DEPOSITI E PRESTITI; ;Rata Interessi  1^Sem. 30/06/20 CIMITERO;15/07/2020;7001;0;0;1;Spese correnti;7;Interessi passivi;5;Interessi su Mutui e altri finanziamenti a medio lungo termine;4;Interessi passivi su finanziamenti a medio lungo termine a Imprese;3;Interessi passivi a Cassa Depositi e Prestiti SPA su mutui e altri finanziamenti a medio lungo termine;30/07/2020
2104;32;9999999;1.069,78;31.523,61;CASSA DEPOSITI E PRESTITI; ;Rata Interessi  1^Sem. 30/06/20 CIMITERO;15/07/2020;7001;0;0;1;Spese correnti;7;Interessi passivi;5;Interessi su Mutui e altri finanziamenti a medio lungo termine;4;Interessi passivi su finanziamenti a medio lungo termine a Imprese;3;Interessi passivi a Cassa Depositi e Prestiti SPA su mutui e altri finanziamenti a medio lungo termine;30/07/2020
2104;33;9999999;1.219,31;31.523,61;CASSA DEPOSITI E PRESTITI; ;Rata Interessi  1^Sem. 30/06/20 STRADE COMUNALI;15/07/2020;7001;0;0;1;Spese correnti;7;Interessi passivi;5;Interessi su Mutui e altri finanziamenti a medio lungo termine;4;Interessi passivi su finanziamenti a medio lungo termine a Imprese;3;Interessi passivi a Cassa Depositi e Prestiti SPA su mutui e altri finanziamenti a medio lungo termine;30/07/2020
2104;34;9999999;1.235,60;31.523,61;CASSA DEPOSITI E PRESTITI; ;Rata Interessi  1^Sem. 30/06/20 CIMITERO;15/07/2020;7001;0;0;1;Spese correnti;7;Interessi passivi;5;Interessi su Mutui e altri finanziamenti a medio lungo termine;4;Interessi passivi su finanziamenti a medio lungo termine a Imprese;3;Interessi passivi a Cassa Depositi e Prestiti SPA su mutui e altri finanziamenti a medio lungo termine;30/07/2020
2104;35;9999999;1.277,42;31.523,61;CASSA DEPOSITI E PRESTITI; ;Rata Interessi  1^Sem. 30/06/20 STRADE COMUNALI;15/07/2020;7001;0;0;1;Spese correnti;7;Interessi passivi;5;Interessi su Mutui e altri finanziamenti a medio lungo termine;4;Interessi passivi su finanziamenti a medio lungo termine a Imprese;3;Interessi passivi a Cassa Depositi e Prestiti SPA su mutui e altri finanziamenti a medio lungo termine;30/07/2020
2104;36;9999999;1.362,06;31.523,61;CASSA DEPOSITI E PRESTITI; ;Rata Interessi  1^Sem. 30/06/20 CIMITERO;15/07/2020;7001;0;0;1;Spese correnti;7;Interessi passivi;5;Interessi su Mutui e altri finanziamenti a medio lungo termine;4;Interessi passivi su finanziamenti a medio lungo termine a Imprese;3;Interessi passivi a Cassa Depositi e Prestiti SPA su mutui e altri finanziamenti a medio lungo termine;30/07/2020
2104;37;9999999;1.437,27;31.523,61;CASSA DEPOSITI E PRESTITI; ;Rata Interessi  1^Sem. 30/06/20 CIMITERO;15/07/2020;7001;0;0;1;Spese correnti;7;Interessi passivi;5;Interessi su Mutui e altri finanziamenti a medio lungo termine;4;Interessi passivi su finanziamenti a medio lungo termine a Imprese;3;Interessi passivi a Cassa Depositi e Prestiti SPA su mutui e altri finanziamenti a medio lungo termine;30/07/2020
2104;38;9999999;1.588,13;31.523,61;CASSA DEPOSITI E PRESTITI; ;Rata Interessi  1^Sem. 30/06/20 OPERE DI VIABILITA' COMUNALI;15/07/2020;7001;0;0;1;Spese correnti;7;Interessi passivi;5;Interessi su Mutui e altri finanziamenti a medio lungo termine;4;Interessi passivi su finanziamenti a medio lungo termine a Imprese;3;Interessi passivi a Cassa Depositi e Prestiti SPA su mutui e altri finanziamenti a medio lungo termine;30/07/2020
2104;39;9999999;1.828,88;31.523,61;CASSA DEPOSITI E PRESTITI; ;Rata Interessi  1^Sem. 30/06/20 OPERE DI VIABILITA' COMUNALI;15/07/2020;7001;0;0;1;Spese correnti;7;Interessi passivi;5;Interessi su Mutui e altri finanziamenti a medio lungo termine;4;Interessi passivi su finanziamenti a medio lungo termine a Imprese;3;Interessi passivi a Cassa Depositi e Prestiti SPA su mutui e altri finanziamenti a medio lungo termine;30/07/2020
2104;40;9999999;1.969,85;31.523,61;CASSA DEPOSITI E PRESTITI; ;Rata Interessi  1^Sem. 30/06/20 OPERE STRADALI VARIE;15/07/2020;7001;0;0;1;Spese correnti;7;Interessi passivi;5;Interessi su Mutui e altri finanziamenti a medio lungo termine;4;Interessi passivi su finanziamenti a medio lungo termine a Imprese;3;Interessi passivi a Cassa Depositi e Prestiti SPA su mutui e altri finanziamenti a medio lungo termine;30/07/2020
2105;1;9999999;2.145,31;57.920,51;CASSA DEPOSITI E PRESTITI; ;Rata Interessi  1^Sem. 30/06/20 IMMOBILE USO UFFICIO;15/07/2020;7001;0;0;1;Spese correnti;7;Interessi passivi;5;Interessi su Mutui e altri finanziamenti a medio lungo termine;4;Interessi passivi su finanziamenti a medio lungo termine a Imprese;3;Interessi passivi a Cassa Depositi e Prestiti SPA su mutui e altri finanziamenti a medio lungo termine;30/07/2020
2105;2;9999999;2.325,47;57.920,51;CASSA DEPOSITI E PRESTITI; ;Rata Interessi  1^Sem. 30/06/20 STRADE COMUNALI;15/07/2020;7001;0;0;1;Spese correnti;7;Interessi passivi;5;Interessi su Mutui e altri finanziamenti a medio lungo termine;4;Interessi passivi su finanziamenti a medio lungo termine a Imprese;3;Interessi passivi a Cassa Depositi e Prestiti SPA su mutui e altri finanziamenti a medio lungo termine;30/07/2020
2105;3;9999999;2.379,17;57.920,51;CASSA DEPOSITI E PRESTITI; ;Rata Interessi  1^Sem. 30/06/20 OPERE DI VIABILITA' COMUNALI;15/07/2020;7001;0;0;1;Spese correnti;7;Interessi passivi;5;Interessi su Mutui e altri finanziamenti a medio lungo termine;4;Interessi passivi su finanziamenti a medio lungo termine a Imprese;3;Interessi passivi a Cassa Depositi e Prestiti SPA su mutui e altri finanziamenti a medio lungo termine;30/07/2020
2105;4;9999999;2.473,99;57.920,51;CASSA DEPOSITI E PRESTITI; ;Rata Interessi  1^Sem. 30/06/20 INCARICHI;15/07/2020;7001;0;0;1;Spese correnti;7;Interessi passivi;5;Interessi su Mutui e altri finanziamenti a medio lungo termine;4;Interessi passivi su finanziamenti a medio lungo termine a Imprese;3;Interessi passivi a Cassa Depositi e Prestiti SPA su mutui e altri finanziamenti a medio lungo termine;30/07/2020
2105;5;9999999;2.494,06;57.920,51;CASSA DEPOSITI E PRESTITI; ;Rata Interessi  1^Sem. 30/06/20 PONTE COMUNALE;15/07/2020;7001;0;0;1;Spese correnti;7;Interessi passivi;5;Interessi su Mutui e altri finanziamenti a medio lungo termine;4;Interessi passivi su finanziamenti a medio lungo termine a Imprese;3;Interessi passivi a Cassa Depositi e Prestiti SPA su mutui e altri finanziamenti a medio lungo termine;30/07/2020
2105;6;9999999;2.513,02;57.920,51;CASSA DEPOSITI E PRESTITI; ;Rata Interessi  1^Sem. 30/06/20 STRADE COMUNALI;15/07/2020;7001;0;0;1;Spese correnti;7;Interessi passivi;5;Interessi su Mutui e altri finanziamenti a medio lungo termine;4;Interessi passivi su finanziamenti a medio lungo termine a Imprese;3;Interessi passivi a Cassa Depositi e Prestiti SPA su mutui e altri finanziamenti a medio lungo termine;30/07/2020
2105;7;9999999;3.440,60;57.920,51;CASSA DEPOSITI E PRESTITI; ;Rata Interessi  1^Sem. 30/06/20 IMPIANTO TECNOLOGICO;15/07/2020;7001;0;0;1;Spese correnti;7;Interessi passivi;5;Interessi su Mutui e altri finanziamenti a medio lungo termine;4;Interessi passivi su finanziamenti a medio lungo termine a Imprese;3;Interessi passivi a Cassa Depositi e Prestiti SPA su mutui e altri finanziamenti a medio lungo termine;30/07/2020
2105;8;9999999;3.964,79;57.920,51;CASSA DEPOSITI E PRESTITI; ;Rata Interessi  1^Sem. 30/06/20 IMPIANTI SPORTIVI;15/07/2020;7001;0;0;1;Spese correnti;7;Interessi passivi;5;Interessi su Mutui e altri finanziamenti a medio lungo termine;4;Interessi passivi su finanziamenti a medio lungo termine a Imprese;3;Interessi passivi a Cassa Depositi e Prestiti SPA su mutui e altri finanziamenti a medio lungo termine;30/07/2020
2105;9;9999999;4.520,87;57.920,51;CASSA DEPOSITI E PRESTITI; ;Rata Interessi  1^Sem. 30/06/20 OPERE DI VIABILITA' COMUNALI;15/07/2020;7001;0;0;1;Spese correnti;7;Interessi passivi;5;Interessi su Mutui e altri finanziamenti a medio lungo termine;4;Interessi passivi su finanziamenti a medio lungo termine a Imprese;3;Interessi passivi a Cassa Depositi e Prestiti SPA su mutui e altri finanziamenti a medio lungo termine;30/07/2020
2105;10;9999999;4.871,20;57.920,51;CASSA DEPOSITI E PRESTITI; ;Rata Interessi  1^Sem. 30/06/20 IMMOBILE COMUNALE;15/07/2020;7001;0;0;1;Spese correnti;7;Interessi passivi;5;Interessi su Mutui e altri finanziamenti a medio lungo termine;4;Interessi passivi su finanziamenti a medio lungo termine a Imprese;3;Interessi passivi a Cassa Depositi e Prestiti SPA su mutui e altri finanziamenti a medio lungo termine;30/07/2020
2105;11;9999999;6.096,28;57.920,51;CASSA DEPOSITI E PRESTITI; ;Rata Interessi  1^Sem. 30/06/20 EDIFICI SCOLASTICI VARI;15/07/2020;7001;0;0;1;Spese correnti;7;Interessi passivi;5;Interessi su Mutui e altri finanziamenti a medio lungo termine;4;Interessi passivi su finanziamenti a medio lungo termine a Imprese;3;Interessi passivi a Cassa Depositi e Prestiti SPA su mutui e altri finanziamenti a medio lungo termine;30/07/2020
2105;12;9999999;6.479,77;57.920,51;CASSA DEPOSITI E PRESTITI; ;Rata Interessi  1^Sem. 30/06/20 OPERE DI VIABILITA' COMUNALI;15/07/2020;7001;0;0;1;Spese correnti;7;Interessi passivi;5;Interessi su Mutui e altri finanziamenti a medio lungo termine;4;Interessi passivi su finanziamenti a medio lungo termine a Imprese;3;Interessi passivi a Cassa Depositi e Prestiti SPA su mutui e altri finanziamenti a medio lungo termine;30/07/2020
2105;13;9999999;6.484,37;57.920,51;CASSA DEPOSITI E PRESTITI; ;Rata Interessi  1^Sem. 30/06/20 IMMOBILE COMUNALE;15/07/2020;7001;0;0;1;Spese correnti;7;Interessi passivi;5;Interessi su Mutui e altri finanziamenti a medio lungo termine;4;Interessi passivi su finanziamenti a medio lungo termine a Imprese;3;Interessi passivi a Cassa Depositi e Prestiti SPA su mutui e altri finanziamenti a medio lungo termine;30/07/2020
2105;14;9999999;7.731,61;57.920,51;CASSA DEPOSITI E PRESTITI; ;Rata Interessi  1^Sem. 30/06/20 IMMOBILE COMUNALE;15/07/2020;7001;0;0;1;Spese correnti;7;Interessi passivi;5;Interessi su Mutui e altri finanziamenti a medio lungo termine;4;Interessi passivi su finanziamenti a medio lungo termine a Imprese;3;Interessi passivi a Cassa Depositi e Prestiti SPA su mutui e altri finanziamenti a medio lungo termine;30/07/2020
2108;1;9999999;7,05;7,05;ABACO S.P.A.;Z4B0FF1CA6;SALDO Fatt.n. 2020140002471  del 01/07/2020 RISCOSSIONE COATTIVA INCASSI CDS LOTTO 1 RENDICONTO GIUGNO 2020 CIG.Z4B0FF1CA6;15/07/2020;332;0;0;1;Spese correnti;3;Acquisto di beni e servizi;2;Acquisto di servizi;3;Aggi di riscossione;999;Altri aggi di riscossione n.a.c.;17/07/2020
2109;1;9999999;50;50;FARMACIA ZOTTI S.N.C. DI BARUFFALDI L. E A.; ;FORNITURA BENI DI PRIMA NECESSITA;15/07/2020;4122;0;462;1;Spese correnti;3;Acquisto di beni e servizi;1;Acquisto di beni;2;Altri beni di consumo;11;Generi alimentari;17/07/2020
2110;1;9999999;117,26;117,26;OMESSO NOMINATIVO NEL RISPETTO DELLA NORMATIVA SULLA PROTEZIONE DATI PERSONALI; ;QUOTA A SALDO MINIMO VITALE GIUGNO 2020;15/07/2020;4157;0;528;1;Spese correnti;4;Trasferimenti correnti;2;Trasferimenti correnti a Famiglie;2;Interventi assistenziali;999;Altri assegni e sussidi assistenziali;21/07/2020
2111;1;9999999;250,1;250,1;ABACO S.P.A.;5325258DE8;SALDO Fatt.n. 2020140002472  del 01/07/2020 RISCOSSIONE COATTIVA INCASSI ICI IMU E TASI LOTTO 5 RENDICONTO DELLA GESTIONE GIUGNO 2020 CIG.5325258DE8;15/07/2020;332;0;0;1;Spese correnti;3;Acquisto di beni e servizi;2;Acquisto di servizi;3;Aggi di riscossione;999;Altri aggi di riscossione n.a.c.;17/07/2020
2113;1;9999999;66,83;66,83;ABACO S.P.A.;5325258DE8;SALDO Fatt.n. 2020140002473  del 01/07/2020 RISCOSSIONE COATTIVA INCASSI ICI IMU TASI LOTTO 6 RENDICONTO DELLA GESTIONE GIUGNO 2020 CIG.5325258DE8;15/07/2020;332;0;0;1;Spese correnti;3;Acquisto di beni e servizi;2;Acquisto di servizi;3;Aggi di riscossione;999;Altri aggi di riscossione n.a.c.;17/07/2020
2114;1;9999999;66,49;66,49;ABACO S.P.A.;766214493F;SALDO Fatt.n. 2020120002664  del 06/07/2020 RISCOSSIONE ICP E DPA CONTO ABACO SPA RENDICONTO DELLA GESTIONE DAL 01/06/2020 A 30/06/2020 CIG. 766214493F;15/07/2020;332;0;1228;1;Spese correnti;3;Acquisto di beni e servizi;2;Acquisto di servizi;3;Aggi di riscossione;999;Altri aggi di riscossione n.a.c.;17/07/2020
2115;1;9999999;25,16;25,16;C/C/P 1039683022 ICP - PUBB.AFFISSIONI; ;SPESE GESTIONE CONTO ICP E DPA RENDICONTO GIUGNO 2020;16/07/2020;146;0;0;1;Spese correnti;3;Acquisto di beni e servizi;2;Acquisto di servizi;17;Servizi finanziari;999;Spese per servizi finanziari n.a.c.;21/07/2020
2116;1;9999999;600;600;LABS LABORATORIO SOLIDALE ONLUS; ;DISTRIBUZIONE STRAORDINARIA LOCANDINE ESTIVA 2020;17/07/2020;1859;0;97;1;Spese correnti;4;Trasferimenti correnti;4;Trasferimenti correnti a Istituzioni Sociali Private;1;Trasferimenti correnti a Istituzioni Sociali Private;1;Trasferimenti correnti a Istituzioni Sociali Private;21/07/2020
2117;1;9999999;2.000,00;2.000,00;LABS LABORATORIO SOLIDALE ONLUS; ;CONTRIBUTO PER ATTIVITA SVOLTE DURANTE LOCKDOWN;17/07/2020;4059;0;94;1;Spese correnti;4;Trasferimenti correnti;4;Trasferimenti correnti a Istituzioni Sociali Private;1;Trasferimenti correnti a Istituzioni Sociali Private;1;Trasferimenti correnti a Istituzioni Sociali Private;21/07/2020
2118;1;9999999;3.000,00;3.000,00;MANO AMICA - GRUPPO SALESE DI IMPEGNO SOCIALE O.D.V.; ;CONTRIBUTO ATTITIVA' GIUGNO 2020;17/07/2020;4059;0;98;1;Spese correnti;4;Trasferimenti correnti;4;Trasferimenti correnti a Istituzioni Sociali Private;1;Trasferimenti correnti a Istituzioni Sociali Private;1;Trasferimenti correnti a Istituzioni Sociali Private;21/07/2020
2119;1;9999999;573,46;573,46;ABACO S.P.A.;766214493F;SALDO Fatt.n. 2020120002665  del 06/07/2020 RISCOSSIONE ICP E DPA CONTO ENTE RENDICONTO DELLA GESTIONE DAL 01/06/2020 A 30/06/2020 CIG. 766214493F;17/07/2020;332;0;1228;1;Spese correnti;3;Acquisto di beni e servizi;2;Acquisto di servizi;3;Aggi di riscossione;999;Altri aggi di riscossione n.a.c.;21/07/2020
2120;1;9999999;400;8.586,72;DIVERSI - DIPENDENTI COMUNALI; ;STIPENDI MESE DI LUGLIO 20;20/07/2020;30;99;0;1;Spese correnti;3;Acquisto di beni e servizi;2;Acquisto di servizi;1;Organi e incarichi istituzionali dell'amministrazione;1;Organi istituzionali dell'amministrazione - Indennità;24/07/2020
2120;2;9999999;8.186,72;8.586,72;DIVERSI-AMMINISTRATORI COM.LI; ;STIPENDI MESE DI LUGLIO 20;20/07/2020;30;99;0;1;Spese correnti;3;Acquisto di beni e servizi;2;Acquisto di servizi;1;Organi e incarichi istituzionali dell'amministrazione;1;Organi istituzionali dell'amministrazione - Indennità;24/07/2020
2196;1;9999999;887;887;OMESSO NOMINATIVO NEL RISPETTO DELLA NORMATIVA SULLA PROTEZIONE DATI PERSONALI; ;LUGLIO 2020 INT.RETTA CASA DI RIPOSO;20/07/2020;3844;0;544;1;Spese correnti;3;Acquisto di beni e servizi;2;Acquisto di servizi;15;Contratti di servizio pubblico;8;Contratti di servizio di assistenza sociale residenziale e semiresidenziale;23/07/2020
2197;1;9999999;380;380;OMESSO NOMINATIVO NEL RISPETTO DELLA NORMATIVA SULLA PROTEZIONE DATI PERSONALI; ;LUGLIO 2020  INTEGRAZIONE RETTA CASA DI RIPOSO DON ORIONE DI TREBASELEGHE.;20/07/2020;3844;0;545;1;Spese correnti;3;Acquisto di beni e servizi;2;Acquisto di servizi;15;Contratti di servizio pubblico;8;Contratti di servizio di assistenza sociale residenziale e semiresidenziale;23/07/2020
2198;1;9999999;300;300;OMESSO NOMINATIVO NEL RISPETTO DELLA NORMATIVA SULLA PROTEZIONE DATI PERSONALI; ;LUGLIO / AGOSTO MINIMO VITALE 2020;21/07/2020;4157;0;520;1;Spese correnti;4;Trasferimenti correnti;2;Trasferimenti correnti a Famiglie;2;Interventi assistenziali;999;Altri assegni e sussidi assistenziali;24/07/2020
2199;1;9999999;200;200;OMESSO NOMINATIVO NEL RISPETTO DELLA NORMATIVA SULLA PROTEZIONE DATI PERSONALI; ;LUGLIO AGOSTO 2020 MINIMO VITALE;21/07/2020;4157;0;580;1;Spese correnti;4;Trasferimenti correnti;2;Trasferimenti correnti a Famiglie;2;Interventi assistenziali;999;Altri assegni e sussidi assistenziali;24/07/2020
2200;1;9999999;260;260;OMESSO NOMINATIVO NEL RISPETTO DELLA NORMATIVA SULLA PROTEZIONE DATI PERSONALI; ;LUGLIO AGOSTO 2020 MINIMO VITALE;21/07/2020;4157;0;353;1;Spese correnti;4;Trasferimenti correnti;2;Trasferimenti correnti a Famiglie;2;Interventi assistenziali;999;Altri assegni e sussidi assistenziali;31/07/2020
2201;1;9999999;1.200,00;1.200,00;OMESSO NOMINATIVO NEL RISPETTO DELLA NORMATIVA SULLA PROTEZIONE DATI PERSONALI; ;LUGLIO  2020 MINIMO VITALE;21/07/2020;4157;0;581;1;Spese correnti;4;Trasferimenti correnti;2;Trasferimenti correnti a Famiglie;2;Interventi assistenziali;999;Altri assegni e sussidi assistenziali;23/07/2020
2202;1;9999999;200;200;OMESSO NOMINATIVO NEL RISPETTO DELLA NORMATIVA SULLA PROTEZIONE DATI PERSONALI; ;LUGLIO AGOSTO 2020 MINIMO VITALE;21/07/2020;4157;0;524;1;Spese correnti;4;Trasferimenti correnti;2;Trasferimenti correnti a Famiglie;2;Interventi assistenziali;999;Altri assegni e sussidi assistenziali;28/07/2020
2203;1;9999999;200;200;OMESSO NOMINATIVO NEL RISPETTO DELLA NORMATIVA SULLA PROTEZIONE DATI PERSONALI; ;LUGLIO 2020 MINIMO VITALE;21/07/2020;4157;0;471;1;Spese correnti;4;Trasferimenti correnti;2;Trasferimenti correnti a Famiglie;2;Interventi assistenziali;999;Altri assegni e sussidi assistenziali;28/07/2020
2204;1;9999999;1.200,00;1.200,00;OMESSO NOMINATIVO NEL RISPETTO DELLA NORMATIVA SULLA PROTEZIONE DATI PERSONALI; ;PROGETTO LUGLIO AGOSTO 2020;21/07/2020;4157;0;31;1;Spese correnti;4;Trasferimenti correnti;2;Trasferimenti correnti a Famiglie;2;Interventi assistenziali;999;Altri assegni e sussidi assistenziali;23/07/2020
2205;1;9999999;200;200;OMESSO NOMINATIVO NEL RISPETTO DELLA NORMATIVA SULLA PROTEZIONE DATI PERSONALI; ;LUGLIO AGOSTO 2020 MINIMO VITALE;21/07/2020;4157;0;472;1;Spese correnti;4;Trasferimenti correnti;2;Trasferimenti correnti a Famiglie;2;Interventi assistenziali;999;Altri assegni e sussidi assistenziali;27/07/2020
2206;1;9999999;800;800;OMESSO NOMINATIVO NEL RISPETTO DELLA NORMATIVA SULLA PROTEZIONE DATI PERSONALI; ;LUGLIO 2020 MINIMO VITALE;21/07/2020;4157;0;582;1;Spese correnti;4;Trasferimenti correnti;2;Trasferimenti correnti a Famiglie;2;Interventi assistenziali;999;Altri assegni e sussidi assistenziali;27/07/2020
2207;1;9999999;1.200,00;1.200,00;OMESSO NOMINATIVO NEL RISPETTO DELLA NORMATIVA SULLA PROTEZIONE DATI PERSONALI; ;MINIMO VITALE LUGLIO 2020;21/07/2020;4157;0;583;1;Spese correnti;4;Trasferimenti correnti;2;Trasferimenti correnti a Famiglie;2;Interventi assistenziali;999;Altri assegni e sussidi assistenziali;23/07/2020
2208;1;9999999;668,22;668,22;OMESSO NOMINATIVO NEL RISPETTO DELLA NORMATIVA SULLA PROTEZIONE DATI PERSONALI; ;LUGLIO 2020 MINIMO VITALE;21/07/2020;4157;0;584;1;Spese correnti;4;Trasferimenti correnti;2;Trasferimenti correnti a Famiglie;2;Interventi assistenziali;999;Altri assegni e sussidi assistenziali;24/07/2020
2209;1;9999999;80;80;OMESSO NOMINATIVO NEL RISPETTO DELLA NORMATIVA SULLA PROTEZIONE DATI PERSONALI; ;LUGLIO 2020 MINIMO VITALE;21/07/2020;4157;0;473;1;Spese correnti;4;Trasferimenti correnti;2;Trasferimenti correnti a Famiglie;2;Interventi assistenziali;999;Altri assegni e sussidi assistenziali;24/07/2020
2210;1;9999999;175,4;175,4;OMESSO NOMINATIVO NEL RISPETTO DELLA NORMATIVA SULLA PROTEZIONE DATI PERSONALI; ;MINIMO VITALE LUGLIO 2020;21/07/2020;4157;0;585;1;Spese correnti;4;Trasferimenti correnti;2;Trasferimenti correnti a Famiglie;2;Interventi assistenziali;999;Altri assegni e sussidi assistenziali;04/08/2020
2211;1;9999999;374,6;374,6;OMESSO NOMINATIVO NEL RISPETTO DELLA NORMATIVA SULLA PROTEZIONE DATI PERSONALI; ;PROGETTUALITA REGIONALE PER IL SOSTEGNO ALLABITARE (SO.A.) DI CUI ALLE DD.GG.RR. N. 1106;21/07/2020;4157;51;589;1;Spese correnti;4;Trasferimenti correnti;2;Trasferimenti correnti a Famiglie;2;Interventi assistenziali;999;Altri assegni e sussidi assistenziali;04/08/2020
2212;1;9999999;300;2.100,00;OMESSO NOMINATIVO NEL RISPETTO DELLA NORMATIVA SULLA PROTEZIONE DATI PERSONALI; ;LUGLIO 2020 INT.RETTA;21/07/2020;3844;0;590;1;Spese correnti;3;Acquisto di beni e servizi;2;Acquisto di servizi;15;Contratti di servizio pubblico;8;Contratti di servizio di assistenza sociale residenziale e semiresidenziale;23/07/2020
2212;2;9999999;1.800,00;2.100,00;OMESSO NOMINATIVO NEL RISPETTO DELLA NORMATIVA SULLA PROTEZIONE DATI PERSONALI; ;GENNAIO / GIUGNO 2020 INT.RETTA;21/07/2020;3844;0;590;1;Spese correnti;3;Acquisto di beni e servizi;2;Acquisto di servizi;15;Contratti di servizio pubblico;8;Contratti di servizio di assistenza sociale residenziale e semiresidenziale;23/07/2020
2213;1;9999999;300;300;LABS LABORATORIO SOLIDALE ONLUS; ;CONTRIBUTO PER ORGANIZZAZIONE CINEMA SOTTO LE STELLE LUGLIO 2020;21/07/2020;1859;0;97;1;Spese correnti;4;Trasferimenti correnti;4;Trasferimenti correnti a Istituzioni Sociali Private;1;Trasferimenti correnti a Istituzioni Sociali Private;1;Trasferimenti correnti a Istituzioni Sociali Private;23/07/2020
2214;1;9999999;110;110;OMESSO NOMINATIVO NEL RISPETTO DELLA NORMATIVA SULLA PROTEZIONE DATI PERSONALI; ;INT.RETTE SCUOLA MATERNA PERIODO MARZO APRILE MAGGIO GIUGNO 2020 M.S.;21/07/2020;3757;0;586;1;Spese correnti;4;Trasferimenti correnti;2;Trasferimenti correnti a Famiglie;5;Altri trasferimenti a famiglie;999;Altri trasferimenti a famiglie n.a.c.;23/07/2020
2215;1;9999999;110;110;OMESSO NOMINATIVO NEL RISPETTO DELLA NORMATIVA SULLA PROTEZIONE DATI PERSONALI; ;INT.RETTE SCUOLA MATERNA PERIODO MARZO APRILE MAGGIO GIUGNO 2020 M.F.;21/07/2020;3757;0;586;1;Spese correnti;4;Trasferimenti correnti;2;Trasferimenti correnti a Famiglie;5;Altri trasferimenti a famiglie;999;Altri trasferimenti a famiglie n.a.c.;23/07/2020
2216;1;9999999;59,97;59,97;ZAMENGO UGO; ;I SEMESTRE 2020 INDENNITA DI PRESENZA AI COMPONENTI DEL CONSIGLIO COMUNALE, DELLE COMMISSIONI;21/07/2020;30;99;71;1;Spese correnti;3;Acquisto di beni e servizi;2;Acquisto di servizi;1;Organi e incarichi istituzionali dell'amministrazione;1;Organi istituzionali dell'amministrazione - Indennità;23/07/2020
2217;1;9999999;19,99;19,99;MERLO ENRICO; ;I SEMESTRE 2020 INDENNITA DI PRESENZA AI COMPONENTI DEL CONSIGLIO COMUNALE, DELLE COMMISSIONI;21/07/2020;30;99;71;1;Spese correnti;3;Acquisto di beni e servizi;2;Acquisto di servizi;1;Organi e incarichi istituzionali dell'amministrazione;1;Organi istituzionali dell'amministrazione - Indennità;23/07/2020
2218;1;9999999;19,99;19,99;MIELE LUIGINO; ;I SEMESTRE 2020 INDENNITA DI PRESENZA AI COMPONENTI DEL CONSIGLIO COMUNALE, DELLE COMMISSIONI;21/07/2020;30;99;71;1;Spese correnti;3;Acquisto di beni e servizi;2;Acquisto di servizi;1;Organi e incarichi istituzionali dell'amministrazione;1;Organi istituzionali dell'amministrazione - Indennità;23/07/2020
2219;1;9999999;39,98;39,98;RAGAZZO GABRIELE; ;I SEMESTRE 2020 INDENNITA DI PRESENZA AI COMPONENTI DEL CONSIGLIO COMUNALE, DELLE COMMISSIONI;21/07/2020;30;99;71;1;Spese correnti;3;Acquisto di beni e servizi;2;Acquisto di servizi;1;Organi e incarichi istituzionali dell'amministrazione;1;Organi istituzionali dell'amministrazione - Indennità;23/07/2020
2220;1;9999999;19,99;19,99;CARRILLO ANGELA; ;I SEMESTRE 2020 INDENNITA DI PRESENZA AI COMPONENTI DEL CONSIGLIO COMUNALE, DELLE COMMISSIONI;21/07/2020;30;99;71;1;Spese correnti;3;Acquisto di beni e servizi;2;Acquisto di servizi;1;Organi e incarichi istituzionali dell'amministrazione;1;Organi istituzionali dell'amministrazione - Indennità;23/07/2020
2221;1;9999999;59,97;59,97;BASSO MARIA CHIARA; ;I SEMESTRE 2020 INDENNITA DI PRESENZA AI COMPONENTI DEL CONSIGLIO COMUNALE, DELLE COMMISSIONI;21/07/2020;30;99;71;1;Spese correnti;3;Acquisto di beni e servizi;2;Acquisto di servizi;1;Organi e incarichi istituzionali dell'amministrazione;1;Organi istituzionali dell'amministrazione - Indennità;23/07/2020
2222;1;9999999;79,96;79,96;BERTOLIN MONICA; ;I SEMESTRE 2020 INDENNITA DI PRESENZA AI COMPONENTI DEL CONSIGLIO COMUNALE, DELLE COMMISSIONI;21/07/2020;30;99;71;1;Spese correnti;3;Acquisto di beni e servizi;2;Acquisto di servizi;1;Organi e incarichi istituzionali dell'amministrazione;1;Organi istituzionali dell'amministrazione - Indennità;23/07/2020
2223;1;9999999;39,98;39,98;ZANCHIN ALESSIO; ;I SEMESTRE 2020 INDENNITA DI PRESENZA AI COMPONENTI DEL CONSIGLIO COMUNALE, DELLE COMMISSIONI;21/07/2020;30;99;71;1;Spese correnti;3;Acquisto di beni e servizi;2;Acquisto di servizi;1;Organi e incarichi istituzionali dell'amministrazione;1;Organi istituzionali dell'amministrazione - Indennità;23/07/2020
2224;1;9999999;59,97;59,97;MOGNO GLENDA; ;I SEMESTRE 2020 INDENNITA DI PRESENZA AI COMPONENTI DEL CONSIGLIO COMUNALE, DELLE COMMISSIONI;21/07/2020;30;99;71;1;Spese correnti;3;Acquisto di beni e servizi;2;Acquisto di servizi;1;Organi e incarichi istituzionali dell'amministrazione;1;Organi istituzionali dell'amministrazione - Indennità;23/07/2020
2225;1;9999999;39,98;39,98;BASSO GIOIA; ;I SEMESTRE 2020 INDENNITA DI PRESENZA AI COMPONENTI DEL CONSIGLIO COMUNALE, DELLE COMMISSIONI;21/07/2020;30;99;71;1;Spese correnti;3;Acquisto di beni e servizi;2;Acquisto di servizi;1;Organi e incarichi istituzionali dell'amministrazione;1;Organi istituzionali dell'amministrazione - Indennità;23/07/2020
2226;1;9999999;39,98;39,98;ANDREELLO GIULIANA; ;I SEMESTRE 2020 INDENNITA DI PRESENZA AI COMPONENTI DEL CONSIGLIO COMUNALE, DELLE COMMISSIONI;21/07/2020;30;99;71;1;Spese correnti;3;Acquisto di beni e servizi;2;Acquisto di servizi;1;Organi e incarichi istituzionali dell'amministrazione;1;Organi istituzionali dell'amministrazione - Indennità;23/07/2020
2227;1;9999999;119,94;119,94;RODIGHIERO GIUSEPPE; ;I SEMESTRE 2020 INDENNITA DI PRESENZA AI COMPONENTI DEL CONSIGLIO COMUNALE, DELLE COMMISSIONI;21/07/2020;30;99;71;1;Spese correnti;3;Acquisto di beni e servizi;2;Acquisto di servizi;1;Organi e incarichi istituzionali dell'amministrazione;1;Organi istituzionali dell'amministrazione - Indennità;23/07/2020
2228;1;9999999;19,99;19,99;COLETTO CRISTIANO; ;I SEMESTRE 2020 INDENNITA DI PRESENZA AI COMPONENTI DEL CONSIGLIO COMUNALE, DELLE COMMISSIONI;21/07/2020;30;99;71;1;Spese correnti;3;Acquisto di beni e servizi;2;Acquisto di servizi;1;Organi e incarichi istituzionali dell'amministrazione;1;Organi istituzionali dell'amministrazione - Indennità;23/07/2020
2229;1;9999999;79,96;79,96;VANZETTO GIOVANNI; ;I SEMESTRE 2020 INDENNITA DI PRESENZA AI COMPONENTI DEL CONSIGLIO COMUNALE, DELLE COMMISSIONI;21/07/2020;30;99;71;1;Spese correnti;3;Acquisto di beni e servizi;2;Acquisto di servizi;1;Organi e incarichi istituzionali dell'amministrazione;1;Organi istituzionali dell'amministrazione - Indennità;23/07/2020
2230;1;9999999;99,95;99,95;GIORDAN CHRISTIAN; ;I SEMESTRE 2020 INDENNITA DI PRESENZA AI COMPONENTI DEL CONSIGLIO COMUNALE, DELLE COMMISSIONI;21/07/2020;30;99;71;1;Spese correnti;3;Acquisto di beni e servizi;2;Acquisto di servizi;1;Organi e incarichi istituzionali dell'amministrazione;1;Organi istituzionali dell'amministrazione - Indennità;23/07/2020
2231;1;9999999;19,56;439,39;ENEL ENERGIA SPA;77999756FD;SALDO Fatt.n. 004043264969  del 06/07/2020 GIUGNO 2020 - CONSUMI FONTANA VETERNIGO;21/07/2020;134;31;116;1;Spese correnti;3;Acquisto di beni e servizi;2;Acquisto di servizi;5;Utenze e canoni;4;Energia elettrica;24/07/2020
2231;2;9999999;31,94;439,39;ENEL ENERGIA SPA;77999756FD;SALDO Fatt.n. 004043265046  del 06/07/2020 GIUGNO 2020 - CONSUMI PARCHEGGIO C.C. PRISMA CASELLE;21/07/2020;134;31;116;1;Spese correnti;3;Acquisto di beni e servizi;2;Acquisto di servizi;5;Utenze e canoni;4;Energia elettrica;24/07/2020
2231;3;9999999;41,07;439,39;ENEL ENERGIA SPA;77999756FD;SALDO Fatt.n. 004043265010  del 06/07/2020 GIUGNO 2020 - CONSUMI MERCATO CALTANA;21/07/2020;134;31;116;1;Spese correnti;3;Acquisto di beni e servizi;2;Acquisto di servizi;5;Utenze e canoni;4;Energia elettrica;24/07/2020
2231;4;9999999;42,6;439,39;ENEL ENERGIA SPA;77999756FD;SALDO Fatt.n. 004043264914  del 06/07/2020 GIUGNO 2020 - CONSUMI ALLOGGIO VIA OLIMPIA SMS;21/07/2020;134;31;116;1;Spese correnti;3;Acquisto di beni e servizi;2;Acquisto di servizi;5;Utenze e canoni;4;Energia elettrica;24/07/2020
2231;5;9999999;43,52;439,39;ENEL ENERGIA SPA;77999756FD;SALDO Fatt.n. 004043264916  del 06/07/2020 GIUGNO 2020 - CONSUMI PARCHEGGIO OVALE SMS;21/07/2020;134;31;116;1;Spese correnti;3;Acquisto di beni e servizi;2;Acquisto di servizi;5;Utenze e canoni;4;Energia elettrica;24/07/2020
2231;6;9999999;44,31;439,39;ENEL ENERGIA SPA;77999756FD;SALDO Fatt.n. 004043265038  del 06/07/2020 GIUGNO 2020 - CONSUMI ALLOGGIO VIA DON GALLERANI CALTANA;21/07/2020;134;31;116;1;Spese correnti;3;Acquisto di beni e servizi;2;Acquisto di servizi;5;Utenze e canoni;4;Energia elettrica;24/07/2020
2231;7;9999999;60,77;439,39;ENEL ENERGIA SPA;77999756FD;SALDO Fatt.n. 004043265008  del 06/07/2020 GIUGNO 2020 - CONSUMI MERCATO CASELLE;21/07/2020;134;31;116;1;Spese correnti;3;Acquisto di beni e servizi;2;Acquisto di servizi;5;Utenze e canoni;4;Energia elettrica;24/07/2020
2231;8;9999999;68,49;439,39;ENEL ENERGIA SPA;77999756FD;SALDO Fatt.n. 004043265016  del 06/07/2020 GIUGNO 2020 - CONSUMI MERCATO SMS;21/07/2020;134;31;116;1;Spese correnti;3;Acquisto di beni e servizi;2;Acquisto di servizi;5;Utenze e canoni;4;Energia elettrica;24/07/2020
2231;9;9999999;87,13;439,39;ENEL ENERGIA SPA;77999756FD;SALDO Fatt.n. 004043264972  del 06/07/2020 GIUGNO 2020 - CONSUMI P.ZZA S.D.A. CALTANA;21/07/2020;134;31;116;1;Spese correnti;3;Acquisto di beni e servizi;2;Acquisto di servizi;5;Utenze e canoni;4;Energia elettrica;24/07/2020
2232;1;9999999;929,77;929,77;ENEL ENERGIA SPA;77999756FD;SALDO Fatt.n. 004043265052  del 06/07/2020 GIUGNO 2020 - CONSUMI SEDE MUNICIPALE;21/07/2020;134;31;116;1;Spese correnti;3;Acquisto di beni e servizi;2;Acquisto di servizi;5;Utenze e canoni;4;Energia elettrica;24/07/2020
2233;1;9999999;418,24;418,24;ENEL ENERGIA SPA;77999756FD;SALDO Fatt.n. 004043264963  del 06/07/2020 GIUGNO 2020 - CONSUMI VILLA FARSETTI;21/07/2020;134;31;116;1;Spese correnti;3;Acquisto di beni e servizi;2;Acquisto di servizi;5;Utenze e canoni;4;Energia elettrica;24/07/2020
2234;1;9999999;4,65;4,65;ENEL ENERGIA SPA;77999756FD;ACCONTO Fatt.n. 004043264966  del 06/07/2020 GIUGNO 2020 - CONSUMI CIMITERO SMS - LAMPADE VOTIVE;21/07/2020;134;31;116;1;Spese correnti;3;Acquisto di beni e servizi;2;Acquisto di servizi;5;Utenze e canoni;4;Energia elettrica;24/07/2020
2235;1;9999999;36;36;ENEL ENERGIA SPA;77999756FD;SALDO Fatt.n. 004043264966  del 06/07/2020 GIUGNO 2020 - CONSUMI CIMITERO SMS - LAMPADE VOTIVE;21/07/2020;134;31;116;1;Spese correnti;3;Acquisto di beni e servizi;2;Acquisto di servizi;5;Utenze e canoni;4;Energia elettrica;24/07/2020
2236;1;9999999;38;38;ENEL ENERGIA SPA;77999756FD;ACCONTO Fatt.n. 004043264974  del 06/07/2020 GIUGNO 2020 - CONSUMI CIMITERO CASELLE - LAMPADE VOTIVE;21/07/2020;134;31;116;1;Spese correnti;3;Acquisto di beni e servizi;2;Acquisto di servizi;5;Utenze e canoni;4;Energia elettrica;24/07/2020
2237;1;9999999;5,74;5,74;ENEL ENERGIA SPA;77999756FD;SALDO Fatt.n. 004043264974  del 06/07/2020 GIUGNO 2020 - CONSUMI CIMITERO CASELLE - LAMPADE VOTIVE;21/07/2020;134;31;116;1;Spese correnti;3;Acquisto di beni e servizi;2;Acquisto di servizi;5;Utenze e canoni;4;Energia elettrica;24/07/2020
2238;1;9999999;80;80;ENEL ENERGIA SPA;77999756FD;ACCONTO Fatt.n. 004043265039  del 06/07/2020 GIUGNO 2020 - CONSUMI CIMITERO CALTANA - LAMPADE VOTIVE;21/07/2020;134;31;116;1;Spese correnti;3;Acquisto di beni e servizi;2;Acquisto di servizi;5;Utenze e canoni;4;Energia elettrica;24/07/2020
2239;1;9999999;4,8;4,8;ENEL ENERGIA SPA;77999756FD;SALDO Fatt.n. 004043265039  del 06/07/2020 GIUGNO 2020 - CONSUMI CIMITERO CALTANA - LAMPADE VOTIVE;21/07/2020;134;31;116;1;Spese correnti;3;Acquisto di beni e servizi;2;Acquisto di servizi;5;Utenze e canoni;4;Energia elettrica;24/07/2020
2240;1;9999999;36,65;36,65;ENEL ENERGIA SPA;77999756FD;SALDO Fatt.n. 004043264931  del 06/07/2020 GIUGNO 2020 - CONSUMI CIMITERO STIGLIANO - LAMPADE VOTIVE;21/07/2020;134;31;116;1;Spese correnti;3;Acquisto di beni e servizi;2;Acquisto di servizi;5;Utenze e canoni;4;Energia elettrica;24/07/2020
2241;1;9999999;11,24;11,24;ENEL ENERGIA SPA;77999756FD;ACCONTO Fatt.n. 004043264967  del 06/07/2020 GIUGNO 2020 - CONSUMI ECOCENTRO COMUNALE;21/07/2020;134;31;116;1;Spese correnti;3;Acquisto di beni e servizi;2;Acquisto di servizi;5;Utenze e canoni;4;Energia elettrica;24/07/2020
2242;1;9999999;40;40;ENEL ENERGIA SPA;77999756FD;ACCONTO Fatt.n. 004043264921  del 06/07/2020 GIUGNO 2020 - CONSUMI CIMITERO S.ANGELO - LAMPADE VOTIVE;21/07/2020;134;31;116;1;Spese correnti;3;Acquisto di beni e servizi;2;Acquisto di servizi;5;Utenze e canoni;4;Energia elettrica;24/07/2020
2243;1;9999999;4,18;4,18;ENEL ENERGIA SPA;77999756FD;SALDO Fatt.n. 004043264921  del 06/07/2020 GIUGNO 2020 - CONSUMI CIMITERO S.ANGELO - LAMPADE VOTIVE;21/07/2020;134;31;116;1;Spese correnti;3;Acquisto di beni e servizi;2;Acquisto di servizi;5;Utenze e canoni;4;Energia elettrica;24/07/2020
2244;1;9999999;31;31;ENEL ENERGIA SPA;77999756FD;ACCONTO Fatt.n. 004043264954  del 06/07/2020 GIUGNO 2020 - CONSUMI CIMITERO VETERNIGO -LAMPADE VOTIVE;21/07/2020;134;31;116;1;Spese correnti;3;Acquisto di beni e servizi;2;Acquisto di servizi;5;Utenze e canoni;4;Energia elettrica;24/07/2020
2245;1;9999999;6,43;6,43;ENEL ENERGIA SPA;77999756FD;SALDO Fatt.n. 004043264954  del 06/07/2020 GIUGNO 2020 - CONSUMI CIMITERO VETERNIGO -LAMPADE VOTIVE;21/07/2020;134;31;116;1;Spese correnti;3;Acquisto di beni e servizi;2;Acquisto di servizi;5;Utenze e canoni;4;Energia elettrica;24/07/2020
2246;1;9999999;1.074,17;1.074,17;ENEL ENERGIA SPA;77999756FD;SALDO Fatt.n. 004049155638  del 12/07/2020 GIUGNO 2020 - CONSUMI VILLA FARSETTI;21/07/2020;134;31;116;1;Spese correnti;3;Acquisto di beni e servizi;2;Acquisto di servizi;5;Utenze e canoni;4;Energia elettrica;24/07/2020
2247;1;9999999;60,6;377,35;ENEL ENERGIA SPA;77999756FD;SALDO Fatt.n. 004043264940  del 06/07/2020 GIUGNO 2020 - CONSUMI SC. ELEM. SMS;21/07/2020;1334;30;117;1;Spese correnti;3;Acquisto di beni e servizi;2;Acquisto di servizi;5;Utenze e canoni;4;Energia elettrica;24/07/2020
2247;2;9999999;63,1;377,35;ENEL ENERGIA SPA;77999756FD;SALDO Fatt.n. 004043264933  del 06/07/2020 GIUGNO 2020 - CONSUMI SC. ELEM. CALTANA;21/07/2020;1334;30;117;1;Spese correnti;3;Acquisto di beni e servizi;2;Acquisto di servizi;5;Utenze e canoni;4;Energia elettrica;24/07/2020
2247;3;9999999;76,75;377,35;ENEL ENERGIA SPA;77999756FD;SALDO Fatt.n. 004043265029  del 06/07/2020 GIUGNO 2020 - CONSUMI SC. ELEM. CASELLE;21/07/2020;1334;30;117;1;Spese correnti;3;Acquisto di beni e servizi;2;Acquisto di servizi;5;Utenze e canoni;4;Energia elettrica;24/07/2020
2247;4;9999999;176,9;377,35;ENEL ENERGIA SPA;77999756FD;SALDO Fatt.n. 004043265025  del 06/07/2020 GIUGNO 2020 - CONSUMI  SCUOLA MEDIA SMS;21/07/2020;1334;30;117;1;Spese correnti;3;Acquisto di beni e servizi;2;Acquisto di servizi;5;Utenze e canoni;4;Energia elettrica;24/07/2020
2248;1;9999999;50;50;ENEL ENERGIA SPA;77999756FD;ACCONTO Fatt.n. 004043264990  del 06/07/2020 GIUGNO 2020 - CONSUMI SC. ELEM-PALESTRA-ASILO S.ANGELO;21/07/2020;1334;30;117;1;Spese correnti;3;Acquisto di beni e servizi;2;Acquisto di servizi;5;Utenze e canoni;4;Energia elettrica;24/07/2020
2249;1;9999999;151,82;151,82;ENEL ENERGIA SPA;77999756FD;ACCONTO Fatt.n. 004043264990  del 06/07/2020 GIUGNO 2020 - CONSUMI SC. ELEM-PALESTRA-ASILO S.ANGELO;21/07/2020;1334;30;117;1;Spese correnti;3;Acquisto di beni e servizi;2;Acquisto di servizi;5;Utenze e canoni;4;Energia elettrica;24/07/2020
2250;1;9999999;85,87;85,87;ENEL ENERGIA SPA;77999756FD;ACCONTO Fatt.n. 004043265001  del 06/07/2020 GIUGNO 2020 - CONSUMI PALESTRA CALTANA;21/07/2020;1334;30;117;1;Spese correnti;3;Acquisto di beni e servizi;2;Acquisto di servizi;5;Utenze e canoni;4;Energia elettrica;24/07/2020
2251;1;9999999;37,87;37,87;ENEL ENERGIA SPA;77999756FD;ACCONTO Fatt.n. 004043265035  del 06/07/2020 GIUGNO 2020 - CONSUMI PALESTRA CASELLE;21/07/2020;1334;30;117;1;Spese correnti;3;Acquisto di beni e servizi;2;Acquisto di servizi;5;Utenze e canoni;4;Energia elettrica;24/07/2020
2252;1;9999999;91,05;91,05;ENEL ENERGIA SPA;77999756FD;ACCONTO Fatt.n. 004043265030  del 06/07/2020 GIUGNO 2020 - CONSUMI PALESTRA SMS;21/07/2020;1334;30;117;1;Spese correnti;3;Acquisto di beni e servizi;2;Acquisto di servizi;5;Utenze e canoni;4;Energia elettrica;24/07/2020
2253;1;9999999;51;51;ENEL ENERGIA SPA;77999756FD;ACCONTO Fatt.n. 004043264939  del 06/07/2020 GIUGNO 2020 - CONSUMI SC. ELEM. - PALESTRA VETERNIGO;21/07/2020;1334;30;117;1;Spese correnti;3;Acquisto di beni e servizi;2;Acquisto di servizi;5;Utenze e canoni;4;Energia elettrica;24/07/2020
2254;1;9999999;81,67;81,67;ENEL ENERGIA SPA;77999756FD;ACCONTO Fatt.n. 004043264939  del 06/07/2020 GIUGNO 2020 - CONSUMI SC. ELEM. - PALESTRA VETERNIGO;21/07/2020;1334;30;117;1;Spese correnti;3;Acquisto di beni e servizi;2;Acquisto di servizi;5;Utenze e canoni;4;Energia elettrica;24/07/2020
2255;1;9999999;50;50;ENEL ENERGIA SPA;77999756FD;ACCONTO Fatt.n. 004043264993  del 06/07/2020 GIUGNO 2020 - CONSUMI SC. ELEM - PALESTRA STIGLIANO;21/07/2020;1334;30;117;1;Spese correnti;3;Acquisto di beni e servizi;2;Acquisto di servizi;5;Utenze e canoni;4;Energia elettrica;24/07/2020
2256;1;9999999;42,96;42,96;ENEL ENERGIA SPA;77999756FD;ACCONTO Fatt.n. 004043264993  del 06/07/2020 GIUGNO 2020 - CONSUMI SC. ELEM - PALESTRA STIGLIANO;21/07/2020;1334;30;117;1;Spese correnti;3;Acquisto di beni e servizi;2;Acquisto di servizi;5;Utenze e canoni;4;Energia elettrica;24/07/2020
2257;1;9999999;50;50;ENEL ENERGIA SPA;77999756FD;SALDO Fatt.n. 004043264990  del 06/07/2020 GIUGNO 2020 - CONSUMI SC. ELEM-PALESTRA-ASILO S.ANGELO;21/07/2020;1934;0;119;1;Spese correnti;3;Acquisto di beni e servizi;2;Acquisto di servizi;5;Utenze e canoni;4;Energia elettrica;24/07/2020
2258;1;9999999;35,66;35,66;ENEL ENERGIA SPA;77999756FD;SALDO Fatt.n. 004043264919  del 06/07/2020 GIUGNO 2020 - CONSUMI IMP. SPORT. CASELLE;21/07/2020;1934;0;119;1;Spese correnti;3;Acquisto di beni e servizi;2;Acquisto di servizi;5;Utenze e canoni;4;Energia elettrica;24/07/2020
2259;1;9999999;22,56;22,56;ENEL ENERGIA SPA;77999756FD;SALDO Fatt.n. 004043264995  del 06/07/2020 GIUGNO 2020 - CONSUMI IMP.SPORT. SMS;21/07/2020;1934;0;119;1;Spese correnti;3;Acquisto di beni e servizi;2;Acquisto di servizi;5;Utenze e canoni;4;Energia elettrica;24/07/2020
2260;1;9999999;85,88;85,88;ENEL ENERGIA SPA;77999756FD;SALDO Fatt.n. 004043265001  del 06/07/2020 GIUGNO 2020 - CONSUMI PALESTRA CALTANA;21/07/2020;1934;0;119;1;Spese correnti;3;Acquisto di beni e servizi;2;Acquisto di servizi;5;Utenze e canoni;4;Energia elettrica;24/07/2020
2261;1;9999999;37,86;37,86;ENEL ENERGIA SPA;77999756FD;SALDO Fatt.n. 004043265035  del 06/07/2020 GIUGNO 2020 - CONSUMI PALESTRA CASELLE;21/07/2020;1934;0;119;1;Spese correnti;3;Acquisto di beni e servizi;2;Acquisto di servizi;5;Utenze e canoni;4;Energia elettrica;24/07/2020
2262;1;9999999;91,05;91,05;ENEL ENERGIA SPA;77999756FD;SALDO Fatt.n. 004043265030  del 06/07/2020 GIUGNO 2020 - CONSUMI PALESTRA SMS;21/07/2020;1934;0;119;1;Spese correnti;3;Acquisto di beni e servizi;2;Acquisto di servizi;5;Utenze e canoni;4;Energia elettrica;24/07/2020
2263;1;9999999;51;51;ENEL ENERGIA SPA;77999756FD;SALDO Fatt.n. 004043264939  del 06/07/2020 GIUGNO 2020 - CONSUMI SC. ELEM. - PALESTRA VETERNIGO;21/07/2020;1934;0;119;1;Spese correnti;3;Acquisto di beni e servizi;2;Acquisto di servizi;5;Utenze e canoni;4;Energia elettrica;24/07/2020
2264;1;9999999;50;50;ENEL ENERGIA SPA;77999756FD;SALDO Fatt.n. 004043264993  del 06/07/2020 GIUGNO 2020 - CONSUMI SC. ELEM - PALESTRA STIGLIANO;21/07/2020;1934;0;119;1;Spese correnti;3;Acquisto di beni e servizi;2;Acquisto di servizi;5;Utenze e canoni;4;Energia elettrica;24/07/2020
2265;1;9999999;210,97;210,97;ENEL ENERGIA SPA;77999756FD;SALDO Fatt.n. 004043265054  del 06/07/2020 GIUGNO 2020 - CONSUMI MAGAZZINO COMUNALE;21/07/2020;3534;0;121;1;Spese correnti;3;Acquisto di beni e servizi;2;Acquisto di servizi;5;Utenze e canoni;4;Energia elettrica;24/07/2020
2266;1;9999999;12,55;12,55;ENEL ENERGIA SPA;77999756FD;SALDO Fatt.n. 004043264967  del 06/07/2020 GIUGNO 2020 - CONSUMI ECOCENTRO COMUNALE;21/07/2020;3534;0;121;1;Spese correnti;3;Acquisto di beni e servizi;2;Acquisto di servizi;5;Utenze e canoni;4;Energia elettrica;24/07/2020
2267;1;9999999;4,16;636,12;ENEL ENERGIA SPA;77999756FD;SALDO Fatt.n. 004043264924  del 06/07/2020 GIUGNO 2020 - CONSUMI ILLUMINAZIONE PUBBLICA;21/07/2020;3544;0;588;1;Spese correnti;3;Acquisto di beni e servizi;2;Acquisto di servizi;15;Contratti di servizio pubblico;15;Contratti di servizio per l'illuminazione pubblica;24/07/2020
2267;2;9999999;5,56;636,12;ENEL ENERGIA SPA;77999756FD;SALDO Fatt.n. 004043264915  del 06/07/2020 GIUGNO 2020 - CONSUMI ILLUMINAZIONE PUBBLICA;21/07/2020;3544;0;588;1;Spese correnti;3;Acquisto di beni e servizi;2;Acquisto di servizi;15;Contratti di servizio pubblico;15;Contratti di servizio per l'illuminazione pubblica;24/07/2020
2267;3;9999999;17,14;636,12;ENEL ENERGIA SPA;77999756FD;SALDO Fatt.n. 004043264926  del 06/07/2020 GIUGNO 2020 - CONSUMI ILLUMINAZIONE PUBBLICA;21/07/2020;3544;0;588;1;Spese correnti;3;Acquisto di beni e servizi;2;Acquisto di servizi;15;Contratti di servizio pubblico;15;Contratti di servizio per l'illuminazione pubblica;24/07/2020
2267;4;9999999;29,05;636,12;ENEL ENERGIA SPA;77999756FD;SALDO Fatt.n. 004043264917  del 06/07/2020 GIUGNO 2020 - CONSUMI ILLUMINAZIONE PUBBLICA;21/07/2020;3544;0;588;1;Spese correnti;3;Acquisto di beni e servizi;2;Acquisto di servizi;15;Contratti di servizio pubblico;15;Contratti di servizio per l'illuminazione pubblica;24/07/2020
2267;5;9999999;54,13;636,12;ENEL ENERGIA SPA;77999756FD;SALDO Fatt.n. 004043264925  del 06/07/2020 GIUGNO 2020 - CONSUMI ILLUMINAZIONE PUBBLICA;21/07/2020;3544;0;588;1;Spese correnti;3;Acquisto di beni e servizi;2;Acquisto di servizi;15;Contratti di servizio pubblico;15;Contratti di servizio per l'illuminazione pubblica;24/07/2020
2267;6;9999999;59,26;636,12;ENEL ENERGIA SPA;77999756FD;SALDO Fatt.n. 004043264918  del 06/07/2020 GIUGNO 2020 - CONSUMI ILLUMINAZIONE PUBBLICA;21/07/2020;3544;0;588;1;Spese correnti;3;Acquisto di beni e servizi;2;Acquisto di servizi;15;Contratti di servizio pubblico;15;Contratti di servizio per l'illuminazione pubblica;24/07/2020
2267;7;9999999;83,35;636,12;ENEL ENERGIA SPA;77999756FD;SALDO Fatt.n. 004043264920  del 06/07/2020 GIUGNO 2020 - CONSUMI ILLUMINAZIONE PUBBLICA;21/07/2020;3544;0;588;1;Spese correnti;3;Acquisto di beni e servizi;2;Acquisto di servizi;15;Contratti di servizio pubblico;15;Contratti di servizio per l'illuminazione pubblica;24/07/2020
2267;8;9999999;86,25;636,12;ENEL ENERGIA SPA;77999756FD;SALDO Fatt.n. 004043264927  del 06/07/2020 GIUGNO 2020 - CONSUMI ILLUMINAZIONE PUBBLICA;21/07/2020;3544;0;588;1;Spese correnti;3;Acquisto di beni e servizi;2;Acquisto di servizi;15;Contratti di servizio pubblico;15;Contratti di servizio per l'illuminazione pubblica;24/07/2020
2267;9;9999999;94,39;636,12;ENEL ENERGIA SPA;77999756FD;SALDO Fatt.n. 004043264923  del 06/07/2020 GIUGNO 2020 - CONSUMI ILLUMINAZIONE PUBBLICA;21/07/2020;3544;0;588;1;Spese correnti;3;Acquisto di beni e servizi;2;Acquisto di servizi;15;Contratti di servizio pubblico;15;Contratti di servizio per l'illuminazione pubblica;24/07/2020
2267;10;9999999;202,83;636,12;ENEL ENERGIA SPA;77999756FD;SALDO Fatt.n. 004043264922  del 06/07/2020 GIUGNO 2020 - CONSUMI ILLUMINAZIONE PUBBLICA;21/07/2020;3544;0;588;1;Spese correnti;3;Acquisto di beni e servizi;2;Acquisto di servizi;15;Contratti di servizio pubblico;15;Contratti di servizio per l'illuminazione pubblica;24/07/2020
2268;1;9999999;10,47;1.482,21;ENEL ENERGIA SPA;77999756FD;SALDO Fatt.n. 004043264941  del 06/07/2020 GIUGNO 2020 - CONSUMI ILLUMINAZIONE PUBBLICA;21/07/2020;3544;0;588;1;Spese correnti;3;Acquisto di beni e servizi;2;Acquisto di servizi;15;Contratti di servizio pubblico;15;Contratti di servizio per l'illuminazione pubblica;24/07/2020
2268;2;9999999;24,47;1.482,21;ENEL ENERGIA SPA;77999756FD;SALDO Fatt.n. 004043264938  del 06/07/2020 GIUGNO 2020 - CONSUMI ILLUMINAZIONE PUBBLICA;21/07/2020;3544;0;588;1;Spese correnti;3;Acquisto di beni e servizi;2;Acquisto di servizi;15;Contratti di servizio pubblico;15;Contratti di servizio per l'illuminazione pubblica;24/07/2020
2268;3;9999999;25,08;1.482,21;ENEL ENERGIA SPA;77999756FD;SALDO Fatt.n. 004043264929  del 06/07/2020 GIUGNO 2020 - CONSUMI ILLUMINAZIONE PUBBLICA;21/07/2020;3544;0;588;1;Spese correnti;3;Acquisto di beni e servizi;2;Acquisto di servizi;15;Contratti di servizio pubblico;15;Contratti di servizio per l'illuminazione pubblica;24/07/2020
2268;4;9999999;35,4;1.482,21;ENEL ENERGIA SPA;77999756FD;SALDO Fatt.n. 004043264935  del 06/07/2020 GIUGNO 2020 - CONSUMI ILLUMINAZIONE PUBBLICA;21/07/2020;3544;0;588;1;Spese correnti;3;Acquisto di beni e servizi;2;Acquisto di servizi;15;Contratti di servizio pubblico;15;Contratti di servizio per l'illuminazione pubblica;24/07/2020
2268;5;9999999;58,6;1.482,21;ENEL ENERGIA SPA;77999756FD;SALDO Fatt.n. 004043264936  del 06/07/2020 GIUGNO 2020 - CONSUMI ILLUMINAZIONE PUBBLICA;21/07/2020;3544;0;588;1;Spese correnti;3;Acquisto di beni e servizi;2;Acquisto di servizi;15;Contratti di servizio pubblico;15;Contratti di servizio per l'illuminazione pubblica;24/07/2020
2268;6;9999999;87,27;1.482,21;ENEL ENERGIA SPA;77999756FD;SALDO Fatt.n. 004043264937  del 06/07/2020 GIUGNO 2020 - CONSUMI ILLUMINAZIONE PUBBLICA;21/07/2020;3544;0;588;1;Spese correnti;3;Acquisto di beni e servizi;2;Acquisto di servizi;15;Contratti di servizio pubblico;15;Contratti di servizio per l'illuminazione pubblica;24/07/2020
2268;7;9999999;230,38;1.482,21;ENEL ENERGIA SPA;77999756FD;SALDO Fatt.n. 004043264930  del 06/07/2020 GIUGNO 2020 - CONSUMI ILLUMINAZIONE PUBBLICA;21/07/2020;3544;0;588;1;Spese correnti;3;Acquisto di beni e servizi;2;Acquisto di servizi;15;Contratti di servizio pubblico;15;Contratti di servizio per l'illuminazione pubblica;24/07/2020
2268;8;9999999;278,34;1.482,21;ENEL ENERGIA SPA;77999756FD;SALDO Fatt.n. 004043264928  del 06/07/2020 GIUGNO 2020 - CONSUMI ILLUMINAZIONE PUBBLICA;21/07/2020;3544;0;588;1;Spese correnti;3;Acquisto di beni e servizi;2;Acquisto di servizi;15;Contratti di servizio pubblico;15;Contratti di servizio per l'illuminazione pubblica;24/07/2020
2268;9;9999999;340,27;1.482,21;ENEL ENERGIA SPA;77999756FD;SALDO Fatt.n. 004043264934  del 06/07/2020 GIUGNO 2020 - CONSUMI ILLUMINAZIONE PUBBLICA;21/07/2020;3544;0;588;1;Spese correnti;3;Acquisto di beni e servizi;2;Acquisto di servizi;15;Contratti di servizio pubblico;15;Contratti di servizio per l'illuminazione pubblica;24/07/2020
2268;10;9999999;391,93;1.482,21;ENEL ENERGIA SPA;77999756FD;SALDO Fatt.n. 004043264932  del 06/07/2020 GIUGNO 2020 - CONSUMI ILLUMINAZIONE PUBBLICA;21/07/2020;3544;0;588;1;Spese correnti;3;Acquisto di beni e servizi;2;Acquisto di servizi;15;Contratti di servizio pubblico;15;Contratti di servizio per l'illuminazione pubblica;24/07/2020
2269;1;9999999;7,75;959,65;ENEL ENERGIA SPA;77999756FD;SALDO Fatt.n. 004043264945  del 06/07/2020 GIUGNO 2020 - CONSUMI ILLUMINAZIONE PUBBLICA;21/07/2020;3544;0;588;1;Spese correnti;3;Acquisto di beni e servizi;2;Acquisto di servizi;15;Contratti di servizio pubblico;15;Contratti di servizio per l'illuminazione pubblica;24/07/2020
2269;2;9999999;9,65;959,65;ENEL ENERGIA SPA;77999756FD;SALDO Fatt.n. 004043264948  del 06/07/2020 GIUGNO 2020 - CONSUMI ILLUMINAZIONE PUBBLICA;21/07/2020;3544;0;588;1;Spese correnti;3;Acquisto di beni e servizi;2;Acquisto di servizi;15;Contratti di servizio pubblico;15;Contratti di servizio per l'illuminazione pubblica;24/07/2020
2269;3;9999999;9,65;959,65;ENEL ENERGIA SPA;77999756FD;SALDO Fatt.n. 004043264951  del 06/07/2020 GIUGNO 2020 - CONSUMI ILLUMINAZIONE PUBBLICA;21/07/2020;3544;0;588;1;Spese correnti;3;Acquisto di beni e servizi;2;Acquisto di servizi;15;Contratti di servizio pubblico;15;Contratti di servizio per l'illuminazione pubblica;24/07/2020
2269;4;9999999;14,63;959,65;ENEL ENERGIA SPA;77999756FD;SALDO Fatt.n. 004043264949  del 06/07/2020 GIUGNO 2020 - CONSUMI ILLUMINAZIONE PUBBLICA;21/07/2020;3544;0;588;1;Spese correnti;3;Acquisto di beni e servizi;2;Acquisto di servizi;15;Contratti di servizio pubblico;15;Contratti di servizio per l'illuminazione pubblica;24/07/2020
2269;5;9999999;18,68;959,65;ENEL ENERGIA SPA;77999756FD;SALDO Fatt.n. 004043264946  del 06/07/2020 GIUGNO 2020 - CONSUMI ILLUMINAZIONE PUBBLICA;21/07/2020;3544;0;588;1;Spese correnti;3;Acquisto di beni e servizi;2;Acquisto di servizi;15;Contratti di servizio pubblico;15;Contratti di servizio per l'illuminazione pubblica;24/07/2020
2269;6;9999999;35,66;959,65;ENEL ENERGIA SPA;77999756FD;SALDO Fatt.n. 004043264943  del 06/07/2020 GIUGNO 2020 - CONSUMI ILLUMINAZIONE PUBBLICA;21/07/2020;3544;0;588;1;Spese correnti;3;Acquisto di beni e servizi;2;Acquisto di servizi;15;Contratti di servizio pubblico;15;Contratti di servizio per l'illuminazione pubblica;24/07/2020
2269;7;9999999;112,12;959,65;ENEL ENERGIA SPA;77999756FD;SALDO Fatt.n. 004043264950  del 06/07/2020 GIUGNO 2020 - CONSUMI ILLUMINAZIONE PUBBLICA;21/07/2020;3544;0;588;1;Spese correnti;3;Acquisto di beni e servizi;2;Acquisto di servizi;15;Contratti di servizio pubblico;15;Contratti di servizio per l'illuminazione pubblica;24/07/2020
2269;8;9999999;147,74;959,65;ENEL ENERGIA SPA;77999756FD;SALDO Fatt.n. 004043264947  del 06/07/2020 GIUGNO 2020 - CONSUMI ILLUMINAZIONE PUBBLICA;21/07/2020;3544;0;588;1;Spese correnti;3;Acquisto di beni e servizi;2;Acquisto di servizi;15;Contratti di servizio pubblico;15;Contratti di servizio per l'illuminazione pubblica;24/07/2020
2269;9;9999999;237,53;959,65;ENEL ENERGIA SPA;77999756FD;SALDO Fatt.n. 004043264942  del 06/07/2020 GIUGNO 2020 - CONSUMI ILLUMINAZIONE PUBBLICA;21/07/2020;3544;0;588;1;Spese correnti;3;Acquisto di beni e servizi;2;Acquisto di servizi;15;Contratti di servizio pubblico;15;Contratti di servizio per l'illuminazione pubblica;24/07/2020
2269;10;9999999;366,24;959,65;ENEL ENERGIA SPA;77999756FD;SALDO Fatt.n. 004043264944  del 06/07/2020 GIUGNO 2020 - CONSUMI ILLUMINAZIONE PUBBLICA;21/07/2020;3544;0;588;1;Spese correnti;3;Acquisto di beni e servizi;2;Acquisto di servizi;15;Contratti di servizio pubblico;15;Contratti di servizio per l'illuminazione pubblica;24/07/2020
2270;1;9999999;5,37;1.362,82;ENEL ENERGIA SPA;77999756FD;SALDO Fatt.n. 004043264959  del 06/07/2020 GIUGNO 2020 - CONSUMI ILLUMINAZIONE PUBBLICA;21/07/2020;3544;0;588;1;Spese correnti;3;Acquisto di beni e servizi;2;Acquisto di servizi;15;Contratti di servizio pubblico;15;Contratti di servizio per l'illuminazione pubblica;24/07/2020
2270;2;9999999;50,63;1.362,82;ENEL ENERGIA SPA;77999756FD;SALDO Fatt.n. 004043264961  del 06/07/2020 GIUGNO 2020 - CONSUMI ILLUMINAZIONE PUBBLICA;21/07/2020;3544;0;588;1;Spese correnti;3;Acquisto di beni e servizi;2;Acquisto di servizi;15;Contratti di servizio pubblico;15;Contratti di servizio per l'illuminazione pubblica;24/07/2020
2270;3;9999999;64,46;1.362,82;ENEL ENERGIA SPA;77999756FD;SALDO Fatt.n. 004043264956  del 06/07/2020 GIUGNO 2020 - CONSUMI ILLUMINAZIONE PUBBLICA;21/07/2020;3544;0;588;1;Spese correnti;3;Acquisto di beni e servizi;2;Acquisto di servizi;15;Contratti di servizio pubblico;15;Contratti di servizio per l'illuminazione pubblica;24/07/2020
2270;4;9999999;72;1.362,82;ENEL ENERGIA SPA;77999756FD;SALDO Fatt.n. 004043264960  del 06/07/2020 GIUGNO 2020 - CONSUMI ILLUMINAZIONE PUBBLICA;21/07/2020;3544;0;588;1;Spese correnti;3;Acquisto di beni e servizi;2;Acquisto di servizi;15;Contratti di servizio pubblico;15;Contratti di servizio per l'illuminazione pubblica;24/07/2020
2270;5;9999999;78,52;1.362,82;ENEL ENERGIA SPA;77999756FD;SALDO Fatt.n. 004043264958  del 06/07/2020 GIUGNO 2020 - CONSUMI ILLUMINAZIONE PUBBLICA;21/07/2020;3544;0;588;1;Spese correnti;3;Acquisto di beni e servizi;2;Acquisto di servizi;15;Contratti di servizio pubblico;15;Contratti di servizio per l'illuminazione pubblica;24/07/2020
2270;6;9999999;108,42;1.362,82;ENEL ENERGIA SPA;77999756FD;SALDO Fatt.n. 004043264952  del 06/07/2020 GIUGNO 2020 - CONSUMI ILLUMINAZIONE PUBBLICA;21/07/2020;3544;0;588;1;Spese correnti;3;Acquisto di beni e servizi;2;Acquisto di servizi;15;Contratti di servizio pubblico;15;Contratti di servizio per l'illuminazione pubblica;24/07/2020
2270;7;9999999;118,25;1.362,82;ENEL ENERGIA SPA;77999756FD;SALDO Fatt.n. 004043264957  del 06/07/2020 GIUGNO 2020 - CONSUMI ILLUMINAZIONE PUBBLICA;21/07/2020;3544;0;588;1;Spese correnti;3;Acquisto di beni e servizi;2;Acquisto di servizi;15;Contratti di servizio pubblico;15;Contratti di servizio per l'illuminazione pubblica;24/07/2020
2270;8;9999999;200,7;1.362,82;ENEL ENERGIA SPA;77999756FD;SALDO Fatt.n. 004043264964  del 06/07/2020 GIUGNO 2020 - CONSUMI ILLUMINAZIONE PUBBLICA;21/07/2020;3544;0;588;1;Spese correnti;3;Acquisto di beni e servizi;2;Acquisto di servizi;15;Contratti di servizio pubblico;15;Contratti di servizio per l'illuminazione pubblica;24/07/2020
2270;9;9999999;254,46;1.362,82;ENEL ENERGIA SPA;77999756FD;SALDO Fatt.n. 004043264962  del 06/07/2020 GIUGNO 2020 - CONSUMI ILLUMINAZIONE PUBBLICA;21/07/2020;3544;0;588;1;Spese correnti;3;Acquisto di beni e servizi;2;Acquisto di servizi;15;Contratti di servizio pubblico;15;Contratti di servizio per l'illuminazione pubblica;24/07/2020
2270;10;9999999;410,01;1.362,82;ENEL ENERGIA SPA;77999756FD;SALDO Fatt.n. 004043264953  del 06/07/2020 GIUGNO 2020 - CONSUMI ILLUMINAZIONE PUBBLICA;21/07/2020;3544;0;588;1;Spese correnti;3;Acquisto di beni e servizi;2;Acquisto di servizi;15;Contratti di servizio pubblico;15;Contratti di servizio per l'illuminazione pubblica;24/07/2020
2271;1;9999999;14,23;1.389,33;ENEL ENERGIA SPA;77999756FD;SALDO Fatt.n. 004043264976  del 06/07/2020 GIUGNO 2020 - CONSUMI ILLUMINAZIONE PUBBLICA;21/07/2020;3544;0;588;1;Spese correnti;3;Acquisto di beni e servizi;2;Acquisto di servizi;15;Contratti di servizio pubblico;15;Contratti di servizio per l'illuminazione pubblica;24/07/2020
2271;2;9999999;20,79;1.389,33;ENEL ENERGIA SPA;77999756FD;SALDO Fatt.n. 004043264971  del 06/07/2020 GIUGNO 2020 - CONSUMI ILLUMINAZIONE PUBBLICA;21/07/2020;3544;0;588;1;Spese correnti;3;Acquisto di beni e servizi;2;Acquisto di servizi;15;Contratti di servizio pubblico;15;Contratti di servizio per l'illuminazione pubblica;24/07/2020
2271;3;9999999;26,97;1.389,33;ENEL ENERGIA SPA;77999756FD;SALDO Fatt.n. 004043264973  del 06/07/2020 GIUGNO 2020 - CONSUMI ILLUMINAZIONE PUBBLICA;21/07/2020;3544;0;588;1;Spese correnti;3;Acquisto di beni e servizi;2;Acquisto di servizi;15;Contratti di servizio pubblico;15;Contratti di servizio per l'illuminazione pubblica;24/07/2020
2271;4;9999999;31,04;1.389,33;ENEL ENERGIA SPA;77999756FD;SALDO Fatt.n. 004043264968  del 06/07/2020 GIUGNO 2020 - CONSUMI ILLUMINAZIONE PUBBLICA;21/07/2020;3544;0;588;1;Spese correnti;3;Acquisto di beni e servizi;2;Acquisto di servizi;15;Contratti di servizio pubblico;15;Contratti di servizio per l'illuminazione pubblica;24/07/2020
2271;5;9999999;97,1;1.389,33;ENEL ENERGIA SPA;77999756FD;SALDO Fatt.n. 004043264975  del 06/07/2020 GIUGNO 2020 - CONSUMI ILLUMINAZIONE PUBBLICA;21/07/2020;3544;0;588;1;Spese correnti;3;Acquisto di beni e servizi;2;Acquisto di servizi;15;Contratti di servizio pubblico;15;Contratti di servizio per l'illuminazione pubblica;24/07/2020
2271;6;9999999;110,7;1.389,33;ENEL ENERGIA SPA;77999756FD;SALDO Fatt.n. 004043264978  del 06/07/2020 GIUGNO 2020 - CONSUMI ILLUMINAZIONE PUBBLICA;21/07/2020;3544;0;588;1;Spese correnti;3;Acquisto di beni e servizi;2;Acquisto di servizi;15;Contratti di servizio pubblico;15;Contratti di servizio per l'illuminazione pubblica;24/07/2020
2271;7;9999999;124,06;1.389,33;ENEL ENERGIA SPA;77999756FD;SALDO Fatt.n. 004043264979  del 06/07/2020 GIUGNO 2020 - CONSUMI ILLUMINAZIONE PUBBLICA;21/07/2020;3544;0;588;1;Spese correnti;3;Acquisto di beni e servizi;2;Acquisto di servizi;15;Contratti di servizio pubblico;15;Contratti di servizio per l'illuminazione pubblica;24/07/2020
2271;8;9999999;176,25;1.389,33;ENEL ENERGIA SPA;77999756FD;SALDO Fatt.n. 004043264965  del 06/07/2020 GIUGNO 2020 - CONSUMI ILLUMINAZIONE PUBBLICA;21/07/2020;3544;0;588;1;Spese correnti;3;Acquisto di beni e servizi;2;Acquisto di servizi;15;Contratti di servizio pubblico;15;Contratti di servizio per l'illuminazione pubblica;24/07/2020
2271;9;9999999;315,61;1.389,33;ENEL ENERGIA SPA;77999756FD;SALDO Fatt.n. 004043264970  del 06/07/2020 GIUGNO 2020 - CONSUMI ILLUMINAZIONE PUBBLICA;21/07/2020;3544;0;588;1;Spese correnti;3;Acquisto di beni e servizi;2;Acquisto di servizi;15;Contratti di servizio pubblico;15;Contratti di servizio per l'illuminazione pubblica;24/07/2020
2271;10;9999999;472,58;1.389,33;ENEL ENERGIA SPA;77999756FD;SALDO Fatt.n. 004043264977  del 06/07/2020 GIUGNO 2020 - CONSUMI ILLUMINAZIONE PUBBLICA;21/07/2020;3544;0;588;1;Spese correnti;3;Acquisto di beni e servizi;2;Acquisto di servizi;15;Contratti di servizio pubblico;15;Contratti di servizio per l'illuminazione pubblica;24/07/2020
2272;1;9999999;8,85;1.658,91;ENEL ENERGIA SPA;77999756FD;SALDO Fatt.n. 004043264984  del 06/07/2020 GIUGNO 2020 - CONSUMI ILLUMINAZIONE PUBBLICA;21/07/2020;3544;0;588;1;Spese correnti;3;Acquisto di beni e servizi;2;Acquisto di servizi;15;Contratti di servizio pubblico;15;Contratti di servizio per l'illuminazione pubblica;24/07/2020
2272;2;9999999;35,2;1.658,91;ENEL ENERGIA SPA;77999756FD;SALDO Fatt.n. 004043264988  del 06/07/2020 GIUGNO 2020 - CONSUMI ILLUMINAZIONE PUBBLICA;21/07/2020;3544;0;588;1;Spese correnti;3;Acquisto di beni e servizi;2;Acquisto di servizi;15;Contratti di servizio pubblico;15;Contratti di servizio per l'illuminazione pubblica;24/07/2020
2272;3;9999999;37,23;1.658,91;ENEL ENERGIA SPA;77999756FD;SALDO Fatt.n. 004043264987  del 06/07/2020 GIUGNO 2020 - CONSUMI ILLUMINAZIONE PUBBLICA;21/07/2020;3544;0;588;1;Spese correnti;3;Acquisto di beni e servizi;2;Acquisto di servizi;15;Contratti di servizio pubblico;15;Contratti di servizio per l'illuminazione pubblica;24/07/2020
2272;4;9999999;41,6;1.658,91;ENEL ENERGIA SPA;77999756FD;SALDO Fatt.n. 004043264980  del 06/07/2020 GIUGNO 2020 - CONSUMI ILLUMINAZIONE PUBBLICA;21/07/2020;3544;0;588;1;Spese correnti;3;Acquisto di beni e servizi;2;Acquisto di servizi;15;Contratti di servizio pubblico;15;Contratti di servizio per l'illuminazione pubblica;24/07/2020
2272;5;9999999;53,52;1.658,91;ENEL ENERGIA SPA;77999756FD;SALDO Fatt.n. 004043264983  del 06/07/2020 GIUGNO 2020 - CONSUMI ILLUMINAZIONE PUBBLICA;21/07/2020;3544;0;588;1;Spese correnti;3;Acquisto di beni e servizi;2;Acquisto di servizi;15;Contratti di servizio pubblico;15;Contratti di servizio per l'illuminazione pubblica;24/07/2020
2272;6;9999999;146,11;1.658,91;ENEL ENERGIA SPA;77999756FD;SALDO Fatt.n. 004043264981  del 06/07/2020 GIUGNO 2020 - CONSUMI ILLUMINAZIONE PUBBLICA;21/07/2020;3544;0;588;1;Spese correnti;3;Acquisto di beni e servizi;2;Acquisto di servizi;15;Contratti di servizio pubblico;15;Contratti di servizio per l'illuminazione pubblica;24/07/2020
2272;7;9999999;152,39;1.658,91;ENEL ENERGIA SPA;77999756FD;SALDO Fatt.n. 004043264985  del 06/07/2020 GIUGNO 2020 - CONSUMI ILLUMINAZIONE PUBBLICA;21/07/2020;3544;0;588;1;Spese correnti;3;Acquisto di beni e servizi;2;Acquisto di servizi;15;Contratti di servizio pubblico;15;Contratti di servizio per l'illuminazione pubblica;24/07/2020
2272;8;9999999;245,89;1.658,91;ENEL ENERGIA SPA;77999756FD;SALDO Fatt.n. 004043264989  del 06/07/2020 GIUGNO 2020 - CONSUMI ILLUMINAZIONE PUBBLICA;21/07/2020;3544;0;588;1;Spese correnti;3;Acquisto di beni e servizi;2;Acquisto di servizi;15;Contratti di servizio pubblico;15;Contratti di servizio per l'illuminazione pubblica;24/07/2020
2272;9;9999999;439,66;1.658,91;ENEL ENERGIA SPA;77999756FD;SALDO Fatt.n. 004043264986  del 06/07/2020 GIUGNO 2020 - CONSUMI ILLUMINAZIONE PUBBLICA;21/07/2020;3544;0;588;1;Spese correnti;3;Acquisto di beni e servizi;2;Acquisto di servizi;15;Contratti di servizio pubblico;15;Contratti di servizio per l'illuminazione pubblica;24/07/2020
2272;10;9999999;498,46;1.658,91;ENEL ENERGIA SPA;77999756FD;SALDO Fatt.n. 004043264982  del 06/07/2020 GIUGNO 2020 - CONSUMI ILLUMINAZIONE PUBBLICA;21/07/2020;3544;0;588;1;Spese correnti;3;Acquisto di beni e servizi;2;Acquisto di servizi;15;Contratti di servizio pubblico;15;Contratti di servizio per l'illuminazione pubblica;24/07/2020
2273;1;9999999;2,5;1.423,21;ENEL ENERGIA SPA;77999756FD;SALDO Fatt.n. 004043264992  del 06/07/2020 GIUGNO 2020 - CONSUMI ILLUMINAZIONE PUBBLICA;21/07/2020;3544;0;588;1;Spese correnti;3;Acquisto di beni e servizi;2;Acquisto di servizi;15;Contratti di servizio pubblico;15;Contratti di servizio per l'illuminazione pubblica;24/07/2020
2273;2;9999999;9,65;1.423,21;ENEL ENERGIA SPA;77999756FD;SALDO Fatt.n. 004043265003  del 06/07/2020 GIUGNO 2020 - CONSUMI ILLUMINAZIONE PUBBLICA;21/07/2020;3544;0;588;1;Spese correnti;3;Acquisto di beni e servizi;2;Acquisto di servizi;15;Contratti di servizio pubblico;15;Contratti di servizio per l'illuminazione pubblica;24/07/2020
2273;3;9999999;19,91;1.423,21;ENEL ENERGIA SPA;77999756FD;SALDO Fatt.n. 004043265000  del 06/07/2020 GIUGNO 2020 - CONSUMI ILLUMINAZIONE PUBBLICA;21/07/2020;3544;0;588;1;Spese correnti;3;Acquisto di beni e servizi;2;Acquisto di servizi;15;Contratti di servizio pubblico;15;Contratti di servizio per l'illuminazione pubblica;24/07/2020
2273;4;9999999;20,79;1.423,21;ENEL ENERGIA SPA;77999756FD;SALDO Fatt.n. 004043264996  del 06/07/2020 GIUGNO 2020 - CONSUMI ILLUMINAZIONE PUBBLICA;21/07/2020;3544;0;588;1;Spese correnti;3;Acquisto di beni e servizi;2;Acquisto di servizi;15;Contratti di servizio pubblico;15;Contratti di servizio per l'illuminazione pubblica;24/07/2020
2273;5;9999999;59,66;1.423,21;ENEL ENERGIA SPA;77999756FD;SALDO Fatt.n. 004043264999  del 06/07/2020 GIUGNO 2020 - CONSUMI ILLUMINAZIONE PUBBLICA;21/07/2020;3544;0;588;1;Spese correnti;3;Acquisto di beni e servizi;2;Acquisto di servizi;15;Contratti di servizio pubblico;15;Contratti di servizio per l'illuminazione pubblica;24/07/2020
2273;6;9999999;74,09;1.423,21;ENEL ENERGIA SPA;77999756FD;SALDO Fatt.n. 004043264998  del 06/07/2020 GIUGNO 2020 - CONSUMI ILLUMINAZIONE PUBBLICA;21/07/2020;3544;0;588;1;Spese correnti;3;Acquisto di beni e servizi;2;Acquisto di servizi;15;Contratti di servizio pubblico;15;Contratti di servizio per l'illuminazione pubblica;24/07/2020
2273;7;9999999;74,69;1.423,21;ENEL ENERGIA SPA;77999756FD;SALDO Fatt.n. 004043265002  del 06/07/2020 GIUGNO 2020 - CONSUMI ILLUMINAZIONE PUBBLICA;21/07/2020;3544;0;588;1;Spese correnti;3;Acquisto di beni e servizi;2;Acquisto di servizi;15;Contratti di servizio pubblico;15;Contratti di servizio per l'illuminazione pubblica;24/07/2020
2273;8;9999999;231,04;1.423,21;ENEL ENERGIA SPA;77999756FD;SALDO Fatt.n. 004043264994  del 06/07/2020 GIUGNO 2020 - CONSUMI ILLUMINAZIONE PUBBLICA;21/07/2020;3544;0;588;1;Spese correnti;3;Acquisto di beni e servizi;2;Acquisto di servizi;15;Contratti di servizio pubblico;15;Contratti di servizio per l'illuminazione pubblica;24/07/2020
2273;9;9999999;289,03;1.423,21;ENEL ENERGIA SPA;77999756FD;SALDO Fatt.n. 004043264997  del 06/07/2020 GIUGNO 2020 - CONSUMI ILLUMINAZIONE PUBBLICA;21/07/2020;3544;0;588;1;Spese correnti;3;Acquisto di beni e servizi;2;Acquisto di servizi;15;Contratti di servizio pubblico;15;Contratti di servizio per l'illuminazione pubblica;24/07/2020
2273;10;9999999;641,85;1.423,21;ENEL ENERGIA SPA;77999756FD;SALDO Fatt.n. 004043264991  del 06/07/2020 GIUGNO 2020 - CONSUMI ILLUMINAZIONE PUBBLICA;21/07/2020;3544;0;588;1;Spese correnti;3;Acquisto di beni e servizi;2;Acquisto di servizi;15;Contratti di servizio pubblico;15;Contratti di servizio per l'illuminazione pubblica;24/07/2020
2274;1;9999999;8,85;500,3;ENEL ENERGIA SPA;77999756FD;SALDO Fatt.n. 004043265014  del 06/07/2020 GIUGNO 2020 - CONSUMI ILLUMINAZIONE PUBBLICA;21/07/2020;3544;0;588;1;Spese correnti;3;Acquisto di beni e servizi;2;Acquisto di servizi;15;Contratti di servizio pubblico;15;Contratti di servizio per l'illuminazione pubblica;24/07/2020
2274;2;9999999;10,25;500,3;ENEL ENERGIA SPA;77999756FD;SALDO Fatt.n. 004043265012  del 06/07/2020 GIUGNO 2020 - CONSUMI ILLUMINAZIONE PUBBLICA;21/07/2020;3544;0;588;1;Spese correnti;3;Acquisto di beni e servizi;2;Acquisto di servizi;15;Contratti di servizio pubblico;15;Contratti di servizio per l'illuminazione pubblica;24/07/2020
2274;3;9999999;16,71;500,3;ENEL ENERGIA SPA;77999756FD;SALDO Fatt.n. 004043265015  del 06/07/2020 GIUGNO 2020 - CONSUMI ILLUMINAZIONE PUBBLICA;21/07/2020;3544;0;588;1;Spese correnti;3;Acquisto di beni e servizi;2;Acquisto di servizi;15;Contratti di servizio pubblico;15;Contratti di servizio per l'illuminazione pubblica;24/07/2020
2274;4;9999999;18,48;500,3;ENEL ENERGIA SPA;77999756FD;SALDO Fatt.n. 004043265006  del 06/07/2020 GIUGNO 2020 - CONSUMI ILLUMINAZIONE PUBBLICA;21/07/2020;3544;0;588;1;Spese correnti;3;Acquisto di beni e servizi;2;Acquisto di servizi;15;Contratti di servizio pubblico;15;Contratti di servizio per l'illuminazione pubblica;24/07/2020
2274;5;9999999;27,58;500,3;ENEL ENERGIA SPA;77999756FD;SALDO Fatt.n. 004043265005  del 06/07/2020 GIUGNO 2020 - CONSUMI ILLUMINAZIONE PUBBLICA;21/07/2020;3544;0;588;1;Spese correnti;3;Acquisto di beni e servizi;2;Acquisto di servizi;15;Contratti di servizio pubblico;15;Contratti di servizio per l'illuminazione pubblica;24/07/2020
2274;6;9999999;35,4;500,3;ENEL ENERGIA SPA;77999756FD;SALDO Fatt.n. 004043265009  del 06/07/2020 GIUGNO 2020 - CONSUMI ILLUMINAZIONE PUBBLICA;21/07/2020;3544;0;588;1;Spese correnti;3;Acquisto di beni e servizi;2;Acquisto di servizi;15;Contratti di servizio pubblico;15;Contratti di servizio per l'illuminazione pubblica;24/07/2020
2274;7;9999999;56,11;500,3;ENEL ENERGIA SPA;77999756FD;SALDO Fatt.n. 004043265013  del 06/07/2020 GIUGNO 2020 - CONSUMI ILLUMINAZIONE PUBBLICA;21/07/2020;3544;0;588;1;Spese correnti;3;Acquisto di beni e servizi;2;Acquisto di servizi;15;Contratti di servizio pubblico;15;Contratti di servizio per l'illuminazione pubblica;24/07/2020
2274;8;9999999;82,67;500,3;ENEL ENERGIA SPA;77999756FD;SALDO Fatt.n. 004043265004  del 06/07/2020 GIUGNO 2020 - CONSUMI ILLUMINAZIONE PUBBLICA;21/07/2020;3544;0;588;1;Spese correnti;3;Acquisto di beni e servizi;2;Acquisto di servizi;15;Contratti di servizio pubblico;15;Contratti di servizio per l'illuminazione pubblica;24/07/2020
2274;9;9999999;86,46;500,3;ENEL ENERGIA SPA;77999756FD;SALDO Fatt.n. 004043265007  del 06/07/2020 GIUGNO 2020 - CONSUMI ILLUMINAZIONE PUBBLICA;21/07/2020;3544;0;588;1;Spese correnti;3;Acquisto di beni e servizi;2;Acquisto di servizi;15;Contratti di servizio pubblico;15;Contratti di servizio per l'illuminazione pubblica;24/07/2020
2274;10;9999999;157,79;500,3;ENEL ENERGIA SPA;77999756FD;SALDO Fatt.n. 004043265011  del 06/07/2020 GIUGNO 2020 - CONSUMI ILLUMINAZIONE PUBBLICA;21/07/2020;3544;0;588;1;Spese correnti;3;Acquisto di beni e servizi;2;Acquisto di servizi;15;Contratti di servizio pubblico;15;Contratti di servizio per l'illuminazione pubblica;24/07/2020
2275;1;9999999;1,92;582,98;ENEL ENERGIA SPA;77999756FD;SALDO Fatt.n. 004043265027  del 06/07/2020 GIUGNO 2020 - CONSUMI ILLUMINAZIONE PUBBLICA;21/07/2020;3544;0;588;1;Spese correnti;3;Acquisto di beni e servizi;2;Acquisto di servizi;15;Contratti di servizio pubblico;15;Contratti di servizio per l'illuminazione pubblica;24/07/2020
2275;2;9999999;6,55;582,98;ENEL ENERGIA SPA;77999756FD;SALDO Fatt.n. 004043265020  del 06/07/2020 GIUGNO 2020 - CONSUMI ILLUMINAZIONE PUBBLICA;21/07/2020;3544;0;588;1;Spese correnti;3;Acquisto di beni e servizi;2;Acquisto di servizi;15;Contratti di servizio pubblico;15;Contratti di servizio per l'illuminazione pubblica;24/07/2020
2275;3;9999999;16,32;582,98;ENEL ENERGIA SPA;77999756FD;SALDO Fatt.n. 004043265028  del 06/07/2020 GIUGNO 2020 - CONSUMI ILLUMINAZIONE PUBBLICA;21/07/2020;3544;0;588;1;Spese correnti;3;Acquisto di beni e servizi;2;Acquisto di servizi;15;Contratti di servizio pubblico;15;Contratti di servizio per l'illuminazione pubblica;24/07/2020
2275;4;9999999;21,76;582,98;ENEL ENERGIA SPA;77999756FD;SALDO Fatt.n. 004043265024  del 06/07/2020 GIUGNO 2020 - CONSUMI ILLUMINAZIONE PUBBLICA;21/07/2020;3544;0;588;1;Spese correnti;3;Acquisto di beni e servizi;2;Acquisto di servizi;15;Contratti di servizio pubblico;15;Contratti di servizio per l'illuminazione pubblica;24/07/2020
2275;5;9999999;33,53;582,98;ENEL ENERGIA SPA;77999756FD;SALDO Fatt.n. 004043265023  del 06/07/2020 GIUGNO 2020 - CONSUMI ILLUMINAZIONE PUBBLICA;21/07/2020;3544;0;588;1;Spese correnti;3;Acquisto di beni e servizi;2;Acquisto di servizi;15;Contratti di servizio pubblico;15;Contratti di servizio per l'illuminazione pubblica;24/07/2020
2275;6;9999999;38,31;582,98;ENEL ENERGIA SPA;77999756FD;SALDO Fatt.n. 004043265017  del 06/07/2020 GIUGNO 2020 - CONSUMI ILLUMINAZIONE PUBBLICA;21/07/2020;3544;0;588;1;Spese correnti;3;Acquisto di beni e servizi;2;Acquisto di servizi;15;Contratti di servizio pubblico;15;Contratti di servizio per l'illuminazione pubblica;24/07/2020
2275;7;9999999;58,6;582,98;ENEL ENERGIA SPA;77999756FD;SALDO Fatt.n. 004043265018  del 06/07/2020 GIUGNO 2020 - CONSUMI ILLUMINAZIONE PUBBLICA;21/07/2020;3544;0;588;1;Spese correnti;3;Acquisto di beni e servizi;2;Acquisto di servizi;15;Contratti di servizio pubblico;15;Contratti di servizio per l'illuminazione pubblica;24/07/2020
2275;8;9999999;116,12;582,98;ENEL ENERGIA SPA;77999756FD;SALDO Fatt.n. 004043265022  del 06/07/2020 GIUGNO 2020 - CONSUMI ILLUMINAZIONE PUBBLICA;21/07/2020;3544;0;588;1;Spese correnti;3;Acquisto di beni e servizi;2;Acquisto di servizi;15;Contratti di servizio pubblico;15;Contratti di servizio per l'illuminazione pubblica;24/07/2020
2275;9;9999999;128,1;582,98;ENEL ENERGIA SPA;77999756FD;SALDO Fatt.n. 004043265021  del 06/07/2020 GIUGNO 2020 - CONSUMI ILLUMINAZIONE PUBBLICA;21/07/2020;3544;0;588;1;Spese correnti;3;Acquisto di beni e servizi;2;Acquisto di servizi;15;Contratti di servizio pubblico;15;Contratti di servizio per l'illuminazione pubblica;24/07/2020
2275;10;9999999;161,77;582,98;ENEL ENERGIA SPA;77999756FD;SALDO Fatt.n. 004043265019  del 06/07/2020 GIUGNO 2020 - CONSUMI ILLUMINAZIONE PUBBLICA;21/07/2020;3544;0;588;1;Spese correnti;3;Acquisto di beni e servizi;2;Acquisto di servizi;15;Contratti di servizio pubblico;15;Contratti di servizio per l'illuminazione pubblica;24/07/2020
2276;1;9999999;2,89;540,25;ENEL ENERGIA SPA;77999756FD;SALDO Fatt.n. 004043265041  del 06/07/2020 GIUGNO 2020 - CONSUMI ILLUMINAZIONE PUBBLICA;21/07/2020;3544;0;588;1;Spese correnti;3;Acquisto di beni e servizi;2;Acquisto di servizi;15;Contratti di servizio pubblico;15;Contratti di servizio per l'illuminazione pubblica;24/07/2020
2276;2;9999999;7,55;540,25;ENEL ENERGIA SPA;77999756FD;SALDO Fatt.n. 004043265033  del 06/07/2020 GIUGNO 2020 - CONSUMI ILLUMINAZIONE PUBBLICA;21/07/2020;3544;0;588;1;Spese correnti;3;Acquisto di beni e servizi;2;Acquisto di servizi;15;Contratti di servizio pubblico;15;Contratti di servizio per l'illuminazione pubblica;24/07/2020
2276;3;9999999;15,43;540,25;ENEL ENERGIA SPA;77999756FD;SALDO Fatt.n. 004043265032  del 06/07/2020 GIUGNO 2020 - CONSUMI ILLUMINAZIONE PUBBLICA;21/07/2020;3544;0;588;1;Spese correnti;3;Acquisto di beni e servizi;2;Acquisto di servizi;15;Contratti di servizio pubblico;15;Contratti di servizio per l'illuminazione pubblica;24/07/2020
2276;4;9999999;18,68;540,25;ENEL ENERGIA SPA;77999756FD;SALDO Fatt.n. 004043265037  del 06/07/2020 GIUGNO 2020 - CONSUMI ILLUMINAZIONE PUBBLICA;21/07/2020;3544;0;588;1;Spese correnti;3;Acquisto di beni e servizi;2;Acquisto di servizi;15;Contratti di servizio pubblico;15;Contratti di servizio per l'illuminazione pubblica;24/07/2020
2276;5;9999999;52,92;540,25;ENEL ENERGIA SPA;77999756FD;SALDO Fatt.n. 004043265031  del 06/07/2020 GIUGNO 2020 - CONSUMI ILLUMINAZIONE PUBBLICA;21/07/2020;3544;0;588;1;Spese correnti;3;Acquisto di beni e servizi;2;Acquisto di servizi;15;Contratti di servizio pubblico;15;Contratti di servizio per l'illuminazione pubblica;24/07/2020
2276;6;9999999;69,14;540,25;ENEL ENERGIA SPA;77999756FD;SALDO Fatt.n. 004043265042  del 06/07/2020 GIUGNO 2020 - CONSUMI ILLUMINAZIONE PUBBLICA;21/07/2020;3544;0;588;1;Spese correnti;3;Acquisto di beni e servizi;2;Acquisto di servizi;15;Contratti di servizio pubblico;15;Contratti di servizio per l'illuminazione pubblica;24/07/2020
2276;7;9999999;80,19;540,25;ENEL ENERGIA SPA;77999756FD;SALDO Fatt.n. 004043265036  del 06/07/2020 GIUGNO 2020 - CONSUMI ILLUMINAZIONE PUBBLICA;21/07/2020;3544;0;588;1;Spese correnti;3;Acquisto di beni e servizi;2;Acquisto di servizi;15;Contratti di servizio pubblico;15;Contratti di servizio per l'illuminazione pubblica;24/07/2020
2276;8;9999999;89,96;540,25;ENEL ENERGIA SPA;77999756FD;SALDO Fatt.n. 004043265040  del 06/07/2020 GIUGNO 2020 - CONSUMI ILLUMINAZIONE PUBBLICA;21/07/2020;3544;0;588;1;Spese correnti;3;Acquisto di beni e servizi;2;Acquisto di servizi;15;Contratti di servizio pubblico;15;Contratti di servizio per l'illuminazione pubblica;24/07/2020
2276;9;9999999;95,48;540,25;ENEL ENERGIA SPA;77999756FD;SALDO Fatt.n. 004043265043  del 06/07/2020 GIUGNO 2020 - CONSUMI ILLUMINAZIONE PUBBLICA;21/07/2020;3544;0;588;1;Spese correnti;3;Acquisto di beni e servizi;2;Acquisto di servizi;15;Contratti di servizio pubblico;15;Contratti di servizio per l'illuminazione pubblica;24/07/2020
2276;10;9999999;108,01;540,25;ENEL ENERGIA SPA;77999756FD;SALDO Fatt.n. 004043265034  del 06/07/2020 GIUGNO 2020 - CONSUMI ILLUMINAZIONE PUBBLICA;21/07/2020;3544;0;588;1;Spese correnti;3;Acquisto di beni e servizi;2;Acquisto di servizi;15;Contratti di servizio pubblico;15;Contratti di servizio per l'illuminazione pubblica;24/07/2020
2277;1;9999999;8,43;945,21;ENEL ENERGIA SPA;77999756FD;SALDO Fatt.n. 004043265057  del 06/07/2020 GIUGNO 2020 - CONSUMI ILLUMINAZIONE PUBBLICA;21/07/2020;3544;0;588;1;Spese correnti;3;Acquisto di beni e servizi;2;Acquisto di servizi;15;Contratti di servizio pubblico;15;Contratti di servizio per l'illuminazione pubblica;24/07/2020
2277;2;9999999;9,85;945,21;ENEL ENERGIA SPA;77999756FD;SALDO Fatt.n. 004043265045  del 06/07/2020 GIUGNO 2020 - CONSUMI ILLUMINAZIONE PUBBLICA;21/07/2020;3544;0;588;1;Spese correnti;3;Acquisto di beni e servizi;2;Acquisto di servizi;15;Contratti di servizio pubblico;15;Contratti di servizio per l'illuminazione pubblica;24/07/2020
2277;3;9999999;16,71;945,21;ENEL ENERGIA SPA;77999756FD;SALDO Fatt.n. 004043265049  del 06/07/2020 GIUGNO 2020 - CONSUMI ILLUMINAZIONE PUBBLICA;21/07/2020;3544;0;588;1;Spese correnti;3;Acquisto di beni e servizi;2;Acquisto di servizi;15;Contratti di servizio pubblico;15;Contratti di servizio per l'illuminazione pubblica;24/07/2020
2277;4;9999999;50,63;945,21;ENEL ENERGIA SPA;77999756FD;SALDO Fatt.n. 004043265056  del 06/07/2020 GIUGNO 2020 - CONSUMI ILLUMINAZIONE PUBBLICA;21/07/2020;3544;0;588;1;Spese correnti;3;Acquisto di beni e servizi;2;Acquisto di servizi;15;Contratti di servizio pubblico;15;Contratti di servizio per l'illuminazione pubblica;24/07/2020
2277;5;9999999;65,06;945,21;ENEL ENERGIA SPA;77999756FD;SALDO Fatt.n. 004043265048  del 06/07/2020 GIUGNO 2020 - CONSUMI ILLUMINAZIONE PUBBLICA;21/07/2020;3544;0;588;1;Spese correnti;3;Acquisto di beni e servizi;2;Acquisto di servizi;15;Contratti di servizio pubblico;15;Contratti di servizio per l'illuminazione pubblica;24/07/2020
2277;6;9999999;97,97;945,21;ENEL ENERGIA SPA;77999756FD;SALDO Fatt.n. 004043265051  del 06/07/2020 GIUGNO 2020 - CONSUMI ILLUMINAZIONE PUBBLICA;21/07/2020;3544;0;588;1;Spese correnti;3;Acquisto di beni e servizi;2;Acquisto di servizi;15;Contratti di servizio pubblico;15;Contratti di servizio per l'illuminazione pubblica;24/07/2020
2277;7;9999999;119,52;945,21;ENEL ENERGIA SPA;77999756FD;SALDO Fatt.n. 004043265044  del 06/07/2020 GIUGNO 2020 - CONSUMI ILLUMINAZIONE PUBBLICA;21/07/2020;3544;0;588;1;Spese correnti;3;Acquisto di beni e servizi;2;Acquisto di servizi;15;Contratti di servizio pubblico;15;Contratti di servizio per l'illuminazione pubblica;24/07/2020
2277;8;9999999;142,54;945,21;ENEL ENERGIA SPA;77999756FD;SALDO Fatt.n. 004043265047  del 06/07/2020 GIUGNO 2020 - CONSUMI ILLUMINAZIONE PUBBLICA;21/07/2020;3544;0;588;1;Spese correnti;3;Acquisto di beni e servizi;2;Acquisto di servizi;15;Contratti di servizio pubblico;15;Contratti di servizio per l'illuminazione pubblica;24/07/2020
2277;9;9999999;195,26;945,21;ENEL ENERGIA SPA;77999756FD;SALDO Fatt.n. 004043265050  del 06/07/2020 GIUGNO 2020 - CONSUMI ILLUMINAZIONE PUBBLICA;21/07/2020;3544;0;588;1;Spese correnti;3;Acquisto di beni e servizi;2;Acquisto di servizi;15;Contratti di servizio pubblico;15;Contratti di servizio per l'illuminazione pubblica;24/07/2020
2277;10;9999999;239,24;945,21;ENEL ENERGIA SPA;77999756FD;SALDO Fatt.n. 004043265053  del 06/07/2020 GIUGNO 2020 - CONSUMI ILLUMINAZIONE PUBBLICA;21/07/2020;3544;0;588;1;Spese correnti;3;Acquisto di beni e servizi;2;Acquisto di servizi;15;Contratti di servizio pubblico;15;Contratti di servizio per l'illuminazione pubblica;24/07/2020
2278;1;9999999;5,17;1.056,94;ENEL ENERGIA SPA;77999756FD;SALDO Fatt.n. 004049155650  del 12/07/2020 GIUGNO 2020 - CONSUMI ILLUMINAZIONE PUBBLICA;21/07/2020;3544;0;588;1;Spese correnti;3;Acquisto di beni e servizi;2;Acquisto di servizi;15;Contratti di servizio pubblico;15;Contratti di servizio per l'illuminazione pubblica;24/07/2020
2278;2;9999999;12,94;1.056,94;ENEL ENERGIA SPA;77999756FD;SALDO Fatt.n. 004049155648  del 12/07/2020 GIUGNO 2020 - CONSUMI ILLUMINAZIONE PUBBLICA;21/07/2020;3544;0;588;1;Spese correnti;3;Acquisto di beni e servizi;2;Acquisto di servizi;15;Contratti di servizio pubblico;15;Contratti di servizio per l'illuminazione pubblica;24/07/2020
2278;3;9999999;24,69;1.056,94;ENEL ENERGIA SPA;77999756FD;SALDO Fatt.n. 004049155647  del 12/07/2020 GIUGNO 2020 - CONSUMI ILLUMINAZIONE PUBBLICA;21/07/2020;3544;0;588;1;Spese correnti;3;Acquisto di beni e servizi;2;Acquisto di servizi;15;Contratti di servizio pubblico;15;Contratti di servizio per l'illuminazione pubblica;24/07/2020
2278;4;9999999;33,53;1.056,94;ENEL ENERGIA SPA;77999756FD;SALDO Fatt.n. 004049155641  del 12/07/2020 GIUGNO 2020 - CONSUMI ILLUMINAZIONE PUBBLICA;21/07/2020;3544;0;588;1;Spese correnti;3;Acquisto di beni e servizi;2;Acquisto di servizi;15;Contratti di servizio pubblico;15;Contratti di servizio per l'illuminazione pubblica;24/07/2020
2278;5;9999999;33,53;1.056,94;ENEL ENERGIA SPA;77999756FD;SALDO Fatt.n. 004049155639  del 12/07/2020 GIUGNO 2020 - CONSUMI ILLUMINAZIONE PUBBLICA;21/07/2020;3544;0;588;1;Spese correnti;3;Acquisto di beni e servizi;2;Acquisto di servizi;15;Contratti di servizio pubblico;15;Contratti di servizio per l'illuminazione pubblica;24/07/2020
2278;6;9999999;36,83;1.056,94;ENEL ENERGIA SPA;77999756FD;SALDO Fatt.n. 004049155649  del 12/07/2020 GIUGNO 2020 - CONSUMI ILLUMINAZIONE PUBBLICA;21/07/2020;3544;0;588;1;Spese correnti;3;Acquisto di beni e servizi;2;Acquisto di servizi;15;Contratti di servizio pubblico;15;Contratti di servizio per l'illuminazione pubblica;24/07/2020
2278;7;9999999;59,46;1.056,94;ENEL ENERGIA SPA;77999756FD;SALDO Fatt.n. 004049155643  del 12/07/2020 GIUGNO 2020 - CONSUMI ILLUMINAZIONE PUBBLICA;21/07/2020;3544;0;588;1;Spese correnti;3;Acquisto di beni e servizi;2;Acquisto di servizi;15;Contratti di servizio pubblico;15;Contratti di servizio per l'illuminazione pubblica;24/07/2020
2278;8;9999999;67,03;1.056,94;ENEL ENERGIA SPA;77999756FD;SALDO Fatt.n. 004049155640  del 12/07/2020 GIUGNO 2020 - CONSUMI ILLUMINAZIONE PUBBLICA;21/07/2020;3544;0;588;1;Spese correnti;3;Acquisto di beni e servizi;2;Acquisto di servizi;15;Contratti di servizio pubblico;15;Contratti di servizio per l'illuminazione pubblica;24/07/2020
2278;9;9999999;133,74;1.056,94;ENEL ENERGIA SPA;77999756FD;SALDO Fatt.n. 004049155642  del 12/07/2020 GIUGNO 2020 - CONSUMI ILLUMINAZIONE PUBBLICA;21/07/2020;3544;0;588;1;Spese correnti;3;Acquisto di beni e servizi;2;Acquisto di servizi;15;Contratti di servizio pubblico;15;Contratti di servizio per l'illuminazione pubblica;24/07/2020
2278;10;9999999;150,62;1.056,94;ENEL ENERGIA SPA;77999756FD;SALDO Fatt.n. 004049155646  del 12/07/2020 GIUGNO 2020 - CONSUMI ILLUMINAZIONE PUBBLICA;21/07/2020;3544;0;588;1;Spese correnti;3;Acquisto di beni e servizi;2;Acquisto di servizi;15;Contratti di servizio pubblico;15;Contratti di servizio per l'illuminazione pubblica;24/07/2020
2278;11;9999999;200,7;1.056,94;ENEL ENERGIA SPA;77999756FD;SALDO Fatt.n. 004049155644  del 12/07/2020 GIUGNO 2020 - CONSUMI ILLUMINAZIONE PUBBLICA;21/07/2020;3544;0;588;1;Spese correnti;3;Acquisto di beni e servizi;2;Acquisto di servizi;15;Contratti di servizio pubblico;15;Contratti di servizio per l'illuminazione pubblica;24/07/2020
2278;12;9999999;298,7;1.056,94;ENEL ENERGIA SPA;77999756FD;SALDO Fatt.n. 004049155645  del 12/07/2020 GIUGNO 2020 - CONSUMI ILLUMINAZIONE PUBBLICA;21/07/2020;3544;0;588;1;Spese correnti;3;Acquisto di beni e servizi;2;Acquisto di servizi;15;Contratti di servizio pubblico;15;Contratti di servizio per l'illuminazione pubblica;24/07/2020
2279;1;9999999;5.000,00;5.000,00;ASS.VOLONTARI PROT.CIVILE S.MARIA DI SAL; ;CONTRIBUTO PER FUNZIONAMENTO ATTIVITA DI PROTEZIONE CIVILE ANNO 2020;22/07/2020;3659;0;485;1;Spese correnti;4;Trasferimenti correnti;4;Trasferimenti correnti a Istituzioni Sociali Private;1;Trasferimenti correnti a Istituzioni Sociali Private;1;Trasferimenti correnti a Istituzioni Sociali Private;24/07/2020
2280;1;9999999;4.609,84;4.609,84;SODEXO ITALIA SPA;78886743B9;SALDO Fatt.n. 7400023278  del 30/06/2020 GESTIONE PORTALE MENSA SCOLASTICA A.S. 2019-2020;22/07/2020;1344;0;543;1;Spese correnti;3;Acquisto di beni e servizi;2;Acquisto di servizi;15;Contratti di servizio pubblico;6;Contratti di servizio per le mense scolastiche;24/07/2020
2281;1;9999999;479,74;479,74;ARIA SPA;ZD1295C99A;SALDO Fatt.n. 1620004365  del 30/06/2020 UTILIZZO PIATTAFORMA DI E-PROCUREMENT SINTEL SALDO 2019  (rif. DGR Regione Lombardia XI/1356);24/07/2020;549;0;811;1;Spese correnti;3;Acquisto di beni e servizi;2;Acquisto di servizi;99;Altri servizi;999;Altri servizi diversi n.a.c.;28/07/2020
2282;1;9999999;1.484,43;1.484,43;SIGNIFY ITALY SPA;Z872B35A7C;SALDO Fatt.n. 317005251  del 03/07/2020 MATERIALE ELETTRICO PER ILLUMINAZIONE PUBBLICA;24/07/2020;7450;5;1371;2;Spese in conto capitale;2;Investimenti fissi lordi e acquisto di terreni;1;Beni materiali;10;Beni immobili di valore culturale, storico ed artistico;2;Fabbricati ad uso commerciale e istituzionale di valore culturale, storico ed artistico (dal 2020);28/07/2020
2283;1;9999999;150;150;OMESSO NOMINATIVO NEL RISPETTO DELLA NORMATIVA SULLA PROTEZIONE DATI PERSONALI; ;LUGLIO 2020  AFFIDO FAMILIARE;27/07/2020;3757;50;591;1;Spese correnti;4;Trasferimenti correnti;2;Trasferimenti correnti a Famiglie;2;Interventi assistenziali;999;Altri assegni e sussidi assistenziali;06/08/2020
2284;1;9999999;325;325;COOP. ALLEANZA 3.0 SOC. COOPERATIVA; ;PAGAMENTO DELLE FORNITURE RELATIVE AI BUONI SPESA ALIMENTARE;27/07/2020;4122;0;462;1;Spese correnti;3;Acquisto di beni e servizi;1;Acquisto di beni;2;Altri beni di consumo;11;Generi alimentari;06/08/2020
2285;1;9999999;3.639,69;3.639,69;COOP.SOCIALE PRIMAVERA SOC.COOP.SOC.ONLUS;ZC628289BE;SALDO Fatt.n. 129/PA  del 31/05/2020 SERVIZIO DI PULIZIA E SANIFICAZIONE UFFICI COMUNALI MAGGIO 2020;27/07/2020;142;0;535;1;Spese correnti;3;Acquisto di beni e servizi;2;Acquisto di servizi;13;Servizi ausiliari per il funzionamento dell'ente;2;Servizi di pulizia e lavanderia;06/08/2020
2286;1;9999999;1.853,89;1.853,89;FORNITECNICA S.R.L.;Z88269EF2B;SALDO Fatt.n. 000241PA20  del 02/07/2020 COSTO COPIA PERIODO LUGLIO - SETTEMBRE 2020;27/07/2020;748;0;18;1;Spese correnti;3;Acquisto di beni e servizi;2;Acquisto di servizi;19;Servizi informatici e di telecomunicazioni;5;Servizi per i sistemi e relativa manutenzione;06/08/2020
2287;1;9999999;1.223,27;1.223,27;E.N.P.A. ONLUS SEZ. DI MIRA; ;SALDO Fatt.n. 1048/PA  del 10/07/2020 CUSTODIA CANI VAGANTI MARZO E APRILE 2020;27/07/2020;3659;0;178;1;Spese correnti;4;Trasferimenti correnti;4;Trasferimenti correnti a Istituzioni Sociali Private;1;Trasferimenti correnti a Istituzioni Sociali Private;1;Trasferimenti correnti a Istituzioni Sociali Private;06/08/2020
2288;1;9999999;11.913,30;11.913,30;GOLFETTO ANGELO;Z0D2B54336;SALDO Fatt.n. 4/PA  del 13/07/2020 AFFIDAMENTO INCARICO PROFESSIONALE PER LA DIREZIONEESECUTIVA DEI LAVORI PER INTERVENTO E POSA IN OPERA PUNTI DI RIPRESA IMPIANTO DI VIDEOSORVEGLIANZA;27/07/2020;8800;1;200;2;Spese in conto capitale;2;Investimenti fissi lordi e acquisto di terreni;1;Beni materiali;4;Impianti e macchinari;2;Impianti;06/08/2020
2289;1;9999999;1.868,50;1.868,50;OMESSO NOMINATIVO NEL RISPETTO DELLA NORMATIVA SULLA PROTEZIONE DATI PERSONALI; ;GIUGNO 2020 INT.RETTA UTENTE;27/07/2020;3844;0;294;1;Spese correnti;3;Acquisto di beni e servizi;2;Acquisto di servizi;15;Contratti di servizio pubblico;8;Contratti di servizio di assistenza sociale residenziale e semiresidenziale;06/08/2020
2290;1;9999999;272,43;272,43;SOENERGY S.R.L.;8300710A94;SALDO Fatt.n. 201200815  del 13/07/2020 GIUGNO 2020 - CONSUMI SEDE MUNICIPALE;27/07/2020;134;31;451;1;Spese correnti;3;Acquisto di beni e servizi;2;Acquisto di servizi;5;Utenze e canoni;6;Gas;06/08/2020
2291;1;9999999;183,32;183,32;SOENERGY S.R.L.;8300710A94;SALDO Fatt.n. 201211118  del 13/07/2020 GIUGNO 2020 - CONSUMI ALLOGGIO VIA  OLIMPIA SMS;27/07/2020;134;31;451;1;Spese correnti;3;Acquisto di beni e servizi;2;Acquisto di servizi;5;Utenze e canoni;6;Gas;06/08/2020
2292;1;9999999;12,48;12,48;SOENERGY S.R.L.;8300710A94;SALDO Fatt.n. 201200811  del 13/07/2020 GIUGNO 2020 - CONSUMI ALLOGGIO VIA DON GALLERANI CALTANA;27/07/2020;134;31;451;1;Spese correnti;3;Acquisto di beni e servizi;2;Acquisto di servizi;5;Utenze e canoni;6;Gas;06/08/2020
2293;1;9999999;43,69;43,69;SOENERGY S.R.L.;7841279C1F;SALDO Fatt.n. 201214805  del 13/07/2020 CONGUAGLIO CONSUMI GENNAIO - MAGGIO 2020 SEDE MUNICIPALE;27/07/2020;134;31;592;1;Spese correnti;3;Acquisto di beni e servizi;2;Acquisto di servizi;5;Utenze e canoni;6;Gas;06/08/2020
2294;1;9999999;7,59;7,59;SOENERGY S.R.L.;7841279C1F;SALDO Fatt.n. 201218596  del 13/07/2020 CONGUAGLIO CONSUMI GENNAIO - MAGGIO 2020 ALLOGGIO VIA OLIMPIA SMS;27/07/2020;134;31;592;1;Spese correnti;3;Acquisto di beni e servizi;2;Acquisto di servizi;5;Utenze e canoni;6;Gas;06/08/2020
2295;1;9999999;4,68;4,68;SOENERGY S.R.L.;7841279C1F;SALDO Fatt.n. 201214795  del 13/07/2020 CONGUAGLIO CONSUMI GENNAIO - MAGGIO 2020 ALLOGGIO VIA DON GALLERANI;27/07/2020;134;31;592;1;Spese correnti;3;Acquisto di beni e servizi;2;Acquisto di servizi;5;Utenze e canoni;6;Gas;06/08/2020
2296;1;9999999;2,93;2,93;SOENERGY S.R.L.;7841279C1F;SALDO Fatt.n. 201214797  del 13/07/2020 CONGUAGLIO CONSUMI GENNAIO - MAGGIO 2020 MAGAZZINO COMUNALE;27/07/2020;134;31;592;1;Spese correnti;3;Acquisto di beni e servizi;2;Acquisto di servizi;5;Utenze e canoni;6;Gas;06/08/2020
2297;1;9999999;38,6;38,6;SOENERGY S.R.L.;8300710A94;SALDO Fatt.n. 201200806  del 13/07/2020 GIUGNO 2020 - CONSUMI SC. ELEM. CALTANA;27/07/2020;1334;30;452;1;Spese correnti;3;Acquisto di beni e servizi;2;Acquisto di servizi;5;Utenze e canoni;6;Gas;06/08/2020
2298;1;9999999;38,6;38,6;SOENERGY S.R.L.;8300710A94;SALDO Fatt.n. 201200810  del 13/07/2020 GIUGNO 2020 - CONSUMI SC. ELEM -SC. MEDIA SMS;27/07/2020;1334;30;452;1;Spese correnti;3;Acquisto di beni e servizi;2;Acquisto di servizi;5;Utenze e canoni;6;Gas;06/08/2020
2299;1;9999999;19,3;19,3;SOENERGY S.R.L.;8300710A94;ACCONTO Fatt.n. 201200809  del 13/07/2020 GIUGNO 2020 - CONSUMI PALESTRA CALTANA;27/07/2020;1334;30;452;1;Spese correnti;3;Acquisto di beni e servizi;2;Acquisto di servizi;5;Utenze e canoni;6;Gas;06/08/2020
2300;1;9999999;19,3;19,3;SOENERGY S.R.L.;8300710A94;ACCONTO Fatt.n. 201200804  del 13/07/2020 GIUGNO 2020 - CONSUMI PALESTRA SMS;27/07/2020;1334;30;452;1;Spese correnti;3;Acquisto di beni e servizi;2;Acquisto di servizi;5;Utenze e canoni;6;Gas;06/08/2020
2301;1;9999999;8;8;SOENERGY S.R.L.;8300710A94;ACCONTO Fatt.n. 201200807  del 13/07/2020 GIUGNO 2020 - CONSUMI SC. ELEM - PALESTRA CASELLE;27/07/2020;1334;30;452;1;Spese correnti;3;Acquisto di beni e servizi;2;Acquisto di servizi;5;Utenze e canoni;6;Gas;06/08/2020
2302;1;9999999;22,6;22,6;SOENERGY S.R.L.;8300710A94;ACCONTO Fatt.n. 201200807  del 13/07/2020 GIUGNO 2020 - CONSUMI SC. ELEM - PALESTRA CASELLE;27/07/2020;1334;30;452;1;Spese correnti;3;Acquisto di beni e servizi;2;Acquisto di servizi;5;Utenze e canoni;6;Gas;06/08/2020
2303;1;9999999;0,7;0,7;SOENERGY S.R.L.;8300710A94;ACCONTO Fatt.n. 201200808  del 13/07/2020 GIUGNO 2020 - CONSUMI SC. ELEM-PALESTRA VETERNIGO;27/07/2020;1334;30;452;1;Spese correnti;3;Acquisto di beni e servizi;2;Acquisto di servizi;5;Utenze e canoni;6;Gas;06/08/2020
2304;1;9999999;1,48;1,48;SOENERGY S.R.L.;8300710A94;ACCONTO Fatt.n. 201200808  del 13/07/2020 GIUGNO 2020 - CONSUMI SC. ELEM-PALESTRA VETERNIGO;27/07/2020;1334;30;452;1;Spese correnti;3;Acquisto di beni e servizi;2;Acquisto di servizi;5;Utenze e canoni;6;Gas;06/08/2020
2305;1;9999999;13;13;SOENERGY S.R.L.;8300710A94;ACCONTO Fatt.n. 201200803  del 13/07/2020 GIUGNO 2020 - CONSUMI SC. ELEM-PALESTRA STIGLIANO;27/07/2020;1334;30;452;1;Spese correnti;3;Acquisto di beni e servizi;2;Acquisto di servizi;5;Utenze e canoni;6;Gas;06/08/2020
2306;1;9999999;12,6;12,6;SOENERGY S.R.L.;8300710A94;ACCONTO Fatt.n. 201200803  del 13/07/2020 GIUGNO 2020 - CONSUMI SC. ELEM-PALESTRA STIGLIANO;27/07/2020;1334;30;452;1;Spese correnti;3;Acquisto di beni e servizi;2;Acquisto di servizi;5;Utenze e canoni;6;Gas;06/08/2020
2307;1;9999999;8;8;SOENERGY S.R.L.;8300710A94;ACCONTO Fatt.n. 201200813  del 13/07/2020 GIUGNO 2020 - CONSUMI SC. ELEM-PALESTRA-ASILO S.ANGELO;27/07/2020;1334;30;452;1;Spese correnti;3;Acquisto di beni e servizi;2;Acquisto di servizi;5;Utenze e canoni;6;Gas;06/08/2020
2308;1;9999999;22,6;22,6;SOENERGY S.R.L.;8300710A94;ACCONTO Fatt.n. 201200813  del 13/07/2020 GIUGNO 2020 - CONSUMI SC. ELEM-PALESTRA-ASILO S.ANGELO;27/07/2020;1334;30;452;1;Spese correnti;3;Acquisto di beni e servizi;2;Acquisto di servizi;5;Utenze e canoni;6;Gas;06/08/2020
2309;1;9999999;38,2;38,2;SOENERGY S.R.L.;7841279C1F;SALDO Fatt.n. 201214794  del 13/07/2020 CONGUAGLIO CONSUMI GENNAIO - MAGGIO 2020 SC. ELEM. CALTANA;27/07/2020;1334;30;593;1;Spese correnti;3;Acquisto di beni e servizi;2;Acquisto di servizi;5;Utenze e canoni;6;Gas;06/08/2020
2310;1;9999999;46,48;46,48;SOENERGY S.R.L.;7841279C1F;SALDO Fatt.n. 201214800  del 13/07/2020 CONGUAGLIO CONSUMI GENNAIO - MAGGIO 2020 SC. ELEM. - SC. MEDIA SMS;27/07/2020;1334;30;593;1;Spese correnti;3;Acquisto di beni e servizi;2;Acquisto di servizi;5;Utenze e canoni;6;Gas;06/08/2020
2311;1;9999999;15,95;15,95;SOENERGY S.R.L.;7841279C1F;ACCONTO Fatt.n. 201214804  del 13/07/2020 CONGUAGLIO CONSUMI GENNAIO - MAGGIO 2020 PALESTRA CALTANA;27/07/2020;1334;30;593;1;Spese correnti;3;Acquisto di beni e servizi;2;Acquisto di servizi;5;Utenze e canoni;6;Gas;06/08/2020
2312;1;9999999;13,39;13,39;SOENERGY S.R.L.;7841279C1F;ACCONTO Fatt.n. 201214799  del 13/07/2020 CONGUAGLIO CONSUMI GENNAIO - MAGGIO 2020 PALESTRA SMS;27/07/2020;1334;30;593;1;Spese correnti;3;Acquisto di beni e servizi;2;Acquisto di servizi;5;Utenze e canoni;6;Gas;06/08/2020
2313;1;9999999;8;8;SOENERGY S.R.L.;7841279C1F;ACCONTO Fatt.n. 201214802  del 13/07/2020 CONGUAGLIO CONSUMI GENNAIO - MAGGIO 2020 SC. ELEM - PALESTRA - ASILO S.ANGELO;27/07/2020;1334;30;593;1;Spese correnti;3;Acquisto di beni e servizi;2;Acquisto di servizi;5;Utenze e canoni;6;Gas;06/08/2020
2314;1;9999999;23,08;23,08;SOENERGY S.R.L.;7841279C1F;ACCONTO Fatt.n. 201214802  del 13/07/2020 CONGUAGLIO CONSUMI GENNAIO - MAGGIO 2020 SC. ELEM - PALESTRA - ASILO S.ANGELO;27/07/2020;1334;30;593;1;Spese correnti;3;Acquisto di beni e servizi;2;Acquisto di servizi;5;Utenze e canoni;6;Gas;06/08/2020
2315;1;9999999;11;11;SOENERGY S.R.L.;7841279C1F;ACCONTO Fatt.n. 201214798  del 13/07/2020 CONGUAGLIO CONSUMI GENNAIO - MAGGIO 2020 SC. ELEM - PALESTRA STIGLIANO;27/07/2020;1334;30;593;1;Spese correnti;3;Acquisto di beni e servizi;2;Acquisto di servizi;5;Utenze e canoni;6;Gas;06/08/2020
2316;1;9999999;8,61;8,61;SOENERGY S.R.L.;7841279C1F;ACCONTO Fatt.n. 201214798  del 13/07/2020 CONGUAGLIO CONSUMI GENNAIO - MAGGIO 2020 SC. ELEM - PALESTRA STIGLIANO;27/07/2020;1334;30;593;1;Spese correnti;3;Acquisto di beni e servizi;2;Acquisto di servizi;5;Utenze e canoni;6;Gas;06/08/2020
2317;1;9999999;10;10;SOENERGY S.R.L.;7841279C1F;ACCONTO Fatt.n. 201214803  del 13/07/2020 CONGUAGLIO CONSUMI GENNAIO - MAGGIO 2020 SC. ELEM - PALESTRA VETERNIGO;27/07/2020;1334;30;593;1;Spese correnti;3;Acquisto di beni e servizi;2;Acquisto di servizi;5;Utenze e canoni;6;Gas;06/08/2020
2318;1;9999999;16,54;16,54;SOENERGY S.R.L.;7841279C1F;ACCONTO Fatt.n. 201214803  del 13/07/2020 CONGUAGLIO CONSUMI GENNAIO - MAGGIO 2020 SC. ELEM - PALESTRA VETERNIGO;27/07/2020;1334;30;593;1;Spese correnti;3;Acquisto di beni e servizi;2;Acquisto di servizi;5;Utenze e canoni;6;Gas;06/08/2020
2319;1;9999999;11;11;SOENERGY S.R.L.;7841279C1F;ACCONTO Fatt.n. 201214801  del 13/07/2020 CONGUAGLIO CONSUMI GENNAIO - MAGGIO 2020 SC. ELEM - PALESTRA CASELLE;27/07/2020;1334;30;593;1;Spese correnti;3;Acquisto di beni e servizi;2;Acquisto di servizi;5;Utenze e canoni;6;Gas;06/08/2020
2320;1;9999999;34,11;34,11;SOENERGY S.R.L.;7841279C1F;ACCONTO Fatt.n. 201214801  del 13/07/2020 CONGUAGLIO CONSUMI GENNAIO - MAGGIO 2020 SC. ELEM - PALESTRA CASELLE;27/07/2020;1334;30;593;1;Spese correnti;3;Acquisto di beni e servizi;2;Acquisto di servizi;5;Utenze e canoni;6;Gas;06/08/2020
2321;1;9999999;55,85;55,85;SOENERGY S.R.L.;8300710A94;SALDO Fatt.n. 201200805  del 13/07/2020 GIUGNO 2020 - CONSUMI VILLA FARSETTI;27/07/2020;1834;0;453;1;Spese correnti;3;Acquisto di beni e servizi;2;Acquisto di servizi;5;Utenze e canoni;6;Gas;06/08/2020
2322;1;9999999;52,08;52,08;SOENERGY S.R.L.;8300710A94;SALDO Fatt.n. 201200812  del 13/07/2020 GIUGNO 2020 - CAMPO DA CALCIO CASELLE;27/07/2020;1934;0;454;1;Spese correnti;3;Acquisto di beni e servizi;2;Acquisto di servizi;5;Utenze e canoni;6;Gas;06/08/2020
2323;1;9999999;19,3;19,3;SOENERGY S.R.L.;8300710A94;SALDO Fatt.n. 201200809  del 13/07/2020 GIUGNO 2020 - CONSUMI PALESTRA CALTANA;27/07/2020;1934;0;454;1;Spese correnti;3;Acquisto di beni e servizi;2;Acquisto di servizi;5;Utenze e canoni;6;Gas;06/08/2020
2324;1;9999999;19,3;19,3;SOENERGY S.R.L.;8300710A94;SALDO Fatt.n. 201200804  del 13/07/2020 GIUGNO 2020 - CONSUMI PALESTRA SMS;27/07/2020;1934;0;454;1;Spese correnti;3;Acquisto di beni e servizi;2;Acquisto di servizi;5;Utenze e canoni;6;Gas;06/08/2020
2325;1;9999999;8;8;SOENERGY S.R.L.;8300710A94;SALDO Fatt.n. 201200807  del 13/07/2020 GIUGNO 2020 - CONSUMI SC. ELEM - PALESTRA CASELLE;27/07/2020;1934;0;454;1;Spese correnti;3;Acquisto di beni e servizi;2;Acquisto di servizi;5;Utenze e canoni;6;Gas;06/08/2020
2326;1;9999999;0,7;0,7;SOENERGY S.R.L.;8300710A94;SALDO Fatt.n. 201200808  del 13/07/2020 GIUGNO 2020 - CONSUMI SC. ELEM-PALESTRA VETERNIGO;27/07/2020;1934;0;454;1;Spese correnti;3;Acquisto di beni e servizi;2;Acquisto di servizi;5;Utenze e canoni;6;Gas;06/08/2020
2327;1;9999999;13;13;SOENERGY S.R.L.;8300710A94;SALDO Fatt.n. 201200803  del 13/07/2020 GIUGNO 2020 - CONSUMI SC. ELEM-PALESTRA STIGLIANO;27/07/2020;1934;0;454;1;Spese correnti;3;Acquisto di beni e servizi;2;Acquisto di servizi;5;Utenze e canoni;6;Gas;06/08/2020
2328;1;9999999;8;8;SOENERGY S.R.L.;8300710A94;SALDO Fatt.n. 201200813  del 13/07/2020 GIUGNO 2020 - CONSUMI SC. ELEM-PALESTRA-ASILO S.ANGELO;27/07/2020;1934;0;454;1;Spese correnti;3;Acquisto di beni e servizi;2;Acquisto di servizi;5;Utenze e canoni;6;Gas;06/08/2020
2329;1;9999999;10,54;10,54;SOENERGY S.R.L.;7841279C1F;SALDO Fatt.n. 201214796  del 13/07/2020 CONGUAGLIO CONSUMI GENNAIO - MAGGIO 2020 CAMPO DA CALCIO CASELLE;27/07/2020;1934;0;594;1;Spese correnti;3;Acquisto di beni e servizi;2;Acquisto di servizi;5;Utenze e canoni;6;Gas;06/08/2020
